Workbook

Sheet Capa de Contratação
A2: Grupo | B2: Item | C2: Descrição do Serviço ou Material | I2: Quant. | J2: Unidade | L2: Valor Unitário | M2: Valor Total
A4: 1 | B4: 1 | C4: Sistema de Geração Solar Fotovoltaica para acionamento de motobomba de até 1 CV - para o estado de Alagoas | I4: 16 | J4: Unidade | L4: =AL!G37 -> 12436.27 | M4: =I4*L4 -> 198980.32
B5: 2 | C5: Sistema de Geração Solar Fotovoltaica para acionamento de motobomba de até 2 CV - para o estado de Alagoas | I5: 16 | J5: Unidade | L5: =AL!G69 -> 15098.68 | M5: =I5*L5 -> 241578.88
B6: 3 | C6: Sistema de Geração Solar Fotovoltaica para acionamento de motobomba de até 3 CV - para o estado de Alagoas | I6: 70 | J6: Unidade | L6: =AL!G103 -> 17040.67 | M6: 1192846.9
A7: TOTAL GRUPO 1 | M7: =SUM(M4:M6) -> 1633406.1
A8: 2 | B8: 4 | C8: Sistema de Geração Solar Fotovoltaica para acionamento de motobomba de até 1 CV - para o estado da Bahia | I8: 16 | J8: Unidade | L8: =BA!G37 -> 12716.73 | M8: =I8*L8 -> 203467.68
B9: 5 | C9: Sistema de Geração Solar Fotovoltaica para acionamento de motobomba de até 2 CV - para o estado da Bahia | I9: 16 | J9: Unidade | L9: =BA!G69 -> 15379.14 | M9: =I9*L9 -> 246066.24
B10: 6 | C10: Sistema de Geração Solar Fotovoltaica para acionamento de motobomba de até 3 CV - para o estado da Bahia | I10: 70 | J10: Unidade | L10: =BA!G103 -> 17321.13 | M10: 1212479.1
A11: TOTAL GRUPO 2 | M11: =SUM(M8:M10) -> 1662013.02
A12: 3 | B12: 7 | C12: Sistema de Geração Solar Fotovoltaica para acionamento de motobomba de até 1 CV - para o Distrito Federal | I12: 16 | J12: Unidade | L12: =DF!G37 -> 12805.55 | M12: =I12*L12 -> 204888.8
B13: 8 | C13: Sistema de Geração Solar Fotovoltaica para acionamento de motobomba de até 2 CV - para o Distrito Federal | I13: 16 | J13: Unidade | L13: =DF!G69 -> 14677.68 | M13: 234842.88
B14: 9 | C14: Sistema de Geração Solar Fotovoltaica para acionamento de motobomba de até 3 CV - para o Distrito Federal | I14: 70 | J14: Unidade | L14: =DF!G103 -> 16569.03 | M14: 1159832.1
A15: TOTAL GRUPO 3 | M15: =SUM(M12:M14) -> 1599563.78
A16: 4 | B16: 10 | C16: Sistema de Geração Solar Fotovoltaica para acionamento de motobomba de até 1 CV - para o estado da Maranhão | I16: 16 | J16: Unidade | L16: =MA!G37 -> 12482.83 | M16: =L16*I16 -> 199725.28
B17: 11 | C17: Sistema de Geração Solar Fotovoltaica para acionamento de motobomba de até 2 CV - para o estado da Maranhão | I17: 16 | J17: Unidade | L17: =MA!G69 -> 14354.96 | M17: =L17*I17 -> 229679.36
B18: 12 | C18: Sistema de Geração Solar Fotovoltaica para acionamento de motobomba de até 3 CV - para o estado da Maranhão | I18: 70 | J18: Unidade | L18: =MA!G103 -> 16246.31 | M18: 1137241.7
A19: TOTAL GRUPO 4 | M19: =SUM(M16:M18) -> 1566646.34
A20: 5 | B20: 13 | C20: Sistema de Geração Solar Fotovoltaica para acionamento de motobomba de até 1 CV - para o estado do Mato Grosso | I20: 16 | J20: Unidade | L20: =MT!G37 -> 12394.01 | M20: 198304.16
B21: 14 | C21: Sistema de Geração Solar Fotovoltaica para acionamento de motobomba de até 2 CV - para o estado do Mato Grosso | I21: 16 | J21: Unidade | L21: =MT!G69 -> 14266.14 | M21: 228258.24
B22: 15 | C22: Sistema de Geração Solar Fotovoltaica para acionamento de motobomba de até 3 CV - para o estado do Mato Grosso | I22: 70 | J22: Unidade | L22: =MT!G103 -> 16157.49 | M22: 1131024.3
A23: TOTAL GRUPO 5 | M23: =SUM(M20:M22) -> 1557586.7
A24: 6 | B24: 16 | C24: Sistema de Geração Solar Fotovoltaica para acionamento de motobomba de até 1 CV - para o estado do Piauí | I24: 16 | J24: Unidade | L24: =PI!G37 -> 12419.97 | M24: =I24*L24 -> 198719.52
B25: 17 | C25: Sistema de Geração Solar Fotovoltaica para acionamento de motobomba de até 2 CV - para o estado do Piauí | I25: 16 | J25: Unidade | L25: =PI!G69 -> 14292.1 | M25: =I25*L25 -> 228673.6
B26: 18 | C26: Sistema de Geração Solar Fotovoltaica para acionamento de motobomba de até 3 CV - para o estado do Piauí | I26: 70 | J26: Unidade | L26: =PI!G103 -> 16183.45 | M26: 1132841.5
A27: TOTAL GRUPO 6 | M27: =SUM(M24:M26) -> 1560234.62
A29: Valor Total Global R$ | M29: =M7+M11+M15+M19+M23+M27 -> 9579450.56

Sheet RESUMO (hidden)
A2: UF | B2: SR | C2: Quantidade | D2: 1 CV | E2: 2 CV | F2: 3Cv
A3: Alagoas | B3: 5ª | C3: 100 | D3: 15- Unidades | E3: 15- unidades | F3: 70 - unidades
A4: Bahia | B4: 2ª | C4: 100 | D4: 15- Unidades | E4: 15- unidades | F4: 70 - unidades
A5: Distrito Federal | B5: Sede | C5: 100 | D5: 15- Unidades | E5: 15- unidades | F5: 70 - unidades
A6: Maranhão | B6: 8ª | C6: 100 | D6: 15- Unidades | E6: 15- unidades | F6: 70 - unidades
A7: Mato Grosso | B7: Sede | C7: 100 | D7: 15- Unidades | E7: 15- unidades | F7: 70 - unidades
A8: Piaui | B8: 7ª | C8: 100 | D8: 15- Unidades | E8: 15- unidades | F8: 70 - unidades
A9: Total | C9: =SUM(C3:C8) -> 600 | D9: 90 | E9: 90 | F9: 420

Sheet AL
A2: SISTEMA DE GERAÇÃO SOLAR FOTOVOLTAICA, OFF-GRID, SEM BATERIAS, PARA SISTEMA DE IRRIGAÇÃO COM MOTOBOMBA PARA O ESTADO DE ALAGOAS
A4: ITEM | B4: CÓD | C4: DESCRIÇÃO | D4: UNID. | E4: QUANT. | F4: Valor Unitario (R$) | G4: Valor Total (R$)
A6: SISTEMA DE GERAÇÃO SOLAR FOTOVOLTAICA, OFF-GRID, SEM BATERIAS, PARA SISTEMA DE IRRIGAÇÃO COM MOTOBOMBA DE ATÉ 1CV
A7: MATERIAL ELÉTRICO - A
A8: ARRANJO FOTOVOLTAICO
A9: 1 | C9: Módulo Fotovoltaico, com potência de 570 Wp STC (ou de potência suficiente para o correto funcionamento do sistema), estrutura em liga de alumínio anodizado, caixa de junção IP 68, três diodos, eficiência superior a 19%, degradação no primeiro ano inferior a 3%, degradação do ano 2 ao 30 inferior a 0,5% ao ano, 10 anos de garantia, 20 anos de garantia de potência linear. | D9: unid. | E9: 4 | F9: ='Item 1-1;2 CV'!L39 -> 790.28 | G9: =E9*F9 -> 3161.12
A10: 2 | C10: Par (macho e fêmea) de conectores terminais tipo MC4, de 2,5 a 6 mm², 1.500 Vcc, 30 A, IP67, próprio para instalações fotovoltaicas. | D10: unid. | E10: 1 | F10: ='Item 2 - 1;2;3-CV'!L38 -> 44.51 | G10: 44.51
A11: 3 | C11: Estrutura de solo para módulos fotovoltaicos, 5 módulos instalados, pilastra travessa e mão francesa em aço galvanizado a fogo, longarina e acessórios em alumínio. Inclui todos os acessórios para correta fixação dos painéis. | D11: unid. | E11: 1 | F11: ='Item 3 - 1 CV'!L39 -> 1102.96 | G11: 1102.96
A12: 4 | C12: Condutor de 4 mm², fios de cobre, têmpera mole, encordoamento classe 5 (extraflexível), isolação em composto termofixo livre de halogênio, retardante a chamas, cobertura em composto termofixo livre de halogênio, resistente a UV. Na cor vermelha. | D12: metro | E12: 10 | F12: ='Item 4 - 1;2;3 CV'!L39 -> 5.19 | G12: 51.9
A13: 5 | C13: Condutor de 4 mm², fios de cobre, têmpera mole, encordoamento classe 5 (extraflexível), isolação em composto termofixo livre de halogênio, retardante a chamas, cobertura em composto termofixo livre de halogênio, resistente a UV. Na cor preta | D13: metro | E13: 10 | F13: ='Item 5 - 1;2;3 CV'!L39 -> 4.96 | G13: 49.6
A14: 6 | C14: Driver solar fotovoltaico, apropriado para motores de 1 CV, operação off-grid: | D14: und. | E14: 1 | F14: ='Item 6 - 1 CV'!L39 -> 1589.67 | G14: 1589.67
C15: Eficiência mínima 95%, grau de proteção IP20, resfriamento natural ou com cooler integrado, garantia mínima de 5 anos, tensão de saída compatível com a motobomba, frequência 60 Hz, com sistema de partida suave da bomba e controle de velocidade, atender em plenitude os requisitos do sistema a ser instalado.
C16: Entrada de corrente contínua (CC) compatível com a quantidade de painéis fotovoltaicos propostos, com no mínimo 1 MPPT (maximum power point tracking) com faixa de tensão de operação compatível com os módulos fotovoltaicos, baixa tensão mínima para funcionamento.
C17: Saída de corrente alternada (CA) compatível com o sistema projetado, até 1 CV, temperatura de operação até 60 ºc, trifásico ou monofásico.
C18: Possuir, no mínimo as seguintes proteções: Sub e sobre tensão CC, sobreaquecimento, surtos de tensão (CC), proteção de bomba travada, proteção de curto-circuito, proteção contra funcionamento a seco e sobrecarga.
A19: ATERRAMENTO
A20: 7 | B20: 867 | C20: Cabo de cobre nu 50mm², composto por 7 fios x Ø 3,00 mm | D20: metro | E20: 20 | F20: 65.8 | G20: =E20*F20 -> 1316
A21: 8 | B21: 34643 | C21: Caixa de inspeção para aterramento, em PVC, com tampa | D21: und. | E21: 4 | F21: 36.6 | G21: =E21*F21 -> 146.4
A22: 9 | C22: Haste para aterramento, cobreada alta camada, Ø 3/4″ x 2,40 m (Ø 17,3 mm – Efetivo) | D22: und. | E22: 2 | F22: ='Item 9 - 1;2;3 CV'!L39 -> 141.84 | G22: 283.68
A23: 10 | B23: 416 | C23: Conector Cabo-Haste em Latão Estanhado para 1 Cabo com Acessórios | D23: und. | E23: 2 | F23: 7.2 | G23: 14.4
A24: 11 | B24: 1578 | C24: Terminal olhal para condutor de 50 mm² | D24: und. | E24: 2 | F24: 6.12 | G24: 12.24
A25: QUADRO DE PROTEÇÃO CC (STRINGBOX)
A26: 12 | C26: String-box CC, composta de: | D26: und. | E26: 1 | F26: ='Item 12 - 1;2;3 CV'!L39 -> 515.03 | G26: =E26*F26 -> 515.03
C27: 1 conjunto de DPS por string, com proteção classe II, apropriado para uso em sistemas fotovoltaicos, 1040 Vdc, corrente de descarga máxima 40 kA, corrente de descarga nominal de 18 kA, nível de proteção inferior a 3,5 kV, 3 polos (positivo, negativo e terra), com indicador de operação verde (em serviço) e vermelho (defeito).
C28: 1 chave seccionadora de até 32A, para corrente contínua, 1.000 Vdc, 2 polos, adequado para uso em sistemas fotovoltaicos com conexão de condutores de 2,5 até 10 mm², para instalação em trilho DIN e com jumpers tipo barramento.
C29: 1 caixa de proteção para stringbox em policarbonato, de sobrepor, trilho DIN, IP 65, proteção UV, e adequada para uso em sistemas fotovoltaicos. Deverão ser fixados através de trilho DIN
A30: ALIMENTAÇÃO DO MOTOR
A31: 13 | B31: 1014 | C31: Condutor isolado 450/750V, seção nominal de 2,5 mm², condutor de cobre têmpera mole, encordoamento classe 4 ou 5, com isolação em composto termoplástico de PVC/A (cor azul, verde, preto, branco ou vermelho, conforme aplicação) | D31: metro | E31: 80 | F31: 2.79 | G31: =E31*F31 -> 223.2
A32: 14 | B32: 40400 | C32: Duto PEAD corrugado 3/4", fabricado em Polietileno de Alta Densidade (PEAD), sendo flexível, anelar e impermeável, na cor preta, apropriado para passagens da condutores elétricos | D32: metro | E32: 20 | F32: 2.59 | G32: =E32*F32 -> 51.8
A33: 15 | B33: 41627 | C33: Caixa de passagem/inspeção em concreto, sem fundo, com tampa, 30X30 centímetros | D33: Und. | E33: 2 | F33: 131.36 | G33: =E33*F33 -> 262.72
A34: MONTAGEM E INSTALAÇÃO
A35: 16 | C35: Comissionamento das instalações | D35: Unid. | E35: 1 | F35: =G110 -> 359.12 | G35: =E35*F35 -> 359.12
A36: 17 | C36: Execução das instalações | D36: Unid. | E36: 1 | F36: =G117 -> 3251.92 | G36: =E36*F36 -> 3251.92
A37: Total Geral - KIT 1 CV | G37: =SUM(G9:G36) -> 12436.27
A38: SISTEMA DE GERAÇÃO SOLAR FOTOVOLTAICA, OFF-GRID, SEM BATERIAS, PARA SISTEMA DE IRRIGAÇÃO COM MOTOBOMBA DE ATÉ 2CV
A39: MATERIAL ELÉTRICO - A
A40: ARRANJO FOTOVOLTAICO
A41: 1 | C41: Módulo Fotovoltaico, com potência de 570 Wp STC, (ou de potência suficiente para o correto funcionamento do sistema), estrutura em liga de alumínio anodizado, caixa de junção IP 68, três diodos, eficiência superior a 19%, degradação no primeiro ano inferior a 3%, degradação do ano 2 ao 30 inferior a 0,5% ao ano, 10 anos de garantia, 20 anos de garantia de potência linear. | D41: unid. | E41: 7 | F41: ='Item 1-1;2 CV'!L39 -> 790.28 | G41: =E41*F41 -> 5531.96
A42: 2 | C42: Par (macho e fêmea) de conectores terminais tipo MC4, de 2,5 a 6 mm², 1.500 Vcc, 30 A, IP67, próprio para instalações fotovoltaicas. | D42: unid. | E42: 1 | F42: ='Item 2 - 1;2;3-CV'!L38 -> 44.51 | G42: =E42*F42 -> 44.51
A43: 3 | C43: Estrutura de solo para módulos fotovoltaicos, 6 módulos instalados, pilastra travessa e mão francesa em aço galvanizado a fogo, longarina e acessórios em alumínio. Inclui todos os acessórios para correta fixação dos painéis. | D43: unid. | E43: 1 | F43: ='Item 3 - 2 CV'!L38 -> 1426.53 | G43: =E43*F43 -> 1426.53
A44: 4 | C44: Condutor de 4 mm², fios de cobre, têmpera mole, encordoamento classe 5 (extraflexível), isolação em composto termofixo livre de halogênio, retardante a chamas, cobertura em composto termofixo livre de halogênio, resistente a UV. Na cor vermelha. | D44: metro | E44: 15 | F44: ='Item 4 - 1;2;3 CV'!L39 -> 5.19 | G44: =E44*F44 -> 77.85
A45: 5 | C45: Condutor de 4 mm², fios de cobre, têmpera mole, encordoamento classe 5 (extraflexível), isolação em composto termofixo livre de halogênio, retardante a chamas, cobertura em composto termofixo livre de halogênio, resistente a UV. Na cor preta | D45: metro | E45: 15 | F45: ='Item 5 - 1;2;3 CV'!L39 -> 4.96 | G45: =E45*F45 -> 74.4
A46: 6 | C46: Driver solar fotovoltaico, apropriado para motores de 2 CV, operação off-grid: | D46: und. | E46: 1 | F46: ='Item 6 - 2 CV'!L37 -> 1506.92 | G46: =E46*F46 -> 1506.92
C47: Eficiência mínima 95%, grau de proteção IP20, resfriamento natural ou com cooler integrado, garantia mínima de 5 anos, tensão de saída compatível com a motobomba, frequência 60 Hz, com sistema de partida suave da bomba e controle de velocidade, atender em plenitude os requisitos do sistema a ser instalado.
C48: Entrada de corrente contínua (CC) compatível com a quantidade de painéis fotovoltaicos propostos, com no mínimo 1 MPPT (maximum power point tracking) com faixa de tensão de operação compatível com os módulos fotovoltaicos, baixa tensão mínima para funcionamento.
C49: Saída de corrente alternada (CA) compatível com o sistema projetado, até 2 CV, temperatura de operação até 60 ºC, trifásico ou monofásico.
C50: Possuir, no mínimo as seguintes proteções: Sub e sobre tensão CC, sobreaquecimento, surtos de tensão (CC), proteção de bomba travada, proteção de curto-circuito, proteção contra funcionamento a seco e sobrecarga.
A51: ATERRAMENTO
A52: 7 | B52: 867 | C52: Cabo de cobre nu 50mm², composto por 7 fios x Ø 3,00 mm | D52: metro | E52: 20 | F52: 65.8 | G52: =E52*F52 -> 1316
A53: 8 | B53: 34643 | C53: Caixa de inspeção para aterramento, em PVC, com tampa | D53: und. | E53: 4 | F53: 36.6 | G53: =E53*F53 -> 146.4
A54: 9 | C54: Haste para aterramento, cobreada alta camada, Ø 3/4″ x 2,40 m (Ø 17,3 mm – Efetivo) | D54: und. | E54: 2 | F54: ='Item 9 - 1;2;3 CV'!L39 -> 141.84 | G54: 283.68
A55: 10 | B55: 416 | C55: Conector Cabo-Haste em Latão Estanhado para 1 Cabo com Acessórios | D55: und. | E55: 2 | F55: 7.2 | G55: 14.4
A56: 11 | B56: 1578 | C56: Terminal olhal para condutor de 50 mm² | D56: und. | E56: 2 | F56: 6.12 | G56: 12.24
A57: QUADRO DE PROTEÇÃO CC (STRINGBOX)
A58: 12 | C58: String-box CC, composta de: | D58: und. | E58: 1 | F58: ='Item 12 - 1;2;3 CV'!L39 -> 515.03 | G58: =E58*F58 -> 515.03
C59: 1 conjunto de DPS por string, com proteção classe II, apropriado para uso em sistemas fotovoltaicos, 1040 Vdc, corrente de descarga máxima 40 kA, corrente de descarga nominal de 18 kA, nível de proteção inferior a 3,5 kV, 3 polos (positivo, negativo e terra), com indicador de operação verde (em serviço) e vermelho (defeito).
C60: 1 chave seccionadora de até 32A, para corrente contínua, 1.000 Vdc, 2 polos, adequado para uso em sistemas fotovoltaicos com conexão de condutores de 2,5 até 10 mm², para instalação em trilho DIN e com jumpers tipo barramento.
C61: 1 caixa de proteção para stringbox em policarbonato, de sobrepor, trilho DIN, IP 65, proteção UV, e adequada para uso em sistemas fotovoltaicos. Deverão ser fixados através de trilho DIN
A62: ALIMENTAÇÃO DO MOTOR
A63: 13 | B63: 1014 | C63: Condutor isolado 450/750V, seção nominal de 2,5 mm², condutor de cobre têmpera mole, encordoamento classe 4 ou 5, com isolação em composto termoplástico de PVC/A (cor azul, verde, preto, branco ou vermelho, conforme aplicação) | D63: metro | E63: 80 | F63: 2.79 | G63: =E63*F63 -> 223.2
A64: 14 | B64: 40400 | C64: Duto PEAD corrugado 3/4", fabricado em Polietileno de Alta Densidade (PEAD), sendo flexível, anelar e impermeável, na cor preta, apropriado para passagens da condutores elétricos | D64: metro | E64: 20 | F64: 2.59 | G64: =E64*F64 -> 51.8
A65: 15 | B65: 41627 | C65: Caixa de passagem/inspeção em concreto, sem fundo, com tampa, 30X30 centímetros | D65: Und. | E65: 2 | F65: 131.36 | G65: =E65*F65 -> 262.72
A66: MONTAGEM E INSTALAÇÃO
A67: 16 | C67: Comissionamento das instalações | D67: Unid. | E67: 1 | F67: =G110 -> 359.12 | G67: =E67*F67 -> 359.12
A68: 17 | C68: Execução das instalações | D68: Unid. | E68: 1 | F68: =G117 -> 3251.92 | G68: =E68*F68 -> 3251.92
A69: Total Geral - KIT 2 CV | G69: =SUM(G41:G68) -> 15098.68
A72: SISTEMA DE GERAÇÃO SOLAR FOTOVOLTAICA, OFF-GRID, SEM BATERIAS, PARA SISTEMA DE IRRIGAÇÃO COM MOTOBOMBA DE ATÉ 3CV
A73: MATERIAL ELÉTRICO - A
A74: ARRANJO FOTOVOLTAICO
A75: 1 | C75: Módulo Fotovoltaico, com potência de 700 Wp STC, (ou de potência suficiente para o correto funcionamento do sistema), estrutura em liga de alumínio anodizado, caixa de junção IP 68, três diodos, eficiência superior a 19%, degradação no primeiro ano inferior a 3%, degradação do ano 2 ao 30 inferior a 0,5% ao ano, 10 anos de garantia, 20 anos de garantia de potência linear. | D75: unid. | E75: 8 | F75: ='Item 1 - 3 CV'!L39 -> 840.92 | G75: =E75*F75 -> 6727.36
A76: 2 | C76: Par (macho e fêmea) de conectores terminais tipo MC4, de 2,5 a 6 mm², 1.500 Vcc, 30 A, IP67, próprio para instalações fotovoltaicas. | D76: unid. | E76: 2 | F76: ='Item 2 - 1;2;3-CV'!L38 -> 44.51 | G76: =E76*F76 -> 89.02
A77: 3 | C77: Estrutura de solo para módulos fotovoltaicos, 8 módulos instalados, pilastra travessa e mão francesa em aço galvanizado a fogo, longarina e acessórios em alumínio. Inclui todos os acessórios para correta fixação dos painéis. | D77: unid. | E77: 1 | F77: ='Item 3 - 3 CV'!L38 -> 1508.78 | G77: 1508.78
A78: 4 | C78: Condutor de 4 mm², fios de cobre, têmpera mole, encordoamento classe 5 (extraflexível), isolação em composto termofixo livre de halogênio, retardante a chamas, cobertura em composto termofixo livre de halogênio, resistente a UV. Na cor vermelha. | D78: metro | E78: 20 | F78: ='Item 4 - 1;2;3 CV'!L39 -> 5.19 | G78: 103.8
A79: 5 | C79: Condutor de 4 mm², fios de cobre, têmpera mole, encordoamento classe 5 (extraflexível), isolação em composto termofixo livre de halogênio, retardante a chamas, cobertura em composto termofixo livre de halogênio, resistente a UV. Na cor preta | D79: metro | E79: 20 | F79: ='Item 5 - 1;2;3 CV'!L39 -> 4.96 | G79: 99.2
A80: 6 | C80: Driver solar fotovoltaico, apropriado para motores de 3 CV, operação off-grid: | D80: und. | E80: 1 | F80: ='Item 6 - 3 CV'!L36 -> 2076 | G80: 2076
C81: Eficiência mínima 95%, grau de proteção IP20, resfriamento natural ou com cooler integrado, garantia mínima de 5 anos, tensão de saída compatível com a motobomba, frequência 60 Hz, com sistema de partida suave da bomba e controle de velocidade, atender em plenitude os requisitos do sistema a ser instalado.
C82: Entrada de corrente contínua (CC) compatível com a quantidade de painéis fotovoltaicos propostos, com no mínimo 1 MPPT (maximum power point tracking) com faixa de tensão de operação compatível com os módulos fotovoltaicos, baixa tensão mínima para funcionamento.
C83: Saída de corrente alternada (CA) compatível com o sistema projetado, até 3 CV, temperatura de operação até 60 ºC, trifásico ou monofásico.
C84: Possuir, no mínimo as seguintes proteções: Sub e sobre tensão CC, sobreaquecimento, surtos de tensão (CC), proteção de bomba travada, proteção de curto-circuito, proteção contra funcionamento a seco e sobrecarga.
A85: ATERRAMENTO
A86: 7 | B86: 867 | C86: Cabo de cobre nu 50mm², composto por 7 fios x Ø 3,00 mm | D86: metro | E86: 20 | F86: 65.8 | G86: =E86*F86 -> 1316
A87: 8 | B87: 34643 | C87: Caixa de inspeção para aterramento, em PVC, com tampa | D87: und. | E87: 4 | F87: 36.6 | G87: =E87*F87 -> 146.4
A88: 9 | C88: Haste para aterramento, cobreada alta camada, Ø 3/4″ x 2,40 m (Ø 17,3 mm – Efetivo) | D88: und. | E88: 2 | F88: ='Item 9 - 1;2;3 CV'!L39 -> 141.84 | G88: =E88*F88 -> 283.68
A89: 10 | B89: 416 | C89: Conector Cabo-Haste em Latão Estanhado para 1 Cabo com Acessórios | D89: und. | E89: 2 | F89: 7.2 | G89: =E89*F89 -> 14.4
A90: 11 | B90: 1578 | C90: Terminal olhal para condutor de 50 mm² | D90: und. | E90: 2 | F90: 6.12 | G90: =E90*F90 -> 12.24
A91: QUADRO DE PROTEÇÃO CC (STRINGBOX)
A92: 12 | C92: String-box CC, composta de: | D92: und. | E92: 1 | F92: ='Item 12 - 1;2;3 CV'!L39 -> 515.03 | G92: =E92*F92 -> 515.03
C93: 1 conjunto de DPS por string, com proteção classe II, apropriado para uso em sistemas fotovoltaicos, 1040 Vdc, corrente de descarga máxima 40 kA, corrente de descarga nominal de 18 kA, nível de proteção inferior a 3,5 kV, 3 polos (positivo, negativo e terra), com indicador de operação verde (em serviço) e vermelho (defeito).
C94: 1 chave seccionadora de até 32A, para corrente contínua, 1.000 Vdc, 2 polos, adequado para uso em sistemas fotovoltaicos com conexão de condutores de 2,5 até 10 mm², para instalação em trilho DIN e com jumpers tipo barramento.
C95: 1 caixa de proteção para stringbox em policarbonato, de sobrepor, trilho DIN, IP 65, proteção UV, e adequada para uso em sistemas fotovoltaicos. Deverão ser fixados através de trilho DIN
A96: ALIMENTAÇÃO DO MOTOR
A97: 13 | B97: 1014 | C97: Condutor isolado 450/750V, seção nominal de 4 mm², condutor de cobre têmpera mole, encordoamento classe 4 ou 5, com isolação em composto termoplástico de PVC/A (cor azul, verde, preto, branco ou vermelho, conforme aplicação) | D97: metro | E97: 80 | F97: 2.79 | G97: =E97*F97 -> 223.2
A98: 14 | B98: 40400 | C98: Duto PEAD corrugado 1", fabricado em Polietileno de Alta Densidade (PEAD), sendo flexível, anelar e impermeável, na cor preta, apropriado para passagens da condutores elétricos | D98: metro | E98: 20 | F98: 2.59 | G98: =E98*F98 -> 51.8
A99: 15 | B99: 41627 | C99: Caixa de passagem/inspeção em concreto, sem fundo, com tampa, 30X30 centímetros | D99: Und. | E99: 2 | F99: 131.36 | G99: 262.72
A100: MONTAGEM E INSTALAÇÃO
A101: 16 | C101: Comissionamento das instalações | D101: Unid. | E101: 1 | F101: =G110 -> 359.12 | G101: =E101*F101 -> 359.12
A102: 17 | C102: Execução das instalações | D102: Unid. | E102: 1 | F102: =G117 -> 3251.92 | G102: =E102*F102 -> 3251.92
A103: Total Geral - KIT 3CV | G103: =SUM(G75:G102) -> 17040.67
A107: item 16 | D107: Unidade | E107: valor unitário | F107: Quant | G107: Valor total
B108: 90778 | C108: Engenheiro eletricista - Pleno | D108: Hora | E108: 143.99 | F108: 2 | G108: =E108*F108 -> 287.98
B109: 88266 | C109: Técnico eletrotécnico | D109: Hora | E109: 35.57 | F109: 2 | G109: =E109*F109 -> 71.14
B110: Total Geral - item 16 | G110: =SUM(G108:G109) -> 359.12
A112: item 17 | D112: Unidade | E112: valor unitário | F112: Quant | G112: Valor total
B113: 90778 | C113: Engenheiro eletricista - Pleno | D113: Hora | E113: 143.99 | F113: 8 | G113: =E113*F113 -> 1151.92
B114: 88266 | C114: Técnico eletrotécnico | D114: Hora | E114: 35.87 | F114: 24 | G114: =E114*F114 -> 860.88
B115: 90776 | C115: Encarregado | D115: Hora | E115: 28.8 | F115: 24 | G115: 691.2
B116: 88247 | C116: Ajudante | D116: Hora | E116: 22.83 | F116: 24 | G116: 547.92
B117: Total Geral - item 17 | G117: =SUM(G113:G116) -> 3251.92

Sheet BA
A2: SISTEMA DE GERAÇÃO SOLAR FOTOVOLTAICA, OFF-GRID, SEM BATERIAS, PARA SISTEMA DE IRRIGAÇÃO COM MOTOBOMBA PARA O ESTADO DA BAHIA
A4: ITEM | B4: CÓD | C4: DESCRIÇÃO | D4: UNID. | E4: QUANT. | F4: Valor Unitario (R$) | G4: Valor Total (R$)
A6: SISTEMA DE GERAÇÃO SOLAR FOTOVOLTAICA, OFF-GRID, SEM BATERIAS, PARA SISTEMA DE IRRIGAÇÃO COM MOTOBOMBA DE ATÉ 1CV
A7: MATERIAL ELÉTRICO - A
A8: ARRANJO FOTOVOLTAICO
A9: 1 | C9: Módulo Fotovoltaico, com potência de 570 Wp STC (ou de potência suficiente para o correto funcionamento do sistema), estrutura em liga de alumínio anodizado, caixa de junção IP 68, três diodos, eficiência superior a 19%, degradação no primeiro ano inferior a 3%, degradação do ano 2 ao 30 inferior a 0,5% ao ano, 10 anos de garantia, 20 anos de garantia de potência linear. | D9: unid. | E9: 4 | F9: ='Item 1-1;2 CV'!L39 -> 790.28 | G9: =E9*F9 -> 3161.12
A10: 2 | C10: Par (macho e fêmea) de conectores terminais tipo MC4, de 2,5 a 6 mm², 1.500 Vcc, 30 A, IP67, próprio para instalações fotovoltaicas. | D10: unid. | E10: 1 | F10: ='Item 2 - 1;2;3-CV'!L38 -> 44.51 | G10: 44.51
A11: 3 | C11: Estrutura de solo para módulos fotovoltaicos, 5 módulos instalados, pilastra travessa e mão francesa em aço galvanizado a fogo, longarina e acessórios em alumínio. Inclui todos os acessórios para correta fixação dos painéis. | D11: unid. | E11: 1 | F11: ='Item 3 - 1 CV'!L39 -> 1102.96 | G11: 1102.96
A12: 4 | C12: Condutor de 4 mm², fios de cobre, têmpera mole, encordoamento classe 5 (extraflexível), isolação em composto termofixo livre de halogênio, retardante a chamas, cobertura em composto termofixo livre de halogênio, resistente a UV. Na cor vermelha. | D12: metro | E12: 10 | F12: ='Item 4 - 1;2;3 CV'!L39 -> 5.19 | G12: 51.9
A13: 5 | C13: Condutor de 4 mm², fios de cobre, têmpera mole, encordoamento classe 5 (extraflexível), isolação em composto termofixo livre de halogênio, retardante a chamas, cobertura em composto termofixo livre de halogênio, resistente a UV. Na cor preta | D13: metro | E13: 10 | F13: ='Item 5 - 1;2;3 CV'!L39 -> 4.96 | G13: 49.6
A14: 6 | C14: Driver solar fotovoltaico, apropriado para motores de 1 CV, operação off-grid: | D14: und. | E14: 1 | F14: ='Item 6 - 1 CV'!L39 -> 1589.67 | G14: 1589.67
C15: Eficiência mínima 95%, grau de proteção IP20, resfriamento natural ou com cooler integrado, garantia mínima de 5 anos, tensão de saída compatível com a motobomba, frequência 60 Hz, com sistema de partida suave da bomba e controle de velocidade, atender em plenitude os requisitos do sistema a ser instalado.
C16: Entrada de corrente contínua (CC) compatível com a quantidade de painéis fotovoltaicos propostos, com no mínimo 1 MPPT (maximum power point tracking) com faixa de tensão de operação compatível com os módulos fotovoltaicos, baixa tensão mínima para funcionamento.
C17: Saída de corrente alternada (CA) compatível com o sistema projetado, até 1 CV, temperatura de operação até 60 ºc, trifásico ou monofásico.
C18: Possuir, no mínimo as seguintes proteções: Sub e sobre tensão CC, sobreaquecimento, surtos de tensão (CC), proteção de bomba travada, proteção de curto-circuito, proteção contra funcionamento a seco e sobrecarga.
A19: ATERRAMENTO
A20: 7 | B20: 867 | C20: Cabo de cobre nu 50mm², composto por 7 fios x Ø 3,00 mm | D20: metro | E20: 20 | F20: 56.7 | G20: =E20*F20 -> 1134
A21: 8 | B21: 34643 | C21: Caixa de inspeção para aterramento, em PVC, com tampa | D21: und. | E21: 4 | F21: 35.19 | G21: =E21*F21 -> 140.76
A22: 9 | C22: Haste para aterramento, cobreada alta camada, Ø 3/4″ x 2,40 m (Ø 17,3 mm – Efetivo) | D22: und. | E22: 2 | F22: ='Item 9 - 1;2;3 CV'!L39 -> 141.84 | G22: 283.68
A23: 10 | B23: 416 | C23: Conector Cabo-Haste em Latão Estanhado para 1 Cabo com Acessórios | D23: und. | E23: 2 | F23: 10.69 | G23: 21.38
A24: 11 | B24: 1578 | C24: Terminal olhal para condutor de 50 mm² | D24: und. | E24: 2 | F24: 4.66 | G24: 9.32
A25: QUADRO DE PROTEÇÃO CC (STRINGBOX)
A26: 12 | C26: String-box CC, composta de: | D26: und. | E26: 1 | F26: ='Item 12 - 1;2;3 CV'!L39 -> 515.03 | G26: =E26*F26 -> 515.03
C27: 1 conjunto de DPS por string, com proteção classe II, apropriado para uso em sistemas fotovoltaicos, 1040 Vdc, corrente de descarga máxima 40 kA, corrente de descarga nominal de 18 kA, nível de proteção inferior a 3,5 kV, 3 polos (positivo, negativo e terra), com indicador de operação verde (em serviço) e vermelho (defeito).
C28: 1 chave seccionadora de até 32A, para corrente contínua, 1.000 Vdc, 2 polos, adequado para uso em sistemas fotovoltaicos com conexão de condutores de 2,5 até 10 mm², para instalação em trilho DIN e com jumpers tipo barramento.
C29: 1 caixa de proteção para stringbox em policarbonato, de sobrepor, trilho DIN, IP 65, proteção UV, e adequada para uso em sistemas fotovoltaicos. Deverão ser fixados através de trilho DIN
A30: ALIMENTAÇÃO DO MOTOR
A31: 13 | B31: 1014 | C31: Condutor isolado 450/750V, seção nominal de 2,5 mm², condutor de cobre têmpera mole, encordoamento classe 4 ou 5, com isolação em composto termoplástico de PVC/A (cor azul, verde, preto, branco ou vermelho, conforme aplicação) | D31: metro | E31: 80 | F31: 2.41 | G31: =E31*F31 -> 192.8
A32: 14 | B32: 40400 | C32: Duto PEAD corrugado 3/4", fabricado em Polietileno de Alta Densidade (PEAD), sendo flexível, anelar e impermeável, na cor preta, apropriado para passagens da condutores elétricos | D32: metro | E32: 20 | F32: 1.91 | G32: =E32*F32 -> 38.2
A33: 15 | B33: 41627 | C33: Caixa de passagem/inspeção em concreto, sem fundo, com tampa, 30X30 centímetros | D33: Und. | E33: 2 | F33: 183.44 | G33: =E33*F33 -> 366.88
A34: MONTAGEM E INSTALAÇÃO
A35: 16 | C35: Comissionamento das instalações | D35: Unid. | E35: 1 | F35: =G110 -> 352.44 | G35: =E35*F35 -> 352.44
A36: 17 | C36: Execução das instalações | D36: Unid. | E36: 1 | F36: =G117 -> 3662.48 | G36: =E36*F36 -> 3662.48
A37: Total Geral - KIT 1 CV | G37: =SUM(G9:G36) -> 12716.73
A38: SISTEMA DE GERAÇÃO SOLAR FOTOVOLTAICA, OFF-GRID, SEM BATERIAS, PARA SISTEMA DE IRRIGAÇÃO COM MOTOBOMBA DE ATÉ 2CV
A39: MATERIAL ELÉTRICO - A
A40: ARRANJO FOTOVOLTAICO
A41: 1 | C41: Módulo Fotovoltaico, com potência de 570 Wp STC, (ou de potência suficiente para o correto funcionamento do sistema), estrutura em liga de alumínio anodizado, caixa de junção IP 68, três diodos, eficiência superior a 19%, degradação no primeiro ano inferior a 3%, degradação do ano 2 ao 30 inferior a 0,5% ao ano, 10 anos de garantia, 20 anos de garantia de potência linear. | D41: unid. | E41: 7 | F41: ='Item 1-1;2 CV'!L39 -> 790.28 | G41: =E41*F41 -> 5531.96
A42: 2 | C42: Par (macho e fêmea) de conectores terminais tipo MC4, de 2,5 a 6 mm², 1.500 Vcc, 30 A, IP67, próprio para instalações fotovoltaicas. | D42: unid. | E42: 1 | F42: ='Item 2 - 1;2;3-CV'!L38 -> 44.51 | G42: =E42*F42 -> 44.51
A43: 3 | C43: Estrutura de solo para módulos fotovoltaicos, 6 módulos instalados, pilastra travessa e mão francesa em aço galvanizado a fogo, longarina e acessórios em alumínio. Inclui todos os acessórios para correta fixação dos painéis. | D43: unid. | E43: 1 | F43: ='Item 3 - 2 CV'!L38 -> 1426.53 | G43: =E43*F43 -> 1426.53
A44: 4 | C44: Condutor de 4 mm², fios de cobre, têmpera mole, encordoamento classe 5 (extraflexível), isolação em composto termofixo livre de halogênio, retardante a chamas, cobertura em composto termofixo livre de halogênio, resistente a UV. Na cor vermelha. | D44: metro | E44: 15 | F44: ='Item 4 - 1;2;3 CV'!L39 -> 5.19 | G44: =E44*F44 -> 77.85
A45: 5 | C45: Condutor de 4 mm², fios de cobre, têmpera mole, encordoamento classe 5 (extraflexível), isolação em composto termofixo livre de halogênio, retardante a chamas, cobertura em composto termofixo livre de halogênio, resistente a UV. Na cor preta | D45: metro | E45: 15 | F45: ='Item 5 - 1;2;3 CV'!L39 -> 4.96 | G45: =E45*F45 -> 74.4
A46: 6 | C46: Driver solar fotovoltaico, apropriado para motores de 2 CV, operação off-grid: | D46: und. | E46: 1 | F46: ='Item 6 - 2 CV'!L37 -> 1506.92 | G46: =E46*F46 -> 1506.92
C47: Eficiência mínima 95%, grau de proteção IP20, resfriamento natural ou com cooler integrado, garantia mínima de 5 anos, tensão de saída compatível com a motobomba, frequência 60 Hz, com sistema de partida suave da bomba e controle de velocidade, atender em plenitude os requisitos do sistema a ser instalado.
C48: Entrada de corrente contínua (CC) compatível com a quantidade de painéis fotovoltaicos propostos, com no mínimo 1 MPPT (maximum power point tracking) com faixa de tensão de operação compatível com os módulos fotovoltaicos, baixa tensão mínima para funcionamento.
C49: Saída de corrente alternada (CA) compatível com o sistema projetado, até 2 CV, temperatura de operação até 60 ºC, trifásico ou monofásico.
C50: Possuir, no mínimo as seguintes proteções: Sub e sobre tensão CC, sobreaquecimento, surtos de tensão (CC), proteção de bomba travada, proteção de curto-circuito, proteção contra funcionamento a seco e sobrecarga.
A51: ATERRAMENTO
A52: 7 | B52: 867 | C52: Cabo de cobre nu 50mm², composto por 7 fios x Ø 3,00 mm | D52: metro | E52: 20 | F52: 56.7 | G52: =E52*F52 -> 1134
A53: 8 | B53: 34643 | C53: Caixa de inspeção para aterramento, em PVC, com tampa | D53: und. | E53: 4 | F53: 35.19 | G53: =E53*F53 -> 140.76
A54: 9 | C54: Haste para aterramento, cobreada alta camada, Ø 3/4″ x 2,40 m (Ø 17,3 mm – Efetivo) | D54: und. | E54: 2 | F54: ='Item 9 - 1;2;3 CV'!L39 -> 141.84 | G54: 283.68
A55: 10 | B55: 416 | C55: Conector Cabo-Haste em Latão Estanhado para 1 Cabo com Acessórios | D55: und. | E55: 2 | F55: 10.69 | G55: 21.38
A56: 11 | B56: 1578 | C56: Terminal olhal para condutor de 50 mm² | D56: und. | E56: 2 | F56: 4.66 | G56: 9.32
A57: QUADRO DE PROTEÇÃO CC (STRINGBOX)
A58: 12 | C58: String-box CC, composta de: | D58: und. | E58: 1 | F58: ='Item 12 - 1;2;3 CV'!L39 -> 515.03 | G58: =E58*F58 -> 515.03
C59: 1 conjunto de DPS por string, com proteção classe II, apropriado para uso em sistemas fotovoltaicos, 1040 Vdc, corrente de descarga máxima 40 kA, corrente de descarga nominal de 18 kA, nível de proteção inferior a 3,5 kV, 3 polos (positivo, negativo e terra), com indicador de operação verde (em serviço) e vermelho (defeito).
C60: 1 chave seccionadora de até 32A, para corrente contínua, 1.000 Vdc, 2 polos, adequado para uso em sistemas fotovoltaicos com conexão de condutores de 2,5 até 10 mm², para instalação em trilho DIN e com jumpers tipo barramento.
C61: 1 caixa de proteção para stringbox em policarbonato, de sobrepor, trilho DIN, IP 65, proteção UV, e adequada para uso em sistemas fotovoltaicos. Deverão ser fixados através de trilho DIN
A62: ALIMENTAÇÃO DO MOTOR
A63: 13 | B63: 1014 | C63: Condutor isolado 450/750V, seção nominal de 2,5 mm², condutor de cobre têmpera mole, encordoamento classe 4 ou 5, com isolação em composto termoplástico de PVC/A (cor azul, verde, preto, branco ou vermelho, conforme aplicação) | D63: metro | E63: 80 | F63: 2.41 | G63: =E63*F63 -> 192.8
A64: 14 | B64: 40400 | C64: Duto PEAD corrugado 3/4", fabricado em Polietileno de Alta Densidade (PEAD), sendo flexível, anelar e impermeável, na cor preta, apropriado para passagens da condutores elétricos | D64: metro | E64: 20 | F64: 1.91 | G64: =E64*F64 -> 38.2
A65: 15 | B65: 41627 | C65: Caixa de passagem/inspeção em concreto, sem fundo, com tampa, 30X30 centímetros | D65: Und. | E65: 2 | F65: 183.44 | G65: =E65*F65 -> 366.88
A66: MONTAGEM E INSTALAÇÃO
A67: 16 | C67: Comissionamento das instalações | D67: Unid. | E67: 1 | F67: =G110 -> 352.44 | G67: =E67*F67 -> 352.44
A68: 17 | C68: Execução das instalações | D68: Unid. | E68: 1 | F68: =G117 -> 3662.48 | G68: =E68*F68 -> 3662.48
A69: Total Geral - KIT 2 CV | G69: =SUM(G41:G68) -> 15379.14
A72: SISTEMA DE GERAÇÃO SOLAR FOTOVOLTAICA, OFF-GRID, SEM BATERIAS, PARA SISTEMA DE IRRIGAÇÃO COM MOTOBOMBA DE ATÉ 3CV
A73: MATERIAL ELÉTRICO - A
A74: ARRANJO FOTOVOLTAICO
A75: 1 | C75: Módulo Fotovoltaico, com potência de 700 Wp STC, (ou de potência suficiente para o correto funcionamento do sistema), estrutura em liga de alumínio anodizado, caixa de junção IP 68, três diodos, eficiência superior a 19%, degradação no primeiro ano inferior a 3%, degradação do ano 2 ao 30 inferior a 0,5% ao ano, 10 anos de garantia, 20 anos de garantia de potência linear. | D75: unid. | E75: 8 | F75: ='Item 1 - 3 CV'!L39 -> 840.92 | G75: =E75*F75 -> 6727.36
A76: 2 | C76: Par (macho e fêmea) de conectores terminais tipo MC4, de 2,5 a 6 mm², 1.500 Vcc, 30 A, IP67, próprio para instalações fotovoltaicas. | D76: unid. | E76: 2 | F76: ='Item 2 - 1;2;3-CV'!L38 -> 44.51 | G76: =E76*F76 -> 89.02
A77: 3 | C77: Estrutura de solo para módulos fotovoltaicos, 8 módulos instalados, pilastra travessa e mão francesa em aço galvanizado a fogo, longarina e acessórios em alumínio. Inclui todos os acessórios para correta fixação dos painéis. | D77: unid. | E77: 1 | F77: ='Item 3 - 3 CV'!L38 -> 1508.78 | G77: 1508.78
A78: 4 | C78: Condutor de 4 mm², fios de cobre, têmpera mole, encordoamento classe 5 (extraflexível), isolação em composto termofixo livre de halogênio, retardante a chamas, cobertura em composto termofixo livre de halogênio, resistente a UV. Na cor vermelha. | D78: metro | E78: 20 | F78: ='Item 4 - 1;2;3 CV'!L39 -> 5.19 | G78: 103.8
A79: 5 | C79: Condutor de 4 mm², fios de cobre, têmpera mole, encordoamento classe 5 (extraflexível), isolação em composto termofixo livre de halogênio, retardante a chamas, cobertura em composto termofixo livre de halogênio, resistente a UV. Na cor preta | D79: metro | E79: 20 | F79: ='Item 5 - 1;2;3 CV'!L39 -> 4.96 | G79: 99.2
A80: 6 | C80: Driver solar fotovoltaico, apropriado para motores de 3 CV, operação off-grid: | D80: und. | E80: 1 | F80: ='Item 6 - 3 CV'!L36 -> 2076 | G80: 2076
C81: Eficiência mínima 95%, grau de proteção IP20, resfriamento natural ou com cooler integrado, garantia mínima de 5 anos, tensão de saída compatível com a motobomba, frequência 60 Hz, com sistema de partida suave da bomba e controle de velocidade, atender em plenitude os requisitos do sistema a ser instalado.
C82: Entrada de corrente contínua (CC) compatível com a quantidade de painéis fotovoltaicos propostos, com no mínimo 1 MPPT (maximum power point tracking) com faixa de tensão de operação compatível com os módulos fotovoltaicos, baixa tensão mínima para funcionamento.
C83: Saída de corrente alternada (CA) compatível com o sistema projetado, até 3 CV, temperatura de operação até 60 ºC, trifásico ou monofásico.
C84: Possuir, no mínimo as seguintes proteções: Sub e sobre tensão CC, sobreaquecimento, surtos de tensão (CC), proteção de bomba travada, proteção de curto-circuito, proteção contra funcionamento a seco e sobrecarga.
A85: ATERRAMENTO
A86: 7 | B86: 867 | C86: Cabo de cobre nu 50mm², composto por 7 fios x Ø 3,00 mm | D86: metro | E86: 20 | F86: 56.7 | G86: =E86*F86 -> 1134
A87: 8 | B87: 34643 | C87: Caixa de inspeção para aterramento, em PVC, com tampa | D87: und. | E87: 4 | F87: 35.19 | G87: =E87*F87 -> 140.76
A88: 9 | C88: Haste para aterramento, cobreada alta camada, Ø 3/4″ x 2,40 m (Ø 17,3 mm – Efetivo) | D88: und. | E88: 2 | F88: ='Item 9 - 1;2;3 CV'!L39 -> 141.84 | G88: =E88*F88 -> 283.68
A89: 10 | B89: 416 | C89: Conector Cabo-Haste em Latão Estanhado para 1 Cabo com Acessórios | D89: und. | E89: 2 | F89: 10.69 | G89: =E89*F89 -> 21.38
A90: 11 | B90: 1578 | C90: Terminal olhal para condutor de 50 mm² | D90: und. | E90: 2 | F90: 4.66 | G90: =E90*F90 -> 9.32
A91: QUADRO DE PROTEÇÃO CC (STRINGBOX)
A92: 12 | C92: String-box CC, composta de: | D92: und. | E92: 1 | F92: ='Item 12 - 1;2;3 CV'!L39 -> 515.03 | G92: =E92*F92 -> 515.03
C93: 1 conjunto de DPS por string, com proteção classe II, apropriado para uso em sistemas fotovoltaicos, 1040 Vdc, corrente de descarga máxima 40 kA, corrente de descarga nominal de 18 kA, nível de proteção inferior a 3,5 kV, 3 polos (positivo, negativo e terra), com indicador de operação verde (em serviço) e vermelho (defeito).
C94: 1 chave seccionadora de até 32A, para corrente contínua, 1.000 Vdc, 2 polos, adequado para uso em sistemas fotovoltaicos com conexão de condutores de 2,5 até 10 mm², para instalação em trilho DIN e com jumpers tipo barramento.
C95: 1 caixa de proteção para stringbox em policarbonato, de sobrepor, trilho DIN, IP 65, proteção UV, e adequada para uso em sistemas fotovoltaicos. Deverão ser fixados através de trilho DIN
A96: ALIMENTAÇÃO DO MOTOR
A97: 13 | B97: 1014 | C97: Condutor isolado 450/750V, seção nominal de 4 mm², condutor de cobre têmpera mole, encordoamento classe 4 ou 5, com isolação em composto termoplástico de PVC/A (cor azul, verde, preto, branco ou vermelho, conforme aplicação) | D97: metro | E97: 80 | F97: 2.41 | G97: =E97*F97 -> 192.8
A98: 14 | B98: 40400 | C98: Duto PEAD corrugado 1", fabricado em Polietileno de Alta Densidade (PEAD), sendo flexível, anelar e impermeável, na cor preta, apropriado para passagens da condutores elétricos | D98: metro | E98: 20 | F98: 1.91 | G98: =E98*F98 -> 38.2
A99: 15 | B99: 41627 | C99: Caixa de passagem/inspeção em concreto, sem fundo, com tampa, 30X30 centímetros | D99: Und. | E99: 2 | F99: 183.44 | G99: 366.88
A100: MONTAGEM E INSTALAÇÃO
A101: 16 | C101: Comissionamento das instalações | D101: Unid. | E101: 1 | F101: =G110 -> 352.44 | G101: =E101*F101 -> 352.44
A102: 17 | C102: Execução das instalações | D102: Unid. | E102: 1 | F102: =G117 -> 3662.48 | G102: =E102*F102 -> 3662.48
A103: Total Geral - KIT 3CV | G103: =SUM(G75:G102) -> 17321.13
A107: item 16 | D107: Unidade | E107: valor unitário | F107: Quant | G107: Valor total
B108: 90778 | C108: Engenheiro eletricista - Pleno | D108: Hora | E108: 135.07 | F108: 2 | G108: =E108*F108 -> 270.14
B109: 88266 | C109: Técnico eletrotécnico | D109: Hora | E109: 41.15 | F109: 2 | G109: =E109*F109 -> 82.3
B110: Total Geral - item 16 | G110: =SUM(G108:G109) -> 352.44
A112: item 17 | D112: Unidade | E112: valor unitário | F112: Quant | G112: Valor total
B113: 90778 | C113: Engenheiro eletricista - Pleno | D113: Hora | E113: 135.07 | F113: 8 | G113: =E113*F113 -> 1080.56
B114: 88266 | C114: Técnico eletrotécnico | D114: Hora | E114: 41.15 | F114: 24 | G114: =E114*F114 -> 987.6
B115: 90776 | C115: Encarregado | D115: Hora | E115: 40.87 | F115: 24 | G115: 980.88
B116: 88247 | C116: Ajudante | D116: Hora | E116: 25.56 | F116: 24 | G116: 613.44
B117: Total Geral - item 17 | G117: =SUM(G113:G116) -> 3662.48

Sheet DF
A2: SISTEMA DE GERAÇÃO SOLAR FOTOVOLTAICA, OFF-GRID, SEM BATERIAS, PARA SISTEMA DE IRRIGAÇÃO COM MOTOBOMBA PARA O DISTRITO FEDERAL
A4: ITEM | B4: CÓD | C4: DESCRIÇÃO | D4: UNID. | E4: QUANT. | F4: Valor Unitario (R$) | G4: Valor Total (R$)
A6: SISTEMA DE GERAÇÃO SOLAR FOTOVOLTAICA, OFF-GRID, SEM BATERIAS, PARA SISTEMA DE IRRIGAÇÃO COM MOTOBOMBA DE ATÉ 1CV
A7: MATERIAL ELÉTRICO - A
A8: ARRANJO FOTOVOLTAICO
A9: 1 | C9: Módulo Fotovoltaico, com potência de 570 Wp STC (ou de potência suficiente para o correto funcionamento do sistema), estrutura em liga de alumínio anodizado, caixa de junção IP 68, três diodos, eficiência superior a 19%, degradação no primeiro ano inferior a 3%, degradação do ano 2 ao 30 inferior a 0,5% ao ano, 10 anos de garantia, 20 anos de garantia de potência linear. | D9: unid. | E9: 4 | F9: ='Item 1-1;2 CV'!L39 -> 790.28 | G9: =E9*F9 -> 3161.12
A10: 2 | C10: Par (macho e fêmea) de conectores terminais tipo MC4, de 2,5 a 6 mm², 1.500 Vcc, 30 A, IP67, próprio para instalações fotovoltaicas. | D10: unid. | E10: 1 | F10: ='Item 2 - 1;2;3-CV'!L38 -> 44.51 | G10: 44.51
A11: 3 | C11: Estrutura de solo para módulos fotovoltaicos, 5 módulos instalados, pilastra travessa e mão francesa em aço galvanizado a fogo, longarina e acessórios em alumínio. Inclui todos os acessórios para correta fixação dos painéis. | D11: unid. | E11: 1 | F11: ='Item 3 - 1 CV'!L39 -> 1102.96 | G11: 1102.96
A12: 4 | C12: Condutor de 4 mm², fios de cobre, têmpera mole, encordoamento classe 5 (extraflexível), isolação em composto termofixo livre de halogênio, retardante a chamas, cobertura em composto termofixo livre de halogênio, resistente a UV. Na cor vermelha. | D12: metro | E12: 10 | F12: ='Item 4 - 1;2;3 CV'!L39 -> 5.19 | G12: 51.9
A13: 5 | C13: Condutor de 4 mm², fios de cobre, têmpera mole, encordoamento classe 5 (extraflexível), isolação em composto termofixo livre de halogênio, retardante a chamas, cobertura em composto termofixo livre de halogênio, resistente a UV. Na cor preta | D13: metro | E13: 10 | F13: ='Item 5 - 1;2;3 CV'!L39 -> 4.96 | G13: 49.6
A14: 6 | C14: Driver solar fotovoltaico, apropriado para motores de 1 CV, operação off-grid: | D14: und. | E14: 1 | F14: ='Item 6 - 1 CV'!L39 -> 1589.67 | G14: 1589.67
C15: Eficiência mínima 95%, grau de proteção IP20, resfriamento natural ou com cooler integrado, garantia mínima de 5 anos, tensão de saída compatível com a motobomba, frequência 60 Hz, com sistema de partida suave da bomba e controle de velocidade, atender em plenitude os requisitos do sistema a ser instalado.
C16: Entrada de corrente contínua (CC) compatível com a quantidade de painéis fotovoltaicos propostos, com no mínimo 1 MPPT (maximum power point tracking) com faixa de tensão de operação compatível com os módulos fotovoltaicos, baixa tensão mínima para funcionamento.
C17: Saída de corrente alternada (CA) compatível com o sistema projetado, até 1 CV, temperatura de operação até 60 ºc, trifásico ou monofásico.
C18: Possuir, no mínimo as seguintes proteções: Sub e sobre tensão CC, sobreaquecimento, surtos de tensão (CC), proteção de bomba travada, proteção de curto-circuito, proteção contra funcionamento a seco e sobrecarga.
A19: ATERRAMENTO
A20: 7 | B20: 867 | C20: Cabo de cobre nu 50mm², composto por 7 fios x Ø 3,00 mm | D20: metro | E20: 20 | F20: 65.37 | G20: =E20*F20 -> 1307.4
A21: 8 | B21: 34643 | C21: Caixa de inspeção para aterramento, em PVC, com tampa | D21: und. | E21: 4 | F21: 58.29 | G21: =E21*F21 -> 233.16
A22: 9 | B22: COT | C22: Haste para aterramento, cobreada alta camada, Ø 3/4″ x 2,40 m (Ø 17,3 mm – Efetivo) | D22: und. | E22: 2 | F22: ='Item 9 - 1;2;3 CV'!L39 -> 141.84 | G22: 283.68
A23: 10 | B23: 416 | C23: Conector Cabo-Haste em Latão Estanhado para 1 Cabo com Acessórios | D23: und. | E23: 2 | F23: 8.47 | G23: 16.94
A24: 11 | B24: 1578 | C24: Terminal olhal para condutor de 50 mm² | D24: und. | E24: 2 | F24: 6.11 | G24: 12.22
A25: QUADRO DE PROTEÇÃO CC (STRINGBOX)
A26: 12 | C26: String-box CC, composta de: | D26: und. | E26: 1 | F26: ='Item 12 - 1;2;3 CV'!L39 -> 515.03 | G26: =E26*F26 -> 515.03
C27: 1 conjunto de DPS por string, com proteção classe II, apropriado para uso em sistemas fotovoltaicos, 1040 Vdc, corrente de descarga máxima 40 kA, corrente de descarga nominal de 18 kA, nível de proteção inferior a 3,5 kV, 3 polos (positivo, negativo e terra), com indicador de operação verde (em serviço) e vermelho (defeito).
C28: 1 chave seccionadora de até 32A, para corrente contínua, 1.000 Vdc, 2 polos, adequado para uso em sistemas fotovoltaicos com conexão de condutores de 2,5 até 10 mm², para instalação em trilho DIN e com jumpers tipo barramento.
C29: 1 caixa de proteção para stringbox em policarbonato, de sobrepor, trilho DIN, IP 65, proteção UV, e adequada para uso em sistemas fotovoltaicos. Deverão ser fixados através de trilho DIN
A30: ALIMENTAÇÃO DO MOTOR
A31: 13 | B31: 1014 | C31: Condutor isolado 450/750V, seção nominal de 2,5 mm², condutor de cobre têmpera mole, encordoamento classe 4 ou 5, com isolação em composto termoplástico de PVC/A (cor azul, verde, preto, branco ou vermelho, conforme aplicação) | D31: metro | E31: 80 | F31: 2.77 | G31: =E31*F31 -> 221.6
A32: 14 | B32: 40400 | C32: Duto PEAD corrugado 3/4", fabricado em Polietileno de Alta Densidade (PEAD), sendo flexível, anelar e impermeável, na cor preta, apropriado para passagens da condutores elétricos | D32: metro | E32: 20 | F32: 1.7 | G32: =E32*F32 -> 34
A33: 15 | B33: 41627 | C33: Caixa de passagem/inspeção em concreto, sem fundo, com tampa, 30X30 centímetros | D33: Und. | E33: 2 | F33: 185.77 | G33: =E33*F33 -> 371.54
A34: MONTAGEM E INSTALAÇÃO
A35: 16 | C35: Comissionamento das instalações | D35: Unid. | E35: 1 | F35: =G110 -> 380.62 | G35: =E35*F35 -> 380.62
A36: 17 | C36: Execução das instalações | D36: Unid. | E36: 1 | F36: =G117 -> 3429.6 | G36: =E36*F36 -> 3429.6
A37: Total Geral - KIT 1 CV | G37: =SUM(G9:G36) -> 12805.55
A38: SISTEMA DE GERAÇÃO SOLAR FOTOVOLTAICA, OFF-GRID, SEM BATERIAS, PARA SISTEMA DE IRRIGAÇÃO COM MOTOBOMBA DE ATÉ 2CV
A39: MATERIAL ELÉTRICO - A
A40: ARRANJO FOTOVOLTAICO
A41: 1 | C41: Módulo Fotovoltaico, com potência de 570 Wp STC, (ou de potência suficiente para o correto funcionamento do sistema), estrutura em liga de alumínio anodizado, caixa de junção IP 68, três diodos, eficiência superior a 19%, degradação no primeiro ano inferior a 3%, degradação do ano 2 ao 30 inferior a 0,5% ao ano, 10 anos de garantia, 20 anos de garantia de potência linear. | D41: unid. | E41: 6 | F41: ='Item 1-1;2 CV'!L39 -> 790.28 | G41: =E41*F41 -> 4741.68
A42: 2 | C42: Par (macho e fêmea) de conectores terminais tipo MC4, de 2,5 a 6 mm², 1.500 Vcc, 30 A, IP67, próprio para instalações fotovoltaicas. | D42: unid. | E42: 1 | F42: ='Item 2 - 1;2;3-CV'!L38 -> 44.51 | G42: =E42*F42 -> 44.51
A43: 3 | C43: Estrutura de solo para módulos fotovoltaicos, 6 módulos instalados, pilastra travessa e mão francesa em aço galvanizado a fogo, longarina e acessórios em alumínio. Inclui todos os acessórios para correta fixação dos painéis. | D43: unid. | E43: 1 | F43: ='Item 3 - 2 CV'!L38 -> 1426.53 | G43: =E43*F43 -> 1426.53
A44: 4 | C44: Condutor de 4 mm², fios de cobre, têmpera mole, encordoamento classe 5 (extraflexível), isolação em composto termofixo livre de halogênio, retardante a chamas, cobertura em composto termofixo livre de halogênio, resistente a UV. Na cor vermelha. | D44: metro | E44: 15 | F44: ='Item 4 - 1;2;3 CV'!L39 -> 5.19 | G44: =E44*F44 -> 77.85
A45: 5 | C45: Condutor de 4 mm², fios de cobre, têmpera mole, encordoamento classe 5 (extraflexível), isolação em composto termofixo livre de halogênio, retardante a chamas, cobertura em composto termofixo livre de halogênio, resistente a UV. Na cor preta | D45: metro | E45: 15 | F45: ='Item 5 - 1;2;3 CV'!L39 -> 4.96 | G45: =E45*F45 -> 74.4
A46: 6 | C46: Driver solar fotovoltaico, apropriado para motores de 2 CV, operação off-grid: | D46: und. | E46: 1 | F46: ='Item 6 - 2 CV'!L37 -> 1506.92 | G46: =E46*F46 -> 1506.92
C47: Eficiência mínima 95%, grau de proteção IP20, resfriamento natural ou com cooler integrado, garantia mínima de 5 anos, tensão de saída compatível com a motobomba, frequência 60 Hz, com sistema de partida suave da bomba e controle de velocidade, atender em plenitude os requisitos do sistema a ser instalado.
C48: Entrada de corrente contínua (CC) compatível com a quantidade de painéis fotovoltaicos propostos, com no mínimo 1 MPPT (maximum power point tracking) com faixa de tensão de operação compatível com os módulos fotovoltaicos, baixa tensão mínima para funcionamento.
C49: Saída de corrente alternada (CA) compatível com o sistema projetado, até 2 CV, temperatura de operação até 60 ºC, trifásico ou monofásico.
C50: Possuir, no mínimo as seguintes proteções: Sub e sobre tensão CC, sobreaquecimento, surtos de tensão (CC), proteção de bomba travada, proteção de curto-circuito, proteção contra funcionamento a seco e sobrecarga.
A51: ATERRAMENTO
A52: 7 | B52: 867 | C52: Cabo de cobre nu 50mm², composto por 7 fios x Ø 3,00 mm | D52: metro | E52: 20 | F52: 65.37 | G52: =E52*F52 -> 1307.4
A53: 8 | B53: 34643 | C53: Caixa de inspeção para aterramento, em PVC, com tampa | D53: und. | E53: 4 | F53: 58.29 | G53: =E53*F53 -> 233.16
A54: 9 | C54: Haste para aterramento, cobreada alta camada, Ø 3/4″ x 2,40 m (Ø 17,3 mm – Efetivo) | D54: und. | E54: 2 | F54: ='Item 9 - 1;2;3 CV'!L39 -> 141.84 | G54: 283.68
A55: 10 | B55: 416 | C55: Conector Cabo-Haste em Latão Estanhado para 1 Cabo com Acessórios | D55: und. | E55: 2 | F55: 8.47 | G55: 16.94
A56: 11 | B56: 1578 | C56: Terminal olhal para condutor de 50 mm² | D56: und. | E56: 2 | F56: 6.11 | G56: 12.22
A57: QUADRO DE PROTEÇÃO CC (STRINGBOX)
A58: 12 | C58: String-box CC, composta de: | D58: und. | E58: 1 | F58: ='Item 12 - 1;2;3 CV'!L39 -> 515.03 | G58: =E58*F58 -> 515.03
C59: 1 conjunto de DPS por string, com proteção classe II, apropriado para uso em sistemas fotovoltaicos, 1040 Vdc, corrente de descarga máxima 40 kA, corrente de descarga nominal de 18 kA, nível de proteção inferior a 3,5 kV, 3 polos (positivo, negativo e terra), com indicador de operação verde (em serviço) e vermelho (defeito).
C60: 1 chave seccionadora de até 32A, para corrente contínua, 1.000 Vdc, 2 polos, adequado para uso em sistemas fotovoltaicos com conexão de condutores de 2,5 até 10 mm², para instalação em trilho DIN e com jumpers tipo barramento.
C61: 1 caixa de proteção para stringbox em policarbonato, de sobrepor, trilho DIN, IP 65, proteção UV, e adequada para uso em sistemas fotovoltaicos. Deverão ser fixados através de trilho DIN
A62: ALIMENTAÇÃO DO MOTOR
A63: 13 | B63: 1014 | C63: Condutor isolado 450/750V, seção nominal de 2,5 mm², condutor de cobre têmpera mole, encordoamento classe 4 ou 5, com isolação em composto termoplástico de PVC/A (cor azul, verde, preto, branco ou vermelho, conforme aplicação) | D63: metro | E63: 80 | F63: 2.77 | G63: =E63*F63 -> 221.6
A64: 14 | B64: 40400 | C64: Duto PEAD corrugado 3/4", fabricado em Polietileno de Alta Densidade (PEAD), sendo flexível, anelar e impermeável, na cor preta, apropriado para passagens da condutores elétricos | D64: metro | E64: 20 | F64: 1.7 | G64: =E64*F64 -> 34
A65: 15 | B65: 41627 | C65: Caixa de passagem/inspeção em concreto, sem fundo, com tampa, 30X30 centímetros | D65: Und. | E65: 2 | F65: 185.77 | G65: =E65*F65 -> 371.54
A66: MONTAGEM E INSTALAÇÃO
A67: 16 | C67: Comissionamento das instalações | D67: Unid. | E67: 1 | F67: =G110 -> 380.62 | G67: =E67*F67 -> 380.62
A68: 17 | C68: Execução das instalações | D68: Unid. | E68: 1 | F68: =G117 -> 3429.6 | G68: =E68*F68 -> 3429.6
A69: Total Geral - KIT 2 CV | G69: =SUM(G41:G68) -> 14677.68
A72: SISTEMA DE GERAÇÃO SOLAR FOTOVOLTAICA, OFF-GRID, SEM BATERIAS, PARA SISTEMA DE IRRIGAÇÃO COM MOTOBOMBA DE ATÉ 3CV
A73: MATERIAL ELÉTRICO - A
A74: ARRANJO FOTOVOLTAICO
A75: 1 | C75: Módulo Fotovoltaico, com potência de 700 Wp STC, (ou de potência suficiente para o correto funcionamento do sistema), estrutura em liga de alumínio anodizado, caixa de junção IP 68, três diodos, eficiência superior a 19%, degradação no primeiro ano inferior a 3%, degradação do ano 2 ao 30 inferior a 0,5% ao ano, 10 anos de garantia, 20 anos de garantia de potência linear. | D75: unid. | E75: 7 | F75: ='Item 1 - 3 CV'!L39 -> 840.92 | G75: =E75*F75 -> 5886.44
A76: 2 | C76: Par (macho e fêmea) de conectores terminais tipo MC4, de 2,5 a 6 mm², 1.500 Vcc, 30 A, IP67, próprio para instalações fotovoltaicas. | D76: unid. | E76: 2 | F76: ='Item 2 - 1;2;3-CV'!L38 -> 44.51 | G76: =E76*F76 -> 89.02
A77: 3 | C77: Estrutura de solo para módulos fotovoltaicos, 8 módulos instalados, pilastra travessa e mão francesa em aço galvanizado a fogo, longarina e acessórios em alumínio. Inclui todos os acessórios para correta fixação dos painéis. | D77: unid. | E77: 1 | F77: ='Item 3 - 3 CV'!L38 -> 1508.78 | G77: 1508.78
A78: 4 | C78: Condutor de 4 mm², fios de cobre, têmpera mole, encordoamento classe 5 (extraflexível), isolação em composto termofixo livre de halogênio, retardante a chamas, cobertura em composto termofixo livre de halogênio, resistente a UV. Na cor vermelha. | D78: metro | E78: 20 | F78: ='Item 4 - 1;2;3 CV'!L39 -> 5.19 | G78: 103.8
A79: 5 | C79: Condutor de 4 mm², fios de cobre, têmpera mole, encordoamento classe 5 (extraflexível), isolação em composto termofixo livre de halogênio, retardante a chamas, cobertura em composto termofixo livre de halogênio, resistente a UV. Na cor preta | D79: metro | E79: 20 | F79: ='Item 5 - 1;2;3 CV'!L39 -> 4.96 | G79: 99.2
A80: 6 | C80: Driver solar fotovoltaico, apropriado para motores de 3 CV, operação off-grid: | D80: und. | E80: 1 | F80: ='Item 6 - 3 CV'!L36 -> 2076 | G80: 2076
C81: Eficiência mínima 95%, grau de proteção IP20, resfriamento natural ou com cooler integrado, garantia mínima de 5 anos, tensão de saída compatível com a motobomba, frequência 60 Hz, com sistema de partida suave da bomba e controle de velocidade, atender em plenitude os requisitos do sistema a ser instalado.
C82: Entrada de corrente contínua (CC) compatível com a quantidade de painéis fotovoltaicos propostos, com no mínimo 1 MPPT (maximum power point tracking) com faixa de tensão de operação compatível com os módulos fotovoltaicos, baixa tensão mínima para funcionamento.
C83: Saída de corrente alternada (CA) compatível com o sistema projetado, até 3 CV, temperatura de operação até 60 ºC, trifásico ou monofásico.
C84: Possuir, no mínimo as seguintes proteções: Sub e sobre tensão CC, sobreaquecimento, surtos de tensão (CC), proteção de bomba travada, proteção de curto-circuito, proteção contra funcionamento a seco e sobrecarga.
A85: ATERRAMENTO
A86: 7 | B86: 867 | C86: Cabo de cobre nu 50mm², composto por 7 fios x Ø 3,00 mm | D86: metro | E86: 20 | F86: 65.37 | G86: =E86*F86 -> 1307.4
A87: 8 | B87: 34643 | C87: Caixa de inspeção para aterramento, em PVC, com tampa | D87: und. | E87: 4 | F87: 58.29 | G87: =E87*F87 -> 233.16
A88: 9 | C88: Haste para aterramento, cobreada alta camada, Ø 3/4″ x 2,40 m (Ø 17,3 mm – Efetivo) | D88: und. | E88: 2 | F88: ='Item 9 - 1;2;3 CV'!L39 -> 141.84 | G88: =E88*F88 -> 283.68
A89: 10 | B89: 416 | C89: Conector Cabo-Haste em Latão Estanhado para 1 Cabo com Acessórios | D89: und. | E89: 2 | F89: 8.47 | G89: =E89*F89 -> 16.94
A90: 11 | B90: 1578 | C90: Terminal olhal para condutor de 50 mm² | D90: und. | E90: 2 | F90: 6.11 | G90: =E90*F90 -> 12.22
A91: QUADRO DE PROTEÇÃO CC (STRINGBOX)
A92: 12 | C92: String-box CC, composta de: | D92: und. | E92: 1 | F92: ='Item 12 - 1;2;3 CV'!L39 -> 515.03 | G92: =E92*F92 -> 515.03
C93: 1 conjunto de DPS por string, com proteção classe II, apropriado para uso em sistemas fotovoltaicos, 1040 Vdc, corrente de descarga máxima 40 kA, corrente de descarga nominal de 18 kA, nível de proteção inferior a 3,5 kV, 3 polos (positivo, negativo e terra), com indicador de operação verde (em serviço) e vermelho (defeito).
C94: 1 chave seccionadora de até 32A, para corrente contínua, 1.000 Vdc, 2 polos, adequado para uso em sistemas fotovoltaicos com conexão de condutores de 2,5 até 10 mm², para instalação em trilho DIN e com jumpers tipo barramento.
C95: 1 caixa de proteção para stringbox em policarbonato, de sobrepor, trilho DIN, IP 65, proteção UV, e adequada para uso em sistemas fotovoltaicos. Deverão ser fixados através de trilho DIN
A96: ALIMENTAÇÃO DO MOTOR
A97: 13 | B97: 1014 | C97: Condutor isolado 450/750V, seção nominal de 4 mm², condutor de cobre têmpera mole, encordoamento classe 4 ou 5, com isolação em composto termoplástico de PVC/A (cor azul, verde, preto, branco ou vermelho, conforme aplicação) | D97: metro | E97: 80 | F97: 2.77 | G97: =E97*F97 -> 221.6
A98: 14 | B98: 40400 | C98: Duto PEAD corrugado 1", fabricado em Polietileno de Alta Densidade (PEAD), sendo flexível, anelar e impermeável, na cor preta, apropriado para passagens da condutores elétricos | D98: metro | E98: 20 | F98: 1.7 | G98: =E98*F98 -> 34
A99: 15 | B99: 41627 | C99: Caixa de passagem/inspeção em concreto, sem fundo, com tampa, 30X30 centímetros | D99: Und. | E99: 2 | F99: 185.77 | G99: 371.54
A100: MONTAGEM E INSTALAÇÃO
A101: 16 | C101: Comissionamento das instalações | D101: Unid. | E101: 1 | F101: =G110 -> 380.62 | G101: =E101*F101 -> 380.62
A102: 17 | C102: Execução das instalações | D102: Unid. | E102: 1 | F102: =G117 -> 3429.6 | G102: =E102*F102 -> 3429.6
A103: Total Geral - KIT 3CV | G103: =SUM(G75:G102) -> 16569.03
A107: item 16 | D107: Unidade | E107: valor unitário | F107: Quant | G107: Valor total
B108: 90778 | C108: Engenheiro eletricista - Pleno | D108: Hora | E108: 150.27 | F108: 2 | G108: =E108*F108 -> 300.54
B109: 88266 | C109: Técnico eletrotécnico | D109: Hora | E109: 40.04 | F109: 2 | G109: =E109*F109 -> 80.08
A110: Total Geral - item 16 | B110: Total Geral - item 16 | G110: =SUM(G108:G109) -> 380.62
A112: item 17 | D112: Unidade | E112: valor unitário | F112: Quant | G112: Valor total
B113: 90778 | C113: Engenheiro eletricista - Pleno | D113: Hora | E113: 150.27 | F113: 8 | G113: =E113*F113 -> 1202.16
B114: 88266 | C114: Técnico eletrotécnico | D114: Hora | E114: 40.04 | F114: 24 | G114: =E114*F114 -> 960.96
B115: 90776 | C115: Encarregado | D115: Hora | E115: 26.51 | F115: 24 | G115: 636.24
B116: 88247 | C116: Ajudante | D116: Hora | E116: 26.26 | F116: 24 | G116: 630.24
A117: Total Geral - item 17 | B117: Total Geral - item 17 | G117: =SUM(G113:G116) -> 3429.6

Sheet MA
A2: SISTEMA DE GERAÇÃO SOLAR FOTOVOLTAICA, OFF-GRID, SEM BATERIAS, PARA SISTEMA DE IRRIGAÇÃO COM MOTOBOMBA PARA O ESTADO DO MARANHÃO
A4: ITEM | B4: CÓD | C4: DESCRIÇÃO | D4: UNID. | E4: QUANT. | F4: Valor Unitario (R$) | G4: Valor Total (R$)
A6: SISTEMA DE GERAÇÃO SOLAR FOTOVOLTAICA, OFF-GRID, SEM BATERIAS, PARA SISTEMA DE IRRIGAÇÃO COM MOTOBOMBA DE ATÉ 1CV
A7: MATERIAL ELÉTRICO - A
A8: ARRANJO FOTOVOLTAICO
A9: 1 | C9: Módulo Fotovoltaico, com potência de 570 Wp STC (ou de potência suficiente para o correto funcionamento do sistema), estrutura em liga de alumínio anodizado, caixa de junção IP 68, três diodos, eficiência superior a 19%, degradação no primeiro ano inferior a 3%, degradação do ano 2 ao 30 inferior a 0,5% ao ano, 10 anos de garantia, 20 anos de garantia de potência linear. | D9: unid. | E9: 4 | F9: ='Item 1-1;2 CV'!L39 -> 790.28 | G9: =E9*F9 -> 3161.12
A10: 2 | C10: Par (macho e fêmea) de conectores terminais tipo MC4, de 2,5 a 6 mm², 1.500 Vcc, 30 A, IP67, próprio para instalações fotovoltaicas. | D10: unid. | E10: 1 | F10: ='Item 2 - 1;2;3-CV'!L38 -> 44.51 | G10: 44.51
A11: 3 | C11: Estrutura de solo para módulos fotovoltaicos, 5 módulos instalados, pilastra travessa e mão francesa em aço galvanizado a fogo, longarina e acessórios em alumínio. Inclui todos os acessórios para correta fixação dos painéis. | D11: unid. | E11: 1 | F11: ='Item 3 - 1 CV'!L39 -> 1102.96 | G11: 1102.96
A12: 4 | C12: Condutor de 4 mm², fios de cobre, têmpera mole, encordoamento classe 5 (extraflexível), isolação em composto termofixo livre de halogênio, retardante a chamas, cobertura em composto termofixo livre de halogênio, resistente a UV. Na cor vermelha. | D12: metro | E12: 10 | F12: ='Item 4 - 1;2;3 CV'!L39 -> 5.19 | G12: 51.9
A13: 5 | C13: Condutor de 4 mm², fios de cobre, têmpera mole, encordoamento classe 5 (extraflexível), isolação em composto termofixo livre de halogênio, retardante a chamas, cobertura em composto termofixo livre de halogênio, resistente a UV. Na cor preta | D13: metro | E13: 10 | F13: ='Item 5 - 1;2;3 CV'!L39 -> 4.96 | G13: 49.6
A14: 6 | C14: Driver solar fotovoltaico, apropriado para motores de 1 CV, operação off-grid: | D14: und. | E14: 1 | F14: ='Item 6 - 1 CV'!L39 -> 1589.67 | G14: 1589.67
C15: Eficiência mínima 95%, grau de proteção IP20, resfriamento natural ou com cooler integrado, garantia mínima de 5 anos, tensão de saída compatível com a motobomba, frequência 60 Hz, com sistema de partida suave da bomba e controle de velocidade, atender em plenitude os requisitos do sistema a ser instalado.
C16: Entrada de corrente contínua (CC) compatível com a quantidade de painéis fotovoltaicos propostos, com no mínimo 1 MPPT (maximum power point tracking) com faixa de tensão de operação compatível com os módulos fotovoltaicos, baixa tensão mínima para funcionamento.
C17: Saída de corrente alternada (CA) compatível com o sistema projetado, até 1 CV, temperatura de operação até 60 ºc, trifásico ou monofásico.
C18: Possuir, no mínimo as seguintes proteções: Sub e sobre tensão CC, sobreaquecimento, surtos de tensão (CC), proteção de bomba travada, proteção de curto-circuito, proteção contra funcionamento a seco e sobrecarga.
A19: ATERRAMENTO
A20: 7 | B20: 867 | C20: Cabo de cobre nu 50mm², composto por 7 fios x Ø 3,00 mm | D20: metro | E20: 20 | F20: 63.95 | G20: =E20*F20 -> 1279
A21: 8 | B21: 34643 | C21: Caixa de inspeção para aterramento, em PVC, com tampa | D21: und. | E21: 4 | F21: 45.5 | G21: =E21*F21 -> 182
A22: 9 | C22: Haste para aterramento, cobreada alta camada, Ø 3/4″ x 2,40 m (Ø 17,3 mm – Efetivo) | D22: und. | E22: 2 | F22: ='Item 9 - 1;2;3 CV'!L39 -> 141.84 | G22: 283.68
A23: 10 | B23: 416 | C23: Conector Cabo-Haste em Latão Estanhado para 1 Cabo com Acessórios | D23: und. | E23: 2 | F23: 10.77 | G23: 21.54
A24: 11 | B24: 1578 | C24: Terminal olhal para condutor de 50 mm² | D24: und. | E24: 2 | F24: 6.18 | G24: 12.36
A25: QUADRO DE PROTEÇÃO CC (STRINGBOX)
A26: 12 | C26: String-box CC, composta de: | D26: und. | E26: 1 | F26: ='Item 12 - 1;2;3 CV'!L39 -> 515.03 | G26: =E26*F26 -> 515.03
C27: 1 conjunto de DPS por string, com proteção classe II, apropriado para uso em sistemas fotovoltaicos, 1040 Vdc, corrente de descarga máxima 40 kA, corrente de descarga nominal de 18 kA, nível de proteção inferior a 3,5 kV, 3 polos (positivo, negativo e terra), com indicador de operação verde (em serviço) e vermelho (defeito).
C28: 1 chave seccionadora de até 32A, para corrente contínua, 1.000 Vdc, 2 polos, adequado para uso em sistemas fotovoltaicos com conexão de condutores de 2,5 até 10 mm², para instalação em trilho DIN e com jumpers tipo barramento.
C29: 1 caixa de proteção para stringbox em policarbonato, de sobrepor, trilho DIN, IP 65, proteção UV, e adequada para uso em sistemas fotovoltaicos. Deverão ser fixados através de trilho DIN
A30: ALIMENTAÇÃO DO MOTOR
A31: 13 | B31: 1014 | C31: Condutor isolado 450/750V, seção nominal de 2,5 mm², condutor de cobre têmpera mole, encordoamento classe 4 ou 5, com isolação em composto termoplástico de PVC/A (cor azul, verde, preto, branco ou vermelho, conforme aplicação) | D31: metro | E31: 80 | F31: 2.71 | G31: =E31*F31 -> 216.8
A32: 14 | B32: 40400 | C32: Duto PEAD corrugado 3/4", fabricado em Polietileno de Alta Densidade (PEAD), sendo flexível, anelar e impermeável, na cor preta, apropriado para passagens da condutores elétricos | D32: metro | E32: 20 | F32: 1.9 | G32: =E32*F32 -> 38
A33: 15 | B33: 41627 | C33: Caixa de passagem/inspeção em concreto, sem fundo, com tampa, 30X30 centímetros | D33: Und. | E33: 2 | F33: 200.54 | G33: =E33*F33 -> 401.08
A34: MONTAGEM E INSTALAÇÃO
A35: 16 | C35: Comissionamento das instalações | D35: Unid. | E35: 1 | F35: =G110 -> 326.38 | G35: =E35*F35 -> 326.38
A36: 17 | C36: Execução das instalações | D36: Unid. | E36: 1 | F36: =G117 -> 3207.2 | G36: =E36*F36 -> 3207.2
A37: Total Geral - KIT 1 CV | G37: =SUM(G9:G36) -> 12482.83
A38: SISTEMA DE GERAÇÃO SOLAR FOTOVOLTAICA, OFF-GRID, SEM BATERIAS, PARA SISTEMA DE IRRIGAÇÃO COM MOTOBOMBA DE ATÉ 2CV
A39: MATERIAL ELÉTRICO - A
A40: ARRANJO FOTOVOLTAICO
A41: 1 | C41: Módulo Fotovoltaico, com potência de 570 Wp STC, (ou de potência suficiente para o correto funcionamento do sistema), estrutura em liga de alumínio anodizado, caixa de junção IP 68, três diodos, eficiência superior a 19%, degradação no primeiro ano inferior a 3%, degradação do ano 2 ao 30 inferior a 0,5% ao ano, 10 anos de garantia, 20 anos de garantia de potência linear. | D41: unid. | E41: 6 | F41: ='Item 1-1;2 CV'!L39 -> 790.28 | G41: =E41*F41 -> 4741.68
A42: 2 | C42: Par (macho e fêmea) de conectores terminais tipo MC4, de 2,5 a 6 mm², 1.500 Vcc, 30 A, IP67, próprio para instalações fotovoltaicas. | D42: unid. | E42: 1 | F42: ='Item 2 - 1;2;3-CV'!L38 -> 44.51 | G42: =E42*F42 -> 44.51
A43: 3 | C43: Estrutura de solo para módulos fotovoltaicos, 6 módulos instalados, pilastra travessa e mão francesa em aço galvanizado a fogo, longarina e acessórios em alumínio. Inclui todos os acessórios para correta fixação dos painéis. | D43: unid. | E43: 1 | F43: ='Item 3 - 2 CV'!L38 -> 1426.53 | G43: =E43*F43 -> 1426.53
A44: 4 | C44: Condutor de 4 mm², fios de cobre, têmpera mole, encordoamento classe 5 (extraflexível), isolação em composto termofixo livre de halogênio, retardante a chamas, cobertura em composto termofixo livre de halogênio, resistente a UV. Na cor vermelha. | D44: metro | E44: 15 | F44: ='Item 4 - 1;2;3 CV'!L39 -> 5.19 | G44: =E44*F44 -> 77.85
A45: 5 | C45: Condutor de 4 mm², fios de cobre, têmpera mole, encordoamento classe 5 (extraflexível), isolação em composto termofixo livre de halogênio, retardante a chamas, cobertura em composto termofixo livre de halogênio, resistente a UV. Na cor preta | D45: metro | E45: 15 | F45: ='Item 5 - 1;2;3 CV'!L39 -> 4.96 | G45: =E45*F45 -> 74.4
A46: 6 | C46: Driver solar fotovoltaico, apropriado para motores de 2 CV, operação off-grid: | D46: und. | E46: 1 | F46: ='Item 6 - 2 CV'!L37 -> 1506.92 | G46: =E46*F46 -> 1506.92
C47: Eficiência mínima 95%, grau de proteção IP20, resfriamento natural ou com cooler integrado, garantia mínima de 5 anos, tensão de saída compatível com a motobomba, frequência 60 Hz, com sistema de partida suave da bomba e controle de velocidade, atender em plenitude os requisitos do sistema a ser instalado.
C48: Entrada de corrente contínua (CC) compatível com a quantidade de painéis fotovoltaicos propostos, com no mínimo 1 MPPT (maximum power point tracking) com faixa de tensão de operação compatível com os módulos fotovoltaicos, baixa tensão mínima para funcionamento.
C49: Saída de corrente alternada (CA) compatível com o sistema projetado, até 2 CV, temperatura de operação até 60 ºC, trifásico ou monofásico.
C50: Possuir, no mínimo as seguintes proteções: Sub e sobre tensão CC, sobreaquecimento, surtos de tensão (CC), proteção de bomba travada, proteção de curto-circuito, proteção contra funcionamento a seco e sobrecarga.
A51: ATERRAMENTO
A52: 7 | B52: 867 | C52: Cabo de cobre nu 50mm², composto por 7 fios x Ø 3,00 mm | D52: metro | E52: 20 | F52: 63.95 | G52: =E52*F52 -> 1279
A53: 8 | B53: 34643 | C53: Caixa de inspeção para aterramento, em PVC, com tampa | D53: und. | E53: 4 | F53: 45.5 | G53: =E53*F53 -> 182
A54: 9 | C54: Haste para aterramento, cobreada alta camada, Ø 3/4″ x 2,40 m (Ø 17,3 mm – Efetivo) | D54: und. | E54: 2 | F54: ='Item 9 - 1;2;3 CV'!L39 -> 141.84 | G54: 283.68
A55: 10 | B55: 416 | C55: Conector Cabo-Haste em Latão Estanhado para 1 Cabo com Acessórios | D55: und. | E55: 2 | F55: 10.77 | G55: 21.54
A56: 11 | B56: 1578 | C56: Terminal olhal para condutor de 50 mm² | D56: und. | E56: 2 | F56: 6.18 | G56: 12.36
A57: QUADRO DE PROTEÇÃO CC (STRINGBOX)
A58: 12 | C58: String-box CC, composta de: | D58: und. | E58: 1 | F58: ='Item 12 - 1;2;3 CV'!L39 -> 515.03 | G58: =E58*F58 -> 515.03
C59: 1 conjunto de DPS por string, com proteção classe II, apropriado para uso em sistemas fotovoltaicos, 1040 Vdc, corrente de descarga máxima 40 kA, corrente de descarga nominal de 18 kA, nível de proteção inferior a 3,5 kV, 3 polos (positivo, negativo e terra), com indicador de operação verde (em serviço) e vermelho (defeito).
C60: 1 chave seccionadora de até 32A, para corrente contínua, 1.000 Vdc, 2 polos, adequado para uso em sistemas fotovoltaicos com conexão de condutores de 2,5 até 10 mm², para instalação em trilho DIN e com jumpers tipo barramento.
C61: 1 caixa de proteção para stringbox em policarbonato, de sobrepor, trilho DIN, IP 65, proteção UV, e adequada para uso em sistemas fotovoltaicos. Deverão ser fixados através de trilho DIN
A62: ALIMENTAÇÃO DO MOTOR
A63: 13 | B63: 1014 | C63: Condutor isolado 450/750V, seção nominal de 2,5 mm², condutor de cobre têmpera mole, encordoamento classe 4 ou 5, com isolação em composto termoplástico de PVC/A (cor azul, verde, preto, branco ou vermelho, conforme aplicação) | D63: metro | E63: 80 | F63: 2.71 | G63: =E63*F63 -> 216.8
A64: 14 | B64: 40400 | C64: Duto PEAD corrugado 3/4", fabricado em Polietileno de Alta Densidade (PEAD), sendo flexível, anelar e impermeável, na cor preta, apropriado para passagens da condutores elétricos | D64: metro | E64: 20 | F64: 1.9 | G64: =E64*F64 -> 38
A65: 15 | B65: 41627 | C65: Caixa de passagem/inspeção em concreto, sem fundo, com tampa, 30X30 centímetros | D65: Und. | E65: 2 | F65: 200.54 | G65: =E65*F65 -> 401.08
A66: MONTAGEM E INSTALAÇÃO
A67: 16 | C67: Comissionamento das instalações | D67: Unid. | E67: 1 | F67: =G110 -> 326.38 | G67: =E67*F67 -> 326.38
A68: 17 | C68: Execução das instalações | D68: Unid. | E68: 1 | F68: =G117 -> 3207.2 | G68: =E68*F68 -> 3207.2
A69: Total Geral - KIT 2 CV | G69: =SUM(G41:G68) -> 14354.96
A72: SISTEMA DE GERAÇÃO SOLAR FOTOVOLTAICA, OFF-GRID, SEM BATERIAS, PARA SISTEMA DE IRRIGAÇÃO COM MOTOBOMBA DE ATÉ 3CV
A73: MATERIAL ELÉTRICO - A
A74: ARRANJO FOTOVOLTAICO
A75: 1 | C75: Módulo Fotovoltaico, com potência de 700 Wp STC, (ou de potência suficiente para o correto funcionamento do sistema), estrutura em liga de alumínio anodizado, caixa de junção IP 68, três diodos, eficiência superior a 19%, degradação no primeiro ano inferior a 3%, degradação do ano 2 ao 30 inferior a 0,5% ao ano, 10 anos de garantia, 20 anos de garantia de potência linear. | D75: unid. | E75: 7 | F75: ='Item 1 - 3 CV'!L39 -> 840.92 | G75: =E75*F75 -> 5886.44
A76: 2 | C76: Par (macho e fêmea) de conectores terminais tipo MC4, de 2,5 a 6 mm², 1.500 Vcc, 30 A, IP67, próprio para instalações fotovoltaicas. | D76: unid. | E76: 2 | F76: ='Item 2 - 1;2;3-CV'!L38 -> 44.51 | G76: =E76*F76 -> 89.02
A77: 3 | C77: Estrutura de solo para módulos fotovoltaicos, 8 módulos instalados, pilastra travessa e mão francesa em aço galvanizado a fogo, longarina e acessórios em alumínio. Inclui todos os acessórios para correta fixação dos painéis. | D77: unid. | E77: 1 | F77: ='Item 3 - 3 CV'!L38 -> 1508.78 | G77: 1508.78
A78: 4 | C78: Condutor de 4 mm², fios de cobre, têmpera mole, encordoamento classe 5 (extraflexível), isolação em composto termofixo livre de halogênio, retardante a chamas, cobertura em composto termofixo livre de halogênio, resistente a UV. Na cor vermelha. | D78: metro | E78: 20 | F78: ='Item 4 - 1;2;3 CV'!L39 -> 5.19 | G78: 103.8
A79: 5 | C79: Condutor de 4 mm², fios de cobre, têmpera mole, encordoamento classe 5 (extraflexível), isolação em composto termofixo livre de halogênio, retardante a chamas, cobertura em composto termofixo livre de halogênio, resistente a UV. Na cor preta | D79: metro | E79: 20 | F79: ='Item 5 - 1;2;3 CV'!L39 -> 4.96 | G79: 99.2
A80: 6 | C80: Driver solar fotovoltaico, apropriado para motores de 3 CV, operação off-grid: | D80: und. | E80: 1 | F80: ='Item 6 - 3 CV'!L36 -> 2076 | G80: 2076
C81: Eficiência mínima 95%, grau de proteção IP20, resfriamento natural ou com cooler integrado, garantia mínima de 5 anos, tensão de saída compatível com a motobomba, frequência 60 Hz, com sistema de partida suave da bomba e controle de velocidade, atender em plenitude os requisitos do sistema a ser instalado.
C82: Entrada de corrente contínua (CC) compatível com a quantidade de painéis fotovoltaicos propostos, com no mínimo 1 MPPT (maximum power point tracking) com faixa de tensão de operação compatível com os módulos fotovoltaicos, baixa tensão mínima para funcionamento.
C83: Saída de corrente alternada (CA) compatível com o sistema projetado, até 3 CV, temperatura de operação até 60 ºC, trifásico ou monofásico.
C84: Possuir, no mínimo as seguintes proteções: Sub e sobre tensão CC, sobreaquecimento, surtos de tensão (CC), proteção de bomba travada, proteção de curto-circuito, proteção contra funcionamento a seco e sobrecarga.
A85: ATERRAMENTO
A86: 7 | B86: 867 | C86: Cabo de cobre nu 50mm², composto por 7 fios x Ø 3,00 mm | D86: metro | E86: 20 | F86: 63.95 | G86: =E86*F86 -> 1279
A87: 8 | B87: 34643 | C87: Caixa de inspeção para aterramento, em PVC, com tampa | D87: und. | E87: 4 | F87: 45.5 | G87: =E87*F87 -> 182
A88: 9 | C88: Haste para aterramento, cobreada alta camada, Ø 3/4″ x 2,40 m (Ø 17,3 mm – Efetivo) | D88: und. | E88: 2 | F88: ='Item 9 - 1;2;3 CV'!L39 -> 141.84 | G88: =E88*F88 -> 283.68
A89: 10 | B89: 416 | C89: Conector Cabo-Haste em Latão Estanhado para 1 Cabo com Acessórios | D89: und. | E89: 2 | F89: 10.77 | G89: =E89*F89 -> 21.54
A90: 11 | B90: 1578 | C90: Terminal olhal para condutor de 50 mm² | D90: und. | E90: 2 | F90: 6.18 | G90: =E90*F90 -> 12.36
A91: QUADRO DE PROTEÇÃO CC (STRINGBOX)
A92: 12 | C92: String-box CC, composta de: | D92: und. | E92: 1 | F92: ='Item 12 - 1;2;3 CV'!L39 -> 515.03 | G92: =E92*F92 -> 515.03
C93: 1 conjunto de DPS por string, com proteção classe II, apropriado para uso em sistemas fotovoltaicos, 1040 Vdc, corrente de descarga máxima 40 kA, corrente de descarga nominal de 18 kA, nível de proteção inferior a 3,5 kV, 3 polos (positivo, negativo e terra), com indicador de operação verde (em serviço) e vermelho (defeito).
C94: 1 chave seccionadora de até 32A, para corrente contínua, 1.000 Vdc, 2 polos, adequado para uso em sistemas fotovoltaicos com conexão de condutores de 2,5 até 10 mm², para instalação em trilho DIN e com jumpers tipo barramento.
C95: 1 caixa de proteção para stringbox em policarbonato, de sobrepor, trilho DIN, IP 65, proteção UV, e adequada para uso em sistemas fotovoltaicos. Deverão ser fixados através de trilho DIN
A96: ALIMENTAÇÃO DO MOTOR
A97: 13 | B97: 1014 | C97: Condutor isolado 450/750V, seção nominal de 4 mm², condutor de cobre têmpera mole, encordoamento classe 4 ou 5, com isolação em composto termoplástico de PVC/A (cor azul, verde, preto, branco ou vermelho, conforme aplicação) | D97: metro | E97: 80 | F97: 2.71 | G97: =E97*F97 -> 216.8
A98: 14 | B98: 40400 | C98: Duto PEAD corrugado 1", fabricado em Polietileno de Alta Densidade (PEAD), sendo flexível, anelar e impermeável, na cor preta, apropriado para passagens da condutores elétricos | D98: metro | E98: 20 | F98: 1.9 | G98: =E98*F98 -> 38
A99: 15 | B99: 41627 | C99: Caixa de passagem/inspeção em concreto, sem fundo, com tampa, 30X30 centímetros | D99: Und. | E99: 2 | F99: 200.54 | G99: 401.08
A100: MONTAGEM E INSTALAÇÃO
A101: 16 | C101: Comissionamento das instalações | D101: Unid. | E101: 1 | F101: =G110 -> 326.38 | G101: =E101*F101 -> 326.38
A102: 17 | C102: Execução das instalações | D102: Unid. | E102: 1 | F102: =G117 -> 3207.2 | G102: =E102*F102 -> 3207.2
A103: Total Geral - KIT 3CV | G103: =SUM(G75:G102) -> 16246.31
A107: item 16 | D107: Unidade | E107: valor unitário | F107: Quant | G107: Valor total
B108: 90778 | C108: Engenheiro eletricista - Pleno | D108: Hora | E108: 129.13 | F108: 2 | G108: =E108*F108 -> 258.26
B109: 88266 | C109: Técnico eletrotécnico | D109: Hora | E109: 34.06 | F109: 2 | G109: =E109*F109 -> 68.12
A110: Total Geral - item 16 | B110: Total Geral - item 16 | G110: =SUM(G108:G109) -> 326.38
A112: item 17 | D112: Unidade | E112: valor unitário | F112: Quant | G112: Valor total
B113: 90778 | C113: Engenheiro eletricista - Pleno | D113: Hora | E113: 129.13 | F113: 8 | G113: =E113*F113 -> 1033.04
B114: 88266 | C114: Técnico eletrotécnico | D114: Hora | E114: 34.06 | F114: 24 | G114: =E114*F114 -> 817.44
B115: 90776 | C115: Encarregado | D115: Hora | E115: 31.47 | F115: 24 | G115: 755.28
B116: 88247 | C116: Ajudante | D116: Hora | E116: 25.06 | F116: 24 | G116: 601.44
A117: Total Geral - item 17 | B117: Total Geral - item 17 | G117: =SUM(G113:G116) -> 3207.2

Sheet MT
A2: SISTEMA DE GERAÇÃO SOLAR FOTOVOLTAICA, OFF-GRID, SEM BATERIAS, PARA SISTEMA DE IRRIGAÇÃO COM MOTOBOMBA PARA O ESTADO DO MATO GROSSO
A4: ITEM | B4: CÓD | C4: DESCRIÇÃO | D4: UNID. | E4: QUANT. | F4: Valor Unitario (R$) | G4: Valor Total (R$)
A6: SISTEMA DE GERAÇÃO SOLAR FOTOVOLTAICA, OFF-GRID, SEM BATERIAS, PARA SISTEMA DE IRRIGAÇÃO COM MOTOBOMBA DE ATÉ 1CV
A7: MATERIAL ELÉTRICO - A
A8: ARRANJO FOTOVOLTAICO
A9: 1 | C9: Módulo Fotovoltaico, com potência de 570 Wp STC (ou de potência suficiente para o correto funcionamento do sistema), estrutura em liga de alumínio anodizado, caixa de junção IP 68, três diodos, eficiência superior a 19%, degradação no primeiro ano inferior a 3%, degradação do ano 2 ao 30 inferior a 0,5% ao ano, 10 anos de garantia, 20 anos de garantia de potência linear. | D9: unid. | E9: 4 | F9: ='Item 1-1;2 CV'!L39 -> 790.28 | G9: =E9*F9 -> 3161.12
A10: 2 | C10: Par (macho e fêmea) de conectores terminais tipo MC4, de 2,5 a 6 mm², 1.500 Vcc, 30 A, IP67, próprio para instalações fotovoltaicas. | D10: unid. | E10: 1 | F10: ='Item 2 - 1;2;3-CV'!L38 -> 44.51 | G10: 44.51
A11: 3 | C11: Estrutura de solo para módulos fotovoltaicos, 5 módulos instalados, pilastra travessa e mão francesa em aço galvanizado a fogo, longarina e acessórios em alumínio. Inclui todos os acessórios para correta fixação dos painéis. | D11: unid. | E11: 1 | F11: ='Item 3 - 1 CV'!L39 -> 1102.96 | G11: 1102.96
A12: 4 | C12: Condutor de 4 mm², fios de cobre, têmpera mole, encordoamento classe 5 (extraflexível), isolação em composto termofixo livre de halogênio, retardante a chamas, cobertura em composto termofixo livre de halogênio, resistente a UV. Na cor vermelha. | D12: metro | E12: 10 | F12: ='Item 4 - 1;2;3 CV'!L39 -> 5.19 | G12: 51.9
A13: 5 | C13: Condutor de 4 mm², fios de cobre, têmpera mole, encordoamento classe 5 (extraflexível), isolação em composto termofixo livre de halogênio, retardante a chamas, cobertura em composto termofixo livre de halogênio, resistente a UV. Na cor preta | D13: metro | E13: 10 | F13: ='Item 5 - 1;2;3 CV'!L39 -> 4.96 | G13: 49.6
A14: 6 | C14: Driver solar fotovoltaico, apropriado para motores de 1 CV, operação off-grid: | D14: und. | E14: 1 | F14: ='Item 6 - 1 CV'!L39 -> 1589.67 | G14: 1589.67
C15: Eficiência mínima 95%, grau de proteção IP20, resfriamento natural ou com cooler integrado, garantia mínima de 5 anos, tensão de saída compatível com a motobomba, frequência 60 Hz, com sistema de partida suave da bomba e controle de velocidade, atender em plenitude os requisitos do sistema a ser instalado.
C16: Entrada de corrente contínua (CC) compatível com a quantidade de painéis fotovoltaicos propostos, com no mínimo 1 MPPT (maximum power point tracking) com faixa de tensão de operação compatível com os módulos fotovoltaicos, baixa tensão mínima para funcionamento.
C17: Saída de corrente alternada (CA) compatível com o sistema projetado, até 1 CV, temperatura de operação até 60 ºc, trifásico ou monofásico.
C18: Possuir, no mínimo as seguintes proteções: Sub e sobre tensão CC, sobreaquecimento, surtos de tensão (CC), proteção de bomba travada, proteção de curto-circuito, proteção contra funcionamento a seco e sobrecarga.
A19: ATERRAMENTO
A20: 7 | B20: 867 | C20: Cabo de cobre nu 50mm², composto por 7 fios x Ø 3,00 mm | D20: metro | E20: 20 | F20: 60.11 | G20: =E20*F20 -> 1202.2
A21: 8 | B21: 34643 | C21: Caixa de inspeção para aterramento, em PVC, com tampa | D21: und. | E21: 4 | F21: 48.6 | G21: =E21*F21 -> 194.4
A22: 9 | C22: Haste para aterramento, cobreada alta camada, Ø 3/4″ x 2,40 m (Ø 17,3 mm – Efetivo) | D22: und. | E22: 2 | F22: ='Item 9 - 1;2;3 CV'!L39 -> 141.84 | G22: 283.68
A23: 10 | B23: 416 | C23: Conector Cabo-Haste em Latão Estanhado para 1 Cabo com Acessórios | D23: und. | E23: 2 | F23: 9.05 | G23: 18.1
A24: 11 | B24: 1578 | C24: Terminal olhal para condutor de 50 mm² | D24: und. | E24: 2 | F24: 7.01 | G24: 14.02
A25: QUADRO DE PROTEÇÃO CC (STRINGBOX)
A26: 12 | C26: String-box CC, composta de: | D26: und. | E26: 1 | F26: ='Item 12 - 1;2;3 CV'!L39 -> 515.03 | G26: =E26*F26 -> 515.03
C27: 1 conjunto de DPS por string, com proteção classe II, apropriado para uso em sistemas fotovoltaicos, 1040 Vdc, corrente de descarga máxima 40 kA, corrente de descarga nominal de 18 kA, nível de proteção inferior a 3,5 kV, 3 polos (positivo, negativo e terra), com indicador de operação verde (em serviço) e vermelho (defeito).
C28: 1 chave seccionadora de até 32A, para corrente contínua, 1.000 Vdc, 2 polos, adequado para uso em sistemas fotovoltaicos com conexão de condutores de 2,5 até 10 mm², para instalação em trilho DIN e com jumpers tipo barramento.
C29: 1 caixa de proteção para stringbox em policarbonato, de sobrepor, trilho DIN, IP 65, proteção UV, e adequada para uso em sistemas fotovoltaicos. Deverão ser fixados através de trilho DIN
A30: ALIMENTAÇÃO DO MOTOR
A31: 13 | B31: 1014 | C31: Condutor isolado 450/750V, seção nominal de 2,5 mm², condutor de cobre têmpera mole, encordoamento classe 4 ou 5, com isolação em composto termoplástico de PVC/A (cor azul, verde, preto, branco ou vermelho, conforme aplicação) | D31: metro | E31: 80 | F31: 2.55 | G31: =E31*F31 -> 204
A32: 14 | B32: 40400 | C32: Duto PEAD corrugado 3/4", fabricado em Polietileno de Alta Densidade (PEAD), sendo flexível, anelar e impermeável, na cor preta, apropriado para passagens da condutores elétricos | D32: metro | E32: 20 | F32: 1.61 | G32: =E32*F32 -> 32.2
A33: 15 | B33: 41627 | C33: Caixa de passagem/inspeção em concreto, sem fundo, com tampa, 30X30 centímetros | D33: Und. | E33: 2 | F33: 236.3 | G33: =E33*F33 -> 472.6
A34: MONTAGEM E INSTALAÇÃO
A35: 16 | C35: Comissionamento das instalações | D35: Unid. | E35: 1 | F35: =G110 -> 331.38 | G35: =E35*F35 -> 331.38
A36: 17 | C36: Execução das instalações | D36: Unid. | E36: 1 | F36: =G117 -> 3126.64 | G36: =E36*F36 -> 3126.64
A37: Total Geral - KIT 1 CV | G37: =SUM(G9:G36) -> 12394.01
A38: SISTEMA DE GERAÇÃO SOLAR FOTOVOLTAICA, OFF-GRID, SEM BATERIAS, PARA SISTEMA DE IRRIGAÇÃO COM MOTOBOMBA DE ATÉ 2CV
A39: MATERIAL ELÉTRICO - A
A40: ARRANJO FOTOVOLTAICO
A41: 1 | C41: Módulo Fotovoltaico, com potência de 570 Wp STC, (ou de potência suficiente para o correto funcionamento do sistema), estrutura em liga de alumínio anodizado, caixa de junção IP 68, três diodos, eficiência superior a 19%, degradação no primeiro ano inferior a 3%, degradação do ano 2 ao 30 inferior a 0,5% ao ano, 10 anos de garantia, 20 anos de garantia de potência linear. | D41: unid. | E41: 6 | F41: ='Item 1-1;2 CV'!L39 -> 790.28 | G41: =E41*F41 -> 4741.68
A42: 2 | C42: Par (macho e fêmea) de conectores terminais tipo MC4, de 2,5 a 6 mm², 1.500 Vcc, 30 A, IP67, próprio para instalações fotovoltaicas. | D42: unid. | E42: 1 | F42: ='Item 2 - 1;2;3-CV'!L38 -> 44.51 | G42: =E42*F42 -> 44.51
A43: 3 | C43: Estrutura de solo para módulos fotovoltaicos, 6 módulos instalados, pilastra travessa e mão francesa em aço galvanizado a fogo, longarina e acessórios em alumínio. Inclui todos os acessórios para correta fixação dos painéis. | D43: unid. | E43: 1 | F43: ='Item 3 - 2 CV'!L38 -> 1426.53 | G43: =E43*F43 -> 1426.53
A44: 4 | C44: Condutor de 4 mm², fios de cobre, têmpera mole, encordoamento classe 5 (extraflexível), isolação em composto termofixo livre de halogênio, retardante a chamas, cobertura em composto termofixo livre de halogênio, resistente a UV. Na cor vermelha. | D44: metro | E44: 15 | F44: ='Item 4 - 1;2;3 CV'!L39 -> 5.19 | G44: =E44*F44 -> 77.85
A45: 5 | C45: Condutor de 4 mm², fios de cobre, têmpera mole, encordoamento classe 5 (extraflexível), isolação em composto termofixo livre de halogênio, retardante a chamas, cobertura em composto termofixo livre de halogênio, resistente a UV. Na cor preta | D45: metro | E45: 15 | F45: ='Item 5 - 1;2;3 CV'!L39 -> 4.96 | G45: =E45*F45 -> 74.4
A46: 6 | C46: Driver solar fotovoltaico, apropriado para motores de 2 CV, operação off-grid: | D46: und. | E46: 1 | F46: ='Item 6 - 2 CV'!L37 -> 1506.92 | G46: =E46*F46 -> 1506.92
C47: Eficiência mínima 95%, grau de proteção IP20, resfriamento natural ou com cooler integrado, garantia mínima de 5 anos, tensão de saída compatível com a motobomba, frequência 60 Hz, com sistema de partida suave da bomba e controle de velocidade, atender em plenitude os requisitos do sistema a ser instalado.
C48: Entrada de corrente contínua (CC) compatível com a quantidade de painéis fotovoltaicos propostos, com no mínimo 1 MPPT (maximum power point tracking) com faixa de tensão de operação compatível com os módulos fotovoltaicos, baixa tensão mínima para funcionamento.
C49: Saída de corrente alternada (CA) compatível com o sistema projetado, até 2 CV, temperatura de operação até 60 ºC, trifásico ou monofásico.
C50: Possuir, no mínimo as seguintes proteções: Sub e sobre tensão CC, sobreaquecimento, surtos de tensão (CC), proteção de bomba travada, proteção de curto-circuito, proteção contra funcionamento a seco e sobrecarga.
A51: ATERRAMENTO
A52: 7 | B52: 867 | C52: Cabo de cobre nu 50mm², composto por 7 fios x Ø 3,00 mm | D52: metro | E52: 20 | F52: 60.11 | G52: =E52*F52 -> 1202.2
A53: 8 | B53: 34643 | C53: Caixa de inspeção para aterramento, em PVC, com tampa | D53: und. | E53: 4 | F53: 48.6 | G53: =E53*F53 -> 194.4
A54: 9 | C54: Haste para aterramento, cobreada alta camada, Ø 3/4″ x 2,40 m (Ø 17,3 mm – Efetivo) | D54: und. | E54: 2 | F54: ='Item 9 - 1;2;3 CV'!L39 -> 141.84 | G54: 283.68
A55: 10 | B55: 416 | C55: Conector Cabo-Haste em Latão Estanhado para 1 Cabo com Acessórios | D55: und. | E55: 2 | F55: 9.05 | G55: 18.1
A56: 11 | B56: 1578 | C56: Terminal olhal para condutor de 50 mm² | D56: und. | E56: 2 | F56: 7.01 | G56: 14.02
A57: QUADRO DE PROTEÇÃO CC (STRINGBOX)
A58: 12 | C58: String-box CC, composta de: | D58: und. | E58: 1 | F58: ='Item 12 - 1;2;3 CV'!L39 -> 515.03 | G58: =E58*F58 -> 515.03
C59: 1 conjunto de DPS por string, com proteção classe II, apropriado para uso em sistemas fotovoltaicos, 1040 Vdc, corrente de descarga máxima 40 kA, corrente de descarga nominal de 18 kA, nível de proteção inferior a 3,5 kV, 3 polos (positivo, negativo e terra), com indicador de operação verde (em serviço) e vermelho (defeito).
C60: 1 chave seccionadora de até 32A, para corrente contínua, 1.000 Vdc, 2 polos, adequado para uso em sistemas fotovoltaicos com conexão de condutores de 2,5 até 10 mm², para instalação em trilho DIN e com jumpers tipo barramento.
C61: 1 caixa de proteção para stringbox em policarbonato, de sobrepor, trilho DIN, IP 65, proteção UV, e adequada para uso em sistemas fotovoltaicos. Deverão ser fixados através de trilho DIN
A62: ALIMENTAÇÃO DO MOTOR
A63: 13 | B63: 1014 | C63: Condutor isolado 450/750V, seção nominal de 2,5 mm², condutor de cobre têmpera mole, encordoamento classe 4 ou 5, com isolação em composto termoplástico de PVC/A (cor azul, verde, preto, branco ou vermelho, conforme aplicação) | D63: metro | E63: 80 | F63: 2.55 | G63: =E63*F63 -> 204
A64: 14 | B64: 40400 | C64: Duto PEAD corrugado 3/4", fabricado em Polietileno de Alta Densidade (PEAD), sendo flexível, anelar e impermeável, na cor preta, apropriado para passagens da condutores elétricos | D64: metro | E64: 20 | F64: 1.61 | G64: =E64*F64 -> 32.2
A65: 15 | B65: 41627 | C65: Caixa de passagem/inspeção em concreto, sem fundo, com tampa, 30X30 centímetros | D65: Und. | E65: 2 | F65: 236.3 | G65: =E65*F65 -> 472.6
A66: MONTAGEM E INSTALAÇÃO
A67: 16 | C67: Comissionamento das instalações | D67: Unid. | E67: 1 | F67: =G110 -> 331.38 | G67: =E67*F67 -> 331.38
A68: 17 | C68: Execução das instalações | D68: Unid. | E68: 1 | F68: =G117 -> 3126.64 | G68: =E68*F68 -> 3126.64
A69: Total Geral - KIT 2 CV | G69: =SUM(G41:G68) -> 14266.14
A72: SISTEMA DE GERAÇÃO SOLAR FOTOVOLTAICA, OFF-GRID, SEM BATERIAS, PARA SISTEMA DE IRRIGAÇÃO COM MOTOBOMBA DE ATÉ 3CV
A73: MATERIAL ELÉTRICO - A
A74: ARRANJO FOTOVOLTAICO
A75: 1 | C75: Módulo Fotovoltaico, com potência de 700 Wp STC, (ou de potência suficiente para o correto funcionamento do sistema), estrutura em liga de alumínio anodizado, caixa de junção IP 68, três diodos, eficiência superior a 19%, degradação no primeiro ano inferior a 3%, degradação do ano 2 ao 30 inferior a 0,5% ao ano, 10 anos de garantia, 20 anos de garantia de potência linear. | D75: unid. | E75: 7 | F75: ='Item 1 - 3 CV'!L39 -> 840.92 | G75: =E75*F75 -> 5886.44
A76: 2 | C76: Par (macho e fêmea) de conectores terminais tipo MC4, de 2,5 a 6 mm², 1.500 Vcc, 30 A, IP67, próprio para instalações fotovoltaicas. | D76: unid. | E76: 2 | F76: ='Item 2 - 1;2;3-CV'!L38 -> 44.51 | G76: =E76*F76 -> 89.02
A77: 3 | C77: Estrutura de solo para módulos fotovoltaicos, 8 módulos instalados, pilastra travessa e mão francesa em aço galvanizado a fogo, longarina e acessórios em alumínio. Inclui todos os acessórios para correta fixação dos painéis. | D77: unid. | E77: 1 | F77: ='Item 3 - 3 CV'!L38 -> 1508.78 | G77: 1508.78
A78: 4 | C78: Condutor de 4 mm², fios de cobre, têmpera mole, encordoamento classe 5 (extraflexível), isolação em composto termofixo livre de halogênio, retardante a chamas, cobertura em composto termofixo livre de halogênio, resistente a UV. Na cor vermelha. | D78: metro | E78: 20 | F78: ='Item 4 - 1;2;3 CV'!L39 -> 5.19 | G78: 103.8
A79: 5 | C79: Condutor de 4 mm², fios de cobre, têmpera mole, encordoamento classe 5 (extraflexível), isolação em composto termofixo livre de halogênio, retardante a chamas, cobertura em composto termofixo livre de halogênio, resistente a UV. Na cor preta | D79: metro | E79: 20 | F79: ='Item 5 - 1;2;3 CV'!L39 -> 4.96 | G79: 99.2
A80: 6 | C80: Driver solar fotovoltaico, apropriado para motores de 3 CV, operação off-grid: | D80: und. | E80: 1 | F80: ='Item 6 - 3 CV'!L36 -> 2076 | G80: 2076
C81: Eficiência mínima 95%, grau de proteção IP20, resfriamento natural ou com cooler integrado, garantia mínima de 5 anos, tensão de saída compatível com a motobomba, frequência 60 Hz, com sistema de partida suave da bomba e controle de velocidade, atender em plenitude os requisitos do sistema a ser instalado.
C82: Entrada de corrente contínua (CC) compatível com a quantidade de painéis fotovoltaicos propostos, com no mínimo 1 MPPT (maximum power point tracking) com faixa de tensão de operação compatível com os módulos fotovoltaicos, baixa tensão mínima para funcionamento.
C83: Saída de corrente alternada (CA) compatível com o sistema projetado, até 3 CV, temperatura de operação até 60 ºC, trifásico ou monofásico.
C84: Possuir, no mínimo as seguintes proteções: Sub e sobre tensão CC, sobreaquecimento, surtos de tensão (CC), proteção de bomba travada, proteção de curto-circuito, proteção contra funcionamento a seco e sobrecarga.
A85: ATERRAMENTO
A86: 7 | B86: 867 | C86: Cabo de cobre nu 50mm², composto por 7 fios x Ø 3,00 mm | D86: metro | E86: 20 | F86: 60.11 | G86: =E86*F86 -> 1202.2
A87: 8 | B87: 34643 | C87: Caixa de inspeção para aterramento, em PVC, com tampa | D87: und. | E87: 4 | F87: 48.6 | G87: =E87*F87 -> 194.4
A88: 9 | C88: Haste para aterramento, cobreada alta camada, Ø 3/4″ x 2,40 m (Ø 17,3 mm – Efetivo) | D88: und. | E88: 2 | F88: ='Item 9 - 1;2;3 CV'!L39 -> 141.84 | G88: =E88*F88 -> 283.68
A89: 10 | B89: 416 | C89: Conector Cabo-Haste em Latão Estanhado para 1 Cabo com Acessórios | D89: und. | E89: 2 | F89: 9.05 | G89: =E89*F89 -> 18.1
A90: 11 | B90: 1578 | C90: Terminal olhal para condutor de 50 mm² | D90: und. | E90: 2 | F90: 7.01 | G90: =E90*F90 -> 14.02
A91: QUADRO DE PROTEÇÃO CC (STRINGBOX)
A92: 12 | C92: String-box CC, composta de: | D92: und. | E92: 1 | F92: ='Item 12 - 1;2;3 CV'!L39 -> 515.03 | G92: =E92*F92 -> 515.03
C93: 1 conjunto de DPS por string, com proteção classe II, apropriado para uso em sistemas fotovoltaicos, 1040 Vdc, corrente de descarga máxima 40 kA, corrente de descarga nominal de 18 kA, nível de proteção inferior a 3,5 kV, 3 polos (positivo, negativo e terra), com indicador de operação verde (em serviço) e vermelho (defeito).
C94: 1 chave seccionadora de até 32A, para corrente contínua, 1.000 Vdc, 2 polos, adequado para uso em sistemas fotovoltaicos com conexão de condutores de 2,5 até 10 mm², para instalação em trilho DIN e com jumpers tipo barramento.
C95: 1 caixa de proteção para stringbox em policarbonato, de sobrepor, trilho DIN, IP 65, proteção UV, e adequada para uso em sistemas fotovoltaicos. Deverão ser fixados através de trilho DIN
A96: ALIMENTAÇÃO DO MOTOR
A97: 13 | B97: 1014 | C97: Condutor isolado 450/750V, seção nominal de 4 mm², condutor de cobre têmpera mole, encordoamento classe 4 ou 5, com isolação em composto termoplástico de PVC/A (cor azul, verde, preto, branco ou vermelho, conforme aplicação) | D97: metro | E97: 80 | F97: 2.55 | G97: =E97*F97 -> 204
A98: 14 | B98: 40400 | C98: Duto PEAD corrugado 1", fabricado em Polietileno de Alta Densidade (PEAD), sendo flexível, anelar e impermeável, na cor preta, apropriado para passagens da condutores elétricos | D98: metro | E98: 20 | F98: 1.61 | G98: =E98*F98 -> 32.2
A99: 15 | B99: 41627 | C99: Caixa de passagem/inspeção em concreto, sem fundo, com tampa, 30X30 centímetros | D99: Und. | E99: 2 | F99: 236.3 | G99: 472.6
A100: MONTAGEM E INSTALAÇÃO
A101: 16 | C101: Comissionamento das instalações | D101: Unid. | E101: 1 | F101: =G110 -> 331.38 | G101: =E101*F101 -> 331.38
A102: 17 | C102: Execução das instalações | D102: Unid. | E102: 1 | F102: =G117 -> 3126.64 | G102: =E102*F102 -> 3126.64
A103: Total Geral - KIT 3CV | G103: =SUM(G75:G102) -> 16157.49
A107: item 16 | D107: Unidade | E107: valor unitário | F107: Quant | G107: Valor total
B108: 90778 | C108: Engenheiro eletricista - Pleno | D108: Hora | E108: 132.08 | F108: 2 | G108: =E108*F108 -> 264.16
B109: 88266 | C109: Técnico eletrotécnico | D109: Hora | E109: 33.61 | F109: 2 | G109: =E109*F109 -> 67.22
A110: Total Geral - item 16 | B110: Total Geral - item 16 | G110: =SUM(G108:G109) -> 331.38
A112: item 17 | D112: Unidade | E112: valor unitário | F112: Quant | G112: Valor total
B113: 90778 | C113: Engenheiro eletricista - Pleno | D113: Hora | E113: 132.08 | F113: 8 | G113: =E113*F113 -> 1056.64
B114: 88266 | C114: Técnico eletrotécnico | D114: Hora | E114: 33.61 | F114: 24 | G114: =E114*F114 -> 806.64
B115: 90776 | C115: Encarregado | D115: Hora | E115: 29.87 | F115: 24 | G115: 716.88
B116: 88247 | C116: Ajudante | D116: Hora | E116: 22.77 | F116: 24 | G116: 546.48
A117: Total Geral - item 17 | B117: Total Geral - item 17 | G117: =SUM(G113:G116) -> 3126.64

Sheet PI
A2: SISTEMA DE GERAÇÃO SOLAR FOTOVOLTAICA, OFF-GRID, SEM BATERIAS, PARA SISTEMA DE IRRIGAÇÃO COM MOTOBOMBA PARA O ESTADO DO PIAUÍ
A4: ITEM | B4: CÓD | C4: DESCRIÇÃO | D4: UNID. | E4: QUANT. | F4: Valor Unitario (R$) | G4: Valor Total (R$)
A6: SISTEMA DE GERAÇÃO SOLAR FOTOVOLTAICA, OFF-GRID, SEM BATERIAS, PARA SISTEMA DE IRRIGAÇÃO COM MOTOBOMBA DE ATÉ 1CV
A7: MATERIAL ELÉTRICO - A
A8: ARRANJO FOTOVOLTAICO
A9: 1 | C9: Módulo Fotovoltaico, com potência de 570 Wp STC (ou de potência suficiente para o correto funcionamento do sistema), estrutura em liga de alumínio anodizado, caixa de junção IP 68, três diodos, eficiência superior a 19%, degradação no primeiro ano inferior a 3%, degradação do ano 2 ao 30 inferior a 0,5% ao ano, 10 anos de garantia, 20 anos de garantia de potência linear. | D9: unid. | E9: 4 | F9: ='Item 1-1;2 CV'!L39 -> 790.28 | G9: =E9*F9 -> 3161.12
A10: 2 | C10: Par (macho e fêmea) de conectores terminais tipo MC4, de 2,5 a 6 mm², 1.500 Vcc, 30 A, IP67, próprio para instalações fotovoltaicas. | D10: unid. | E10: 1 | F10: ='Item 2 - 1;2;3-CV'!L38 -> 44.51 | G10: 44.51
A11: 3 | C11: Estrutura de solo para módulos fotovoltaicos, 5 módulos instalados, pilastra travessa e mão francesa em aço galvanizado a fogo, longarina e acessórios em alumínio. Inclui todos os acessórios para correta fixação dos painéis. | D11: unid. | E11: 1 | F11: ='Item 3 - 1 CV'!L39 -> 1102.96 | G11: 1102.96
A12: 4 | C12: Condutor de 4 mm², fios de cobre, têmpera mole, encordoamento classe 5 (extraflexível), isolação em composto termofixo livre de halogênio, retardante a chamas, cobertura em composto termofixo livre de halogênio, resistente a UV. Na cor vermelha. | D12: metro | E12: 10 | F12: ='Item 4 - 1;2;3 CV'!L39 -> 5.19 | G12: 51.9
A13: 5 | C13: Condutor de 4 mm², fios de cobre, têmpera mole, encordoamento classe 5 (extraflexível), isolação em composto termofixo livre de halogênio, retardante a chamas, cobertura em composto termofixo livre de halogênio, resistente a UV. Na cor preta | D13: metro | E13: 10 | F13: ='Item 5 - 1;2;3 CV'!L39 -> 4.96 | G13: 49.6
A14: 6 | C14: Driver solar fotovoltaico, apropriado para motores de 1 CV, operação off-grid: | D14: und. | E14: 1 | F14: ='Item 6 - 1 CV'!L39 -> 1589.67 | G14: 1589.67
C15: Eficiência mínima 95%, grau de proteção IP20, resfriamento natural ou com cooler integrado, garantia mínima de 5 anos, tensão de saída compatível com a motobomba, frequência 60 Hz, com sistema de partida suave da bomba e controle de velocidade, atender em plenitude os requisitos do sistema a ser instalado.
C16: Entrada de corrente contínua (CC) compatível com a quantidade de painéis fotovoltaicos propostos, com no mínimo 1 MPPT (maximum power point tracking) com faixa de tensão de operação compatível com os módulos fotovoltaicos, baixa tensão mínima para funcionamento.
C17: Saída de corrente alternada (CA) compatível com o sistema projetado, até 1 CV, temperatura de operação até 60 ºc, trifásico ou monofásico.
C18: Possuir, no mínimo as seguintes proteções: Sub e sobre tensão CC, sobreaquecimento, surtos de tensão (CC), proteção de bomba travada, proteção de curto-circuito, proteção contra funcionamento a seco e sobrecarga.
A19: ATERRAMENTO
A20: 7 | B20: 867 | C20: Cabo de cobre nu 50mm², composto por 7 fios x Ø 3,00 mm | D20: metro | E20: 20 | F20: 59.54 | G20: =E20*F52 -> 1190.8
A21: 8 | B21: 34643 | C21: Caixa de inspeção para aterramento, em PVC, com tampa | D21: und. | E21: 4 | F21: 41.92 | G21: =E21*F53 -> 167.68
A22: 9 | C22: Haste para aterramento, cobreada alta camada, Ø 3/4″ x 2,40 m (Ø 17,3 mm – Efetivo) | D22: und. | E22: 2 | F22: ='Item 9 - 1;2;3 CV'!L39 -> 141.84 | G22: =E22*F22 -> 283.68
A23: 10 | B23: 416 | C23: Conector Cabo-Haste em Latão Estanhado para 1 Cabo com Acessórios | D23: und. | E23: 2 | F23: 11.24 | G23: 22.48
A24: 11 | B24: 1578 | C24: Terminal olhal para condutor de 50 mm² | D24: und. | E24: 2 | F24: 6.89 | G24: 13.78
A25: QUADRO DE PROTEÇÃO CC (STRINGBOX)
A26: 12 | C26: String-box CC, composta de: | D26: und. | E26: 1 | F26: ='Item 12 - 1;2;3 CV'!L39 -> 515.03 | G26: =E26*F26 -> 515.03
C27: 1 conjunto de DPS por string, com proteção classe II, apropriado para uso em sistemas fotovoltaicos, 1040 Vdc, corrente de descarga máxima 40 kA, corrente de descarga nominal de 18 kA, nível de proteção inferior a 3,5 kV, 3 polos (positivo, negativo e terra), com indicador de operação verde (em serviço) e vermelho (defeito).
C28: 1 chave seccionadora de até 32A, para corrente contínua, 1.000 Vdc, 2 polos, adequado para uso em sistemas fotovoltaicos com conexão de condutores de 2,5 até 10 mm², para instalação em trilho DIN e com jumpers tipo barramento.
C29: 1 caixa de proteção para stringbox em policarbonato, de sobrepor, trilho DIN, IP 65, proteção UV, e adequada para uso em sistemas fotovoltaicos. Deverão ser fixados através de trilho DIN
A30: ALIMENTAÇÃO DO MOTOR
A31: 13 | B31: 1014 | C31: Condutor isolado 450/750V, seção nominal de 2,5 mm², condutor de cobre têmpera mole, encordoamento classe 4 ou 5, com isolação em composto termoplástico de PVC/A (cor azul, verde, preto, branco ou vermelho, conforme aplicação) | D31: metro | E31: 80 | F31: 2.53 | G31: =E31*F31 -> 202.4
A32: 14 | B32: 40400 | C32: Duto PEAD corrugado 3/4", fabricado em Polietileno de Alta Densidade (PEAD), sendo flexível, anelar e impermeável, na cor preta, apropriado para passagens da condutores elétricos | D32: metro | E32: 20 | F32: 2.98 | G32: =E32*F32 -> 59.6
A33: 15 | B33: 41627 | C33: Caixa de passagem/inspeção em concreto, sem fundo, com tampa, 30X30 centímetros | D33: Und. | E33: 2 | F33: 171 | G33: =E33*F33 -> 342
A34: MONTAGEM E INSTALAÇÃO
A35: 16 | C35: Comissionamento das instalações | D35: Unid. | E35: 1 | F35: =G110 -> 330.6 | G35: =E35*F35 -> 330.6
A36: 17 | C36: Execução das instalações | D36: Unid. | E36: 1 | F36: =G117 -> 3292.16 | G36: =E36*F36 -> 3292.16
A37: Total Geral - KIT 1 CV | G37: =SUM(G9:G36) -> 12419.97
A38: SISTEMA DE GERAÇÃO SOLAR FOTOVOLTAICA, OFF-GRID, SEM BATERIAS, PARA SISTEMA DE IRRIGAÇÃO COM MOTOBOMBA DE ATÉ 2CV
A39: MATERIAL ELÉTRICO - A
A40: ARRANJO FOTOVOLTAICO
A41: 1 | C41: Módulo Fotovoltaico, com potência de 570 Wp STC, (ou de potência suficiente para o correto funcionamento do sistema), estrutura em liga de alumínio anodizado, caixa de junção IP 68, três diodos, eficiência superior a 19%, degradação no primeiro ano inferior a 3%, degradação do ano 2 ao 30 inferior a 0,5% ao ano, 10 anos de garantia, 20 anos de garantia de potência linear. | D41: unid. | E41: 6 | F41: ='Item 1-1;2 CV'!L39 -> 790.28 | G41: =E41*F41 -> 4741.68
A42: 2 | C42: Par (macho e fêmea) de conectores terminais tipo MC4, de 2,5 a 6 mm², 1.500 Vcc, 30 A, IP67, próprio para instalações fotovoltaicas. | D42: unid. | E42: 1 | F42: ='Item 2 - 1;2;3-CV'!L38 -> 44.51 | G42: =E42*F42 -> 44.51
A43: 3 | C43: Estrutura de solo para módulos fotovoltaicos, 6 módulos instalados, pilastra travessa e mão francesa em aço galvanizado a fogo, longarina e acessórios em alumínio. Inclui todos os acessórios para correta fixação dos painéis. | D43: unid. | E43: 1 | F43: ='Item 3 - 2 CV'!L38 -> 1426.53 | G43: =E43*F43 -> 1426.53
A44: 4 | C44: Condutor de 4 mm², fios de cobre, têmpera mole, encordoamento classe 5 (extraflexível), isolação em composto termofixo livre de halogênio, retardante a chamas, cobertura em composto termofixo livre de halogênio, resistente a UV. Na cor vermelha. | D44: metro | E44: 15 | F44: ='Item 4 - 1;2;3 CV'!L39 -> 5.19 | G44: =E44*F44 -> 77.85
A45: 5 | C45: Condutor de 4 mm², fios de cobre, têmpera mole, encordoamento classe 5 (extraflexível), isolação em composto termofixo livre de halogênio, retardante a chamas, cobertura em composto termofixo livre de halogênio, resistente a UV. Na cor preta | D45: metro | E45: 15 | F45: ='Item 5 - 1;2;3 CV'!L39 -> 4.96 | G45: =E45*F45 -> 74.4
A46: 6 | C46: Driver solar fotovoltaico, apropriado para motores de 2 CV, operação off-grid: | D46: und. | E46: 1 | F46: ='Item 6 - 2 CV'!L37 -> 1506.92 | G46: =E46*F46 -> 1506.92
C47: Eficiência mínima 95%, grau de proteção IP20, resfriamento natural ou com cooler integrado, garantia mínima de 5 anos, tensão de saída compatível com a motobomba, frequência 60 Hz, com sistema de partida suave da bomba e controle de velocidade, atender em plenitude os requisitos do sistema a ser instalado.
C48: Entrada de corrente contínua (CC) compatível com a quantidade de painéis fotovoltaicos propostos, com no mínimo 1 MPPT (maximum power point tracking) com faixa de tensão de operação compatível com os módulos fotovoltaicos, baixa tensão mínima para funcionamento.
C49: Saída de corrente alternada (CA) compatível com o sistema projetado, até 2 CV, temperatura de operação até 60 ºC, trifásico ou monofásico.
C50: Possuir, no mínimo as seguintes proteções: Sub e sobre tensão CC, sobreaquecimento, surtos de tensão (CC), proteção de bomba travada, proteção de curto-circuito, proteção contra funcionamento a seco e sobrecarga.
A51: ATERRAMENTO
A52: 7 | B52: 867 | C52: Cabo de cobre nu 50mm², composto por 7 fios x Ø 3,00 mm | D52: metro | E52: 20 | F52: 59.54 | G52: =E52*F52 -> 1190.8
A53: 8 | B53: 34643 | C53: Caixa de inspeção para aterramento, em PVC, com tampa | D53: und. | E53: 4 | F53: 41.92 | G53: =E53*F53 -> 167.68
A54: 9 | C54: Haste para aterramento, cobreada alta camada, Ø 3/4″ x 2,40 m (Ø 17,3 mm – Efetivo) | D54: und. | E54: 2 | F54: ='Item 9 - 1;2;3 CV'!L39 -> 141.84 | G54: =E54*F54 -> 283.68
A55: 10 | B55: 416 | C55: Conector Cabo-Haste em Latão Estanhado para 1 Cabo com Acessórios | D55: und. | E55: 2 | F55: 11.24 | G55: 22.48
A56: 11 | B56: 1578 | C56: Terminal olhal para condutor de 50 mm² | D56: und. | E56: 2 | F56: 6.89 | G56: 13.78
A57: QUADRO DE PROTEÇÃO CC (STRINGBOX)
A58: 12 | C58: String-box CC, composta de: | D58: und. | E58: 1 | F58: ='Item 12 - 1;2;3 CV'!L39 -> 515.03 | G58: =E58*F58 -> 515.03
C59: 1 conjunto de DPS por string, com proteção classe II, apropriado para uso em sistemas fotovoltaicos, 1040 Vdc, corrente de descarga máxima 40 kA, corrente de descarga nominal de 18 kA, nível de proteção inferior a 3,5 kV, 3 polos (positivo, negativo e terra), com indicador de operação verde (em serviço) e vermelho (defeito).
C60: 1 chave seccionadora de até 32A, para corrente contínua, 1.000 Vdc, 2 polos, adequado para uso em sistemas fotovoltaicos com conexão de condutores de 2,5 até 10 mm², para instalação em trilho DIN e com jumpers tipo barramento.
C61: 1 caixa de proteção para stringbox em policarbonato, de sobrepor, trilho DIN, IP 65, proteção UV, e adequada para uso em sistemas fotovoltaicos. Deverão ser fixados através de trilho DIN
A62: ALIMENTAÇÃO DO MOTOR
A63: 13 | B63: 1014 | C63: Condutor isolado 450/750V, seção nominal de 2,5 mm², condutor de cobre têmpera mole, encordoamento classe 4 ou 5, com isolação em composto termoplástico de PVC/A (cor azul, verde, preto, branco ou vermelho, conforme aplicação) | D63: metro | E63: 80 | F63: 2.53 | G63: =E63*F63 -> 202.4
A64: 14 | B64: 40400 | C64: Duto PEAD corrugado 3/4", fabricado em Polietileno de Alta Densidade (PEAD), sendo flexível, anelar e impermeável, na cor preta, apropriado para passagens da condutores elétricos | D64: metro | E64: 20 | F64: 2.98 | G64: =E64*F64 -> 59.6
A65: 15 | B65: 41627 | C65: Caixa de passagem/inspeção em concreto, sem fundo, com tampa, 30X30 centímetros | D65: Und. | E65: 2 | F65: 171 | G65: =E65*F65 -> 342
A66: MONTAGEM E INSTALAÇÃO
A67: 16 | C67: Comissionamento das instalações | D67: Unid. | E67: 1 | F67: =G110 -> 330.6 | G67: =E67*F67 -> 330.6
A68: 17 | C68: Execução das instalações | D68: Unid. | E68: 1 | F68: =G117 -> 3292.16 | G68: =E68*F68 -> 3292.16
A69: Total Geral - KIT 2 CV | G69: =SUM(G41:G68) -> 14292.1
A72: SISTEMA DE GERAÇÃO SOLAR FOTOVOLTAICA, OFF-GRID, SEM BATERIAS, PARA SISTEMA DE IRRIGAÇÃO COM MOTOBOMBA DE ATÉ 3CV
A73: MATERIAL ELÉTRICO - A
A74: ARRANJO FOTOVOLTAICO
A75: 1 | C75: Módulo Fotovoltaico, com potência de 700 Wp STC, (ou de potência suficiente para o correto funcionamento do sistema), estrutura em liga de alumínio anodizado, caixa de junção IP 68, três diodos, eficiência superior a 19%, degradação no primeiro ano inferior a 3%, degradação do ano 2 ao 30 inferior a 0,5% ao ano, 10 anos de garantia, 20 anos de garantia de potência linear. | D75: unid. | E75: 7 | F75: ='Item 1 - 3 CV'!L39 -> 840.92 | G75: =E75*F75 -> 5886.44
A76: 2 | C76: Par (macho e fêmea) de conectores terminais tipo MC4, de 2,5 a 6 mm², 1.500 Vcc, 30 A, IP67, próprio para instalações fotovoltaicas. | D76: unid. | E76: 2 | F76: ='Item 2 - 1;2;3-CV'!L38 -> 44.51 | G76: =E76*F76 -> 89.02
A77: 3 | C77: Estrutura de solo para módulos fotovoltaicos, 8 módulos instalados, pilastra travessa e mão francesa em aço galvanizado a fogo, longarina e acessórios em alumínio. Inclui todos os acessórios para correta fixação dos painéis. | D77: unid. | E77: 1 | F77: ='Item 3 - 3 CV'!L38 -> 1508.78 | G77: 1508.78
A78: 4 | C78: Condutor de 4 mm², fios de cobre, têmpera mole, encordoamento classe 5 (extraflexível), isolação em composto termofixo livre de halogênio, retardante a chamas, cobertura em composto termofixo livre de halogênio, resistente a UV. Na cor vermelha. | D78: metro | E78: 20 | F78: ='Item 4 - 1;2;3 CV'!L39 -> 5.19 | G78: 103.8
A79: 5 | C79: Condutor de 4 mm², fios de cobre, têmpera mole, encordoamento classe 5 (extraflexível), isolação em composto termofixo livre de halogênio, retardante a chamas, cobertura em composto termofixo livre de halogênio, resistente a UV. Na cor preta | D79: metro | E79: 20 | F79: ='Item 5 - 1;2;3 CV'!L39 -> 4.96 | G79: 99.2
A80: 6 | C80: Driver solar fotovoltaico, apropriado para motores de 3 CV, operação off-grid: | D80: und. | E80: 1 | F80: ='Item 6 - 3 CV'!L36 -> 2076 | G80: 2076
C81: Eficiência mínima 95%, grau de proteção IP20, resfriamento natural ou com cooler integrado, garantia mínima de 5 anos, tensão de saída compatível com a motobomba, frequência 60 Hz, com sistema de partida suave da bomba e controle de velocidade, atender em plenitude os requisitos do sistema a ser instalado.
C82: Entrada de corrente contínua (CC) compatível com a quantidade de painéis fotovoltaicos propostos, com no mínimo 1 MPPT (maximum power point tracking) com faixa de tensão de operação compatível com os módulos fotovoltaicos, baixa tensão mínima para funcionamento.
C83: Saída de corrente alternada (CA) compatível com o sistema projetado, até 3 CV, temperatura de operação até 60 ºC, trifásico ou monofásico.
C84: Possuir, no mínimo as seguintes proteções: Sub e sobre tensão CC, sobreaquecimento, surtos de tensão (CC), proteção de bomba travada, proteção de curto-circuito, proteção contra funcionamento a seco e sobrecarga.
A85: ATERRAMENTO
A86: 7 | B86: 867 | C86: Cabo de cobre nu 50mm², composto por 7 fios x Ø 3,00 mm | D86: metro | E86: 20 | F86: 59.54 | G86: =E86*F86 -> 1190.8
A87: 8 | B87: 34643 | C87: Caixa de inspeção para aterramento, em PVC, com tampa | D87: und. | E87: 4 | F87: 41.92 | G87: =E87*F87 -> 167.68
A88: 9 | C88: Haste para aterramento, cobreada alta camada, Ø 3/4″ x 2,40 m (Ø 17,3 mm – Efetivo) | D88: und. | E88: 2 | F88: ='Item 9 - 1;2;3 CV'!L39 -> 141.84 | G88: =E88*F88 -> 283.68
A89: 10 | B89: 416 | C89: Conector Cabo-Haste em Latão Estanhado para 1 Cabo com Acessórios | D89: und. | E89: 2 | F89: 11.24 | G89: =E89*F89 -> 22.48
A90: 11 | B90: 1578 | C90: Terminal olhal para condutor de 50 mm² | D90: und. | E90: 2 | F90: 6.89 | G90: =E90*F90 -> 13.78
A91: QUADRO DE PROTEÇÃO CC (STRINGBOX)
A92: 12 | C92: String-box CC, composta de: | D92: und. | E92: 1 | F92: ='Item 12 - 1;2;3 CV'!L39 -> 515.03 | G92: =E92*F92 -> 515.03
C93: 1 conjunto de DPS por string, com proteção classe II, apropriado para uso em sistemas fotovoltaicos, 1040 Vdc, corrente de descarga máxima 40 kA, corrente de descarga nominal de 18 kA, nível de proteção inferior a 3,5 kV, 3 polos (positivo, negativo e terra), com indicador de operação verde (em serviço) e vermelho (defeito).
C94: 1 chave seccionadora de até 32A, para corrente contínua, 1.000 Vdc, 2 polos, adequado para uso em sistemas fotovoltaicos com conexão de condutores de 2,5 até 10 mm², para instalação em trilho DIN e com jumpers tipo barramento.
C95: 1 caixa de proteção para stringbox em policarbonato, de sobrepor, trilho DIN, IP 65, proteção UV, e adequada para uso em sistemas fotovoltaicos. Deverão ser fixados através de trilho DIN
A96: ALIMENTAÇÃO DO MOTOR
A97: 13 | B97: 1014 | C97: Condutor isolado 450/750V, seção nominal de 4 mm², condutor de cobre têmpera mole, encordoamento classe 4 ou 5, com isolação em composto termoplástico de PVC/A (cor azul, verde, preto, branco ou vermelho, conforme aplicação) | D97: metro | E97: 80 | F97: 2.53 | G97: =E97*F97 -> 202.4
A98: 14 | B98: 40400 | C98: Duto PEAD corrugado 1", fabricado em Polietileno de Alta Densidade (PEAD), sendo flexível, anelar e impermeável, na cor preta, apropriado para passagens da condutores elétricos | D98: metro | E98: 20 | F98: 2.98 | G98: =E98*F98 -> 59.6
A99: 15 | B99: 41627 | C99: Caixa de passagem/inspeção em concreto, sem fundo, com tampa, 30X30 centímetros | D99: Und. | E99: 2 | F99: 171 | G99: 342
A100: MONTAGEM E INSTALAÇÃO
A101: 16 | C101: Comissionamento das instalações | D101: Unid. | E101: 1 | F101: =G110 -> 330.6 | G101: =E101*F101 -> 330.6
A102: 17 | C102: Execução das instalações | D102: Unid. | E102: 1 | F102: =G117 -> 3292.16 | G102: =E102*F102 -> 3292.16
A103: Total Geral - KIT 3CV | G103: =SUM(G75:G102) -> 16183.45
A107: item 16 | D107: Unidade | E107: valor unitário | F107: Quant | G107: Valor total
B108: 90778 | C108: Engenheiro eletricista - Pleno | D108: Hora | E108: 129.49 | F108: 2 | G108: =E108*F108 -> 258.98
B109: 88266 | C109: Técnico eletrotécnico | D109: Hora | E109: 35.81 | F109: 2 | G109: =E109*F109 -> 71.62
A110: Total Geral - item 16 | B110: Total Geral - item 16 | G110: =SUM(G108:G109) -> 330.6
A112: item 17 | D112: Unidade | E112: valor unitário | F112: Quant | G112: Valor total
B113: 90778 | C113: Engenheiro eletricista - Pleno | D113: Hora | E113: 129.49 | F113: 8 | G113: =E113*F113 -> 1035.92
B114: 88266 | C114: Técnico eletrotécnico | D114: Hora | E114: 35.81 | F114: 24 | G114: =E114*F114 -> 859.44
B115: 90776 | C115: Encarregado | D115: Hora | E115: 35.39 | F115: 24 | G115: 849.36
B116: 88247 | C116: Ajudante | D116: Hora | E116: 22.81 | F116: 24 | G116: 547.44
A117: Total Geral - item 17 | B117: Total Geral - item 17 | G117: =SUM(G113:G116) -> 3292.16

Sheet Item 1-1;2 CV
B4: Processo | C4: 59500.003319/2025-65
B5: Responsável | C5: Renato Chaves
B6: Área de Origem | C6: AI/GEE/UEE
B7: Data da pesquisa | C7: 2025-09-26
A9: 0 | B9: ITEM: | C9: Módulo Fotovoltaico, com potência de 570 Wp STC (ou de potência suficiente para o correto funcionamento do sistema), estrutura em liga de alumínio anodizado, caixa de junção IP 68, três diodos, eficiência superior a 19%, degradação no primeiro ano inferior a 3%, degradação do ano 2 ao 30 inferior a 0,5% ao ano, 10 anos de garantia, 20 anos de garantia de potência linear | I9: UNIDADE DE MEDIDA: | J9: Unid | K9: QUANTIDADE: | O9: Tabela auxiliar de metodologias para exclusão de preços
B10: LICITAÇÕES ANTERIORES | O10: Licitações Anteriores
B11: Órgão | C11: Edital/Ano - Nº do Lote / Item | D11: Quantidade | E11: Valor Unitário | F11: Data | G11: índice de atualização (nome) | H11: I0 | I11: If | J11: Variação acumulada do índice (%) | K11: Preço unitário atualizado | L11: Utilizar? (Sim/Não) | O11: Outliers | P11: Por critério do(a) analista
J12: =IF(ISBLANK(E12),"",IF(ISNUMBER(H12),(I12-H12)/H12,0)) ->  | K12: =IF(ISBLANK(E12),"",E12*(1+J12)) ->  | L12: =IF(ISNUMBER(K12),IF($L$34<>$P$11,O12,P12),"") ->  | O12: =IF(ISNUMBER(K12),IF(OR(K12<_xlfn.QUARTILE.INC($K$12:$K$31,1)-1.5*(_xlfn.QUARTILE.INC($K$12:$K$31,3)-_xlfn.QUARTILE.INC($K$12:$K$31,1)),K12>_xlfn.QUARTILE.INC($K$12:$K$31,3)+1.5*(_xlfn.QUARTILE.INC($K$12:$K$31,3)-_xlfn.QUARTILE.INC($K$12:$K$31,1))),"Não","Sim"),"") -> 
B19: COTAÇÕES DE MERCADO | O19: Cotações
B20: Empresa | J20: Data | K20: Preço Unitário | L20: Utilizar? (Sim/Não) | O20: Outliers | P20: Por critério do(a) analista
B21: https://loja.stentor.com.br/shop/produtodesk.php?cmpgn=ok&id=87709 | K21: 890 | L21: =IF(ISNUMBER(K21),IF($L$34=$O$20,O21,IF($L$34=$P$20,P21,"")),"") -> Sim | O21: =IF(ISNUMBER(K21),IF(OR(K21<_xlfn.QUARTILE.INC($K$12:$K$31,1)-1.5*(_xlfn.QUARTILE.INC($K$12:$K$31,3)-_xlfn.QUARTILE.INC($K$12:$K$31,1)),K21>_xlfn.QUARTILE.INC($K$12:$K$31,3)+1.5*(_xlfn.QUARTILE.INC($K$12:$K$31,3)-_xlfn.QUARTILE.INC($K$12:$K$31,1))),"Não","Sim"),"") -> Sim
B22: https://www.coliseuferramentas.com.br/painel-fotovoltaico-placa-solar-monocristalino-570-watts-tsun | K22: 739.99 | L22: Sim | O22: Sim
B23: https://www.energiatotal.com.br/painel-solar/painel-solar-570w-canadian-bifacial-cs6w-570tb-ag-topbihiku6?parceiro=6982&srsltid=AfmBOoroJzF8yeoabMtG660Wx26agzcuigRsN2c4jGkPfj1XG-cnkygQWaQ | K23: 740.86 | L23: Sim | O23: Sim
B32: Observações: | K32: Média: | L32: =IF($L$34="","Selecione metodologia para exclusão de preços",AVERAGE(IF($L$12:$L$31="Sim",$K$12:$K$31))) -> 790.28 | N32: Média (Cotações) | O32: =IF(COUNTIF(O21:O31,"Sim")<3,"N/D (são necessários pelo menos 3 preços)",AVERAGE(IF(O21:O31="Sim",$K21:$K31))) -> 790.28 | P32: =IF(COUNTIF(P21:P31,"Sim")<3,"N/D (são necessários pelo menos 3 preços)",AVERAGE(IF(P21:P31="Sim",$K21:$K31))) -> N/D (são necessários pelo menos 3 preços)
K33: Mediana: | L33: =IF($L$34="","Selecione metodologia para exclusão de preços",MEDIAN(IF($L$12:$L$31="Sim",$K$12:$K$31))) -> 740.86 | N33: Mediana (Cotações) | O33: =IF(COUNTIF(O21:O31,"Sim")<3,"N/D (são necessários pelo menos 3 preços)",MEDIAN(IF(O21:O31="Sim",$K21:$K31))) -> 740.86 | P33: =IF(COUNTIF(P21:P31,"Sim")<3,"N/D (são necessários pelo menos 3 preços)",MEDIAN(IF(P21:P31="Sim",$K21:$K31))) -> N/D (são necessários pelo menos 3 preços)
B34: Metodologia de exclusão de preços adotada: | L34: =IF(O37="",INDEX(O20:P20,MATCH(MIN(#REF!),#REF!,0)),O37) -> Outliers | N34: CV (Cotações) | O34: =IF(COUNTIF(O21:O31,"Sim")<3,"N/D (são necessários pelo menos 3 preços)",_xlfn.STDEV.S(IF(O21:O31="Sim",$K21:$K31))/AVERAGE(IF(O21:O31="Sim",$K21:$K31))) -> 0.1093 | P34: =IF(COUNTIF(P21:P31,"Sim")<3,"N/D (são necessários pelo menos 3 preços)",_xlfn.STDEV.S(IF(P21:P31="Sim",$K21:$K31))/AVERAGE(IF(P21:P31="Sim",$K21:$K31))) -> N/D (são necessários pelo menos 3 preços)
N35: Média | O35: =IF(SUM(COUNTIF($O$12:$O$18,"Sim")) + SUM(COUNTIF(O21:O31,"Sim")) < 3, "N/D (são necessários pelo menos 3 preços)", IFERROR(AVERAGE(_xlfn._xlws.FILTER($K$12:$K$18,$O$12:$O$18="Sim"), _xlfn._xlws.FILTER($K$21:$K$31,O21:O31="Sim")),O32)) -> 790.28 | P35: =IF(SUM(COUNTIF($P$12:$P$18,"Sim")) + SUM(COUNTIF(P21:P31,"Sim")) < 3, "N/D (são necessários pelo menos 3 preços)", IFERROR(AVERAGE(_xlfn._xlws.FILTER($K$12:$K$18,$P$12:$P$18="Sim"), _xlfn._xlws.FILTER($K$21:$K$31,P21:P31="Sim")),P32)) -> N/D (são necessários pelo menos 3 preços)
N36: Mediana | O36: =IF(SUM(COUNTIF($O$12:$O$18,"Sim")) + SUM(COUNTIF(O21:O31,"Sim")) < 3, "N/D (são necessários pelo menos 3 preços)", IFERROR(MEDIAN(_xlfn._xlws.FILTER($K$12:$K$18,$O$12:$O$18="Sim"), _xlfn._xlws.FILTER($K$21:$K$31,O21:O31="Sim")),O33)) -> 740.86 | P36: =IF(SUM(COUNTIF($P12:$P$18,"Sim")) + SUM(COUNTIF(P21:P31,"Sim")) < 3, "N/D (são necessários pelo menos 3 preços)", IFERROR(MEDIAN(_xlfn._xlws.FILTER($K$12:$K$18,$P$12:$P$18="Sim"), _xlfn._xlws.FILTER($K$21:$K$31,P21:P31="Sim")),P33)) -> N/D (são necessários pelo menos 3 preços)
B37: COSOLIDAÇÃO DOS PREÇOS | N37: Metodologia a adotar: | O37: =IF(INDEX(O20:P20,P37)=0,"",INDEX(O20:P20,P37)) -> Outliers | P37: 1
B39: PREÇO UNITÁRIO ESTIMADO ADOTADO: | L39: =IF($B$41="Mediana:",L33,L32) -> 790.28
A41: =O20 -> Outliers | B41: Média:
A42: =P20 -> Por critério do(a) analista

Sheet Item 2 - 1;2;3-CV
B4: Processo | C4: 59500.003319/2025-65
B5: Responsável | C5: Renato Chaves
B6: Área de Origem | C6: AI/GEE/UEE
B7: Data da pesquisa | C7: 2025-09-26
B9: ITEM: | C9: Par (macho e fêmea) de conectores terminais tipo MC4, de 2,5 a 6 mm², 1.500 Vcc, 30 A, IP67, próprio para instalações fotovoltaicas. | I9: UNIDADE DE MEDIDA: | J9: UNID | K9: QUANTIDADE: | O9: Tabela auxiliar de metodologias para exclusão de preços
B10: LICITAÇÕES ANTERIORES | O10: Licitações Anteriores
B11: Órgão | C11: Edital/Ano - Nº do Lote / Item | D11: Quantidade | E11: Valor Unitário | F11: Data | G11: índice de atualização (nome) | H11: I0 | I11: If | J11: Variação acumulada do índice (%) | K11: Preço unitário atualizado | L11: Utilizar? (Sim/Não) | O11: Outliers | P11: Por critério do(a) analista
J12: =IF(ISBLANK(E12),"",IF(ISNUMBER(H12),(I12-H12)/H12,0)) ->  | K12: =IF(ISBLANK(E12),"",E12*(1+J12)) ->  | L12: =IF(ISNUMBER(K12),IF($L$33<>$P$11,O12,P12),"") ->  | O12: =IF(ISNUMBER(K12),IF(OR(K12<_xlfn.QUARTILE.INC($K$12:$K$30,1)-1.5*(_xlfn.QUARTILE.INC($K$12:K30,3)-_xlfn.QUARTILE.INC($K$12:$K$30,1)),K12>_xlfn.QUARTILE.INC($K$12:$K$30,3)+1.5*(_xlfn.QUARTILE.INC($K$12:$K$30,3)-_xlfn.QUARTILE.INC($K$12:$K$30,1))),"Não","Sim"),"") -> 
O13: =IF(ISNUMBER(K13),IF(OR(K13<_xlfn.QUARTILE.INC($K$12:$K$30,1)-1.5*(_xlfn.QUARTILE.INC($K$12:K30,3)-_xlfn.QUARTILE.INC($K$12:$K$30,1)),K13>_xlfn.QUARTILE.INC($K$12:$K$30,3)+1.5*(_xlfn.QUARTILE.INC($K$12:$K$30,3)-_xlfn.QUARTILE.INC($K$12:$K$30,1))),"Não","Sim"),"") -> 
O14: =IF(ISNUMBER(K14),IF(OR(K14<_xlfn.QUARTILE.INC($K$12:$K$30,1)-1.5*(_xlfn.QUARTILE.INC($K$12:K31,3)-_xlfn.QUARTILE.INC($K$12:$K$30,1)),K14>_xlfn.QUARTILE.INC($K$12:$K$30,3)+1.5*(_xlfn.QUARTILE.INC($K$12:$K$30,3)-_xlfn.QUARTILE.INC($K$12:$K$30,1))),"Não","Sim"),"") -> 
O15: =IF(ISNUMBER(K15),IF(OR(K15<_xlfn.QUARTILE.INC($K$12:$K$30,1)-1.5*(_xlfn.QUARTILE.INC($K$12:K32,3)-_xlfn.QUARTILE.INC($K$12:$K$30,1)),K15>_xlfn.QUARTILE.INC($K$12:$K$30,3)+1.5*(_xlfn.QUARTILE.INC($K$12:$K$30,3)-_xlfn.QUARTILE.INC($K$12:$K$30,1))),"Não","Sim"),"") -> 
O16: =IF(ISNUMBER(K16),IF(OR(K16<_xlfn.QUARTILE.INC($K$12:$K$30,1)-1.5*(_xlfn.QUARTILE.INC($K$12:K33,3)-_xlfn.QUARTILE.INC($K$12:$K$30,1)),K16>_xlfn.QUARTILE.INC($K$12:$K$30,3)+1.5*(_xlfn.QUARTILE.INC($K$12:$K$30,3)-_xlfn.QUARTILE.INC($K$12:$K$30,1))),"Não","Sim"),"") -> 
O17: =IF(ISNUMBER(K17),IF(OR(K17<_xlfn.QUARTILE.INC($K$12:$K$30,1)-1.5*(_xlfn.QUARTILE.INC($K$12:K36,3)-_xlfn.QUARTILE.INC($K$12:$K$30,1)),K17>_xlfn.QUARTILE.INC($K$12:$K$30,3)+1.5*(_xlfn.QUARTILE.INC($K$12:$K$30,3)-_xlfn.QUARTILE.INC($K$12:$K$30,1))),"Não","Sim"),"") -> 
O18: =IF(ISNUMBER(K18),IF(OR(K18<_xlfn.QUARTILE.INC($K$12:$K$30,1)-1.5*(_xlfn.QUARTILE.INC($I$12:I38,3)-_xlfn.QUARTILE.INC($K$12:$K$30,1)),K18>_xlfn.QUARTILE.INC($K$12:$K$30,3)+1.5*(_xlfn.QUARTILE.INC($K$12:$K$30,3)-_xlfn.QUARTILE.INC($K$12:$K$30,1))),"Não","Sim"),"") -> 
B19: COTAÇÕES DE MERCADO | O19: Cotações
B20: Empresa | J20: Data | K20: Preço Unitário | L20: Utilizar? (Sim/Não) | O20: Outliers | P20: Por critério do(a) analista
B21: https://www.pandaenergiasolar.com/conector-mc4-y-flexivel-com-cabo-30-ctm-30a-1500vdc-pv-lty2-1 | J21: 2025-09-26 | K21: 47 | L21: =IF(ISNUMBER(K21),IF($L$33=$O$20,O21,IF($L$33=$P$20,P21,"")),"") -> Sim | O21: =IF(ISNUMBER(K21),IF(OR(K21<_xlfn.QUARTILE.INC($K$12:$K$30,1)-1.5*(_xlfn.QUARTILE.INC($K$12:$K$30,3)-_xlfn.QUARTILE.INC($K$12:$K$30,1)),K21>_xlfn.QUARTILE.INC($K$12:$K$30,3)+1.5*(_xlfn.QUARTILE.INC($K$12:$K$30,3)-_xlfn.QUARTILE.INC($K$12:$K$30,1))),"Não","Sim"),"") -> Sim
B22: https://produto.mercadolivre.com.br/MLB-2808511937-conector-mc4-snetec-y2-2x1-vias-4mm-30a-1000v-painel-solar-_JM?matt_tool=44747869&matt_internal_campaign_id=&matt_word=&matt_source=google&matt_campaign_id=22603531439&matt_ad_group_id=183641039649&matt_match_type=&matt_network=g&matt_device=c&matt_creative=758138322197&matt_keyword=&matt_ad_position=&matt_ad_type=pla&matt_merchant_id=114217365&matt_product_id=MLB2808511937&matt_product_partition_id=2424646252682&matt_target_id=aud-1966490908987:pla-2424646252682&cq_src=google_ads&cq_cmp=22603531439&cq_net=g&cq_plt=gp&cq_med=pla&gad_source=1&gad_campaignid=22603531439&gbraid=0AAAAAD93qcAGxhbkP13rvIdXgiW3gXTPp&gclid=Cj0KCQjw58PGBhCkARIsADbDilzE3TxEfdoukcwyuvXCXmpBXXtq9IPJjxVWjwkeVgKZosz9ekIGEPcaAkC9EALw_wcB | J22: 2025-09-26 | K22: 43.64 | L22: Sim | O22: Sim
B23: https://www.energyshop.com.br/conector-mc4-em-paralelo-macho-femea-par?parceiro=9109&gad_source=4&gad_campaignid=17182228213&gbraid=0AAAAADhl-GFKUbXzbZB9vsRivNYcvD-g6&gclid=Cj0KCQjw58PGBhCkARIsADbDily4OSDysWxfjFqFfasTRsEQcxYoAk2yufoSQz-zYMPFaCSMxsfu3KsaAmNLEALw_wcB | J23: 2025-09-26 | K23: 39 | L23: Sim | O23: Sim
B24: https://shopee.com.br/product/322913314/17335935568?gads_t_sig=VTJGc2RHVmtYMTlxTFVSVVRrdENkVHQ3ZkZSUTMrR3pBWmZZNzdrcnRBMU9XaFhwVC9iemNxSlMvY3pScnZabHJLQmpsNXVzeXN5RDlxdjNpYjRVK2h1SjBxUG1lb0dyWGsxR1VTWmQ4WUNGV2xIOUpySmFhY1E0N2pCQ2hUVmhDb09ibU5NR3RiTEFTUUlSenMvTDZ3PT0 | J24: 2025-09-26 | K24: 48.41 | L24: Sim | O24: Sim
B31: Observações: | K31: Média: | L31: =IF($L$33="","Selecione metodologia para exclusão de preços",AVERAGE(IF($L$12:$L$30="Sim",$K$12:$K$30))) -> 44.51 | N31: Média (Cotações) | O31: =IF(COUNTIF(O21:O30,"Sim")<3,"N/D (são necessários pelo menos 3 preços)",AVERAGE(IF(O21:O30="Sim",$K21:$K30))) -> 44.51 | P31: =IF(COUNTIF(P21:P30,"Sim")<3,"N/D (são necessários pelo menos 3 preços)",AVERAGE(IF(P21:P30="Sim",$K21:$K30))) -> N/D (são necessários pelo menos 3 preços)
K32: Mediana: | L32: =IF($L$33="","Selecione metodologia para exclusão de preços",MEDIAN(IF($L$12:$L$30="Sim",$K$12:$K$30))) -> 45.32 | N32: Mediana (Cotações) | O32: =IF(COUNTIF(O21:O30,"Sim")<3,"N/D (são necessários pelo menos 3 preços)",MEDIAN(IF(O21:O30="Sim",$K21:$K30))) -> 45.32 | P32: =IF(COUNTIF(P21:P30,"Sim")<3,"N/D (são necessários pelo menos 3 preços)",MEDIAN(IF(P21:P30="Sim",$K21:$K30))) -> N/D (são necessários pelo menos 3 preços)
B33: Metodologia de exclusão de preços adotada: | L33: =IF(O36="",INDEX(O20:P20,MATCH(MIN(#REF!),#REF!,0)),O36) -> Outliers | N33: CV (Cotações) | O33: =IF(COUNTIF(O21:O30,"Sim")<3,"N/D (são necessários pelo menos 3 preços)",_xlfn.STDEV.S(IF(O21:O30="Sim",$K21:$K30))/AVERAGE(IF(O21:O30="Sim",$K21:$K30))) -> 0.094 | P33: =IF(COUNTIF(P21:P30,"Sim")<3,"N/D (são necessários pelo menos 3 preços)",_xlfn.STDEV.S(IF(P21:P30="Sim",$K21:$K30))/AVERAGE(IF(P21:P30="Sim",$K21:$K30))) -> N/D (são necessários pelo menos 3 preços)
N34: Média | O34: =IF(SUM(COUNTIF($O$12:$O$18,"Sim")) + SUM(COUNTIF(O21:O30,"Sim")) < 3, "N/D (são necessários pelo menos 3 preços)", IFERROR(AVERAGE(_xlfn._xlws.FILTER($K$12:$K$18,$O$12:$O$18="Sim"), _xlfn._xlws.FILTER($K$21:$K$30,O21:O30="Sim")),O31)) -> 44.51 | P34: =IF(SUM(COUNTIF($P$12:$P$18,"Sim")) + SUM(COUNTIF(P21:P30,"Sim")) < 3, "N/D (são necessários pelo menos 3 preços)", IFERROR(AVERAGE(_xlfn._xlws.FILTER($K$12:$K$18,$P$12:$P$18="Sim"), _xlfn._xlws.FILTER($K$21:$K$30,P21:P30="Sim")),P31)) -> N/D (são necessários pelo menos 3 preços)
N35: Mediana | O35: =IF(SUM(COUNTIF($O$12:$O$18,"Sim")) + SUM(COUNTIF(O21:O30,"Sim")) < 3, "N/D (são necessários pelo menos 3 preços)", IFERROR(MEDIAN(_xlfn._xlws.FILTER($K$12:$K$18,$O$12:$O$18="Sim"), _xlfn._xlws.FILTER($K$21:$K$30,O21:O30="Sim")),O32)) -> 45.32 | P35: =IF(SUM(COUNTIF($P12:$P$18,"Sim")) + SUM(COUNTIF(P21:P30,"Sim")) < 3, "N/D (são necessários pelo menos 3 preços)", IFERROR(MEDIAN(_xlfn._xlws.FILTER($K$12:$K$18,$P$12:$P$18="Sim"), _xlfn._xlws.FILTER($K$21:$K$30,P21:P30="Sim")),P32)) -> N/D (são necessários pelo menos 3 preços)
B36: COSOLIDAÇÃO DOS PREÇOS | N36: Metodologia a adotar: | O36: =IF(INDEX(O20:P20,P36)=0,"",INDEX(O20:P20,P36)) -> Outliers | P36: 1
B38: PREÇO UNITÁRIO ESTIMADO ADOTADO: | L38: =IF($B$40="Mediana:",L32,L31) -> 44.51
A40: =O20 -> Outliers | B40: Média:
A41: =P20 -> Por critério do(a) analista

Sheet Item 3 - 1 CV
B4: Processo | C4: 59500.003319/2025-65
B5: Responsável | C5: Renato Chaves
B6: Área de Origem | C6: AI/GEE/UEE
B7: Data da pesquisa | C7: 2025-09-26
B9: ITEM: | C9: Estrutura de solo para módulos fotovoltaicos, 5 módulos instalados, pilastra travessa e mão francesa em aço galvanizado a fogo, longarina e acessórios em alumínio. Inclui todos os acessórios para correta fixação dos painéis. | I9: UNIDADE DE MEDIDA: | K9: QUANTIDADE: | O9: Tabela auxiliar de metodologias para exclusão de preços
B10: LICITAÇÕES ANTERIORES | O10: Licitações Anteriores
B11: Órgão | C11: Edital/Ano - Nº do Lote / Item | D11: Quantidade | E11: Valor Unitário | F11: Data | G11: índice de atualização (nome) | H11: I0 | I11: If | J11: Variação acumulada do índice (%) | K11: Preço unitário atualizado | L11: Utilizar? (Sim/Não) | O11: Outliers | P11: Por critério do(a) analista
J12: =IF(ISBLANK(E12),"",IF(ISNUMBER(H12),(I12-H12)/H12,0)) ->  | K12: =IF(ISBLANK(E12),"",E12*(1+J12)) ->  | L12: =IF(ISNUMBER(K12),IF($L$34<>$P$11,O12,P12),"") ->  | O12: =IF(ISNUMBER(K12),IF(OR(K12<_xlfn.QUARTILE.INC($K$12:$K$31,1)-1.5*(_xlfn.QUARTILE.INC($K$12:K31,3)-_xlfn.QUARTILE.INC($K$12:$K$31,1)),K12>_xlfn.QUARTILE.INC($K$12:$K$31,3)+1.5*(_xlfn.QUARTILE.INC($K$12:$K$31,3)-_xlfn.QUARTILE.INC($K$12:$K$31,1))),"Não","Sim"),"") -> 
O13: =IF(ISNUMBER(K13),IF(OR(K13<_xlfn.QUARTILE.INC($K$12:$K$31,1)-1.5*(_xlfn.QUARTILE.INC($K$12:K31,3)-_xlfn.QUARTILE.INC($K$12:$K$31,1)),K13>_xlfn.QUARTILE.INC($K$12:$K$31,3)+1.5*(_xlfn.QUARTILE.INC($K$12:$K$31,3)-_xlfn.QUARTILE.INC($K$12:$K$31,1))),"Não","Sim"),"") -> 
O14: =IF(ISNUMBER(K14),IF(OR(K14<_xlfn.QUARTILE.INC($K$12:$K$31,1)-1.5*(_xlfn.QUARTILE.INC($K$12:K32,3)-_xlfn.QUARTILE.INC($K$12:$K$31,1)),K14>_xlfn.QUARTILE.INC($K$12:$K$31,3)+1.5*(_xlfn.QUARTILE.INC($K$12:$K$31,3)-_xlfn.QUARTILE.INC($K$12:$K$31,1))),"Não","Sim"),"") -> 
O15: =IF(ISNUMBER(K15),IF(OR(K15<_xlfn.QUARTILE.INC($K$12:$K$31,1)-1.5*(_xlfn.QUARTILE.INC($K$12:K33,3)-_xlfn.QUARTILE.INC($K$12:$K$31,1)),K15>_xlfn.QUARTILE.INC($K$12:$K$31,3)+1.5*(_xlfn.QUARTILE.INC($K$12:$K$31,3)-_xlfn.QUARTILE.INC($K$12:$K$31,1))),"Não","Sim"),"") -> 
O16: =IF(ISNUMBER(K16),IF(OR(K16<_xlfn.QUARTILE.INC($K$12:$K$31,1)-1.5*(_xlfn.QUARTILE.INC($K$12:K34,3)-_xlfn.QUARTILE.INC($K$12:$K$31,1)),K16>_xlfn.QUARTILE.INC($K$12:$K$31,3)+1.5*(_xlfn.QUARTILE.INC($K$12:$K$31,3)-_xlfn.QUARTILE.INC($K$12:$K$31,1))),"Não","Sim"),"") -> 
O17: =IF(ISNUMBER(K17),IF(OR(K17<_xlfn.QUARTILE.INC($K$12:$K$31,1)-1.5*(_xlfn.QUARTILE.INC($K$12:K37,3)-_xlfn.QUARTILE.INC($K$12:$K$31,1)),K17>_xlfn.QUARTILE.INC($K$12:$K$31,3)+1.5*(_xlfn.QUARTILE.INC($K$12:$K$31,3)-_xlfn.QUARTILE.INC($K$12:$K$31,1))),"Não","Sim"),"") -> 
O18: =IF(ISNUMBER(K18),IF(OR(K18<_xlfn.QUARTILE.INC($K$12:$K$31,1)-1.5*(_xlfn.QUARTILE.INC($I$12:I39,3)-_xlfn.QUARTILE.INC($K$12:$K$31,1)),K18>_xlfn.QUARTILE.INC($K$12:$K$31,3)+1.5*(_xlfn.QUARTILE.INC($K$12:$K$31,3)-_xlfn.QUARTILE.INC($K$12:$K$31,1))),"Não","Sim"),"") -> 
B19: COTAÇÕES DE MERCADO | O19: Cotações
B20: Empresa | J20: Data | K20: Preço Unitário | L20: Utilizar? (Sim/Não) | O20: Outliers | P20: Por critério do(a) analista
B21: https://www.lojakasatec.com.br/www-lojakasatec-com-br/kit-fixacao/kit-de-fixacao-para-placa-solar-para-5-placas-em-solo-biposte?srsltid=AfmBOopvFfeGxR8wxh_abkleouAzBzcarFV9wl8i56FjLuA3UFuImP_Ax7s | J21: 2025-09-26 | K21: 1638 | L21: =IF(ISNUMBER(K21),IF($L$34=$O$20,O21,IF($L$34=$P$20,P21,"")),"") -> Sim | O21: =IF(ISNUMBER(K21),IF(OR(K21<_xlfn.QUARTILE.INC($K$12:$K$31,1)-1.5*(_xlfn.QUARTILE.INC($K$12:$K$31,3)-_xlfn.QUARTILE.INC($K$12:$K$31,1)),K21>_xlfn.QUARTILE.INC($K$12:$K$31,3)+1.5*(_xlfn.QUARTILE.INC($K$12:$K$31,3)-_xlfn.QUARTILE.INC($K$12:$K$31,1))),"Não","Sim"),"") -> Sim
B22: NEOSOLAR ENERGIA LTDA - CNPJ 12.420.339/0003-98 | J22: 2025-09-26 | K22: 1243.63 | L22: Sim | O22: Sim
B23: PERFIX SOLAR SUPORTES EM ALUMINIO - CNPJ 21.117.016/0001-59 | J23: 2025-09-26 | K23: 800.18 | L23: Sim | O23: Sim
B24: MODULAR ESTRUTURAS EM AÇO LTDA - 34.743.124/0001-89 | J24: 2025-09-26 | K24: 730.04 | L24: Sim | O24: Sim
B32: Observações: | K32: Média: | L32: =IF($L$34="","Selecione metodologia para exclusão de preços",AVERAGE(IF($L$12:$L$31="Sim",$K$12:$K$31))) -> 1102.96 | N32: Média (Cotações) | O32: =IF(COUNTIF(O21:O31,"Sim")<3,"N/D (são necessários pelo menos 3 preços)",AVERAGE(IF(O21:O31="Sim",$K21:$K31))) -> 1102.96 | P32: =IF(COUNTIF(P21:P31,"Sim")<3,"N/D (são necessários pelo menos 3 preços)",AVERAGE(IF(P21:P31="Sim",$K21:$K31))) -> N/D (são necessários pelo menos 3 preços)
K33: Mediana: | L33: =IF($L$34="","Selecione metodologia para exclusão de preços",MEDIAN(IF($L$12:$L$31="Sim",$K$12:$K$31))) -> 1021.91 | N33: Mediana (Cotações) | O33: =IF(COUNTIF(O21:O31,"Sim")<3,"N/D (são necessários pelo menos 3 preços)",MEDIAN(IF(O21:O31="Sim",$K21:$K31))) -> 1021.91 | P33: =IF(COUNTIF(P21:P31,"Sim")<3,"N/D (são necessários pelo menos 3 preços)",MEDIAN(IF(P21:P31="Sim",$K21:$K31))) -> N/D (são necessários pelo menos 3 preços)
B34: Metodologia de exclusão de preços adotada: | L34: =IF(O37="",INDEX(O20:P20,MATCH(MIN(#REF!),#REF!,0)),O37) -> Outliers | N34: CV (Cotações) | O34: =IF(COUNTIF(O21:O31,"Sim")<3,"N/D (são necessários pelo menos 3 preços)",_xlfn.STDEV.S(IF(O21:O31="Sim",$K21:$K31))/AVERAGE(IF(O21:O31="Sim",$K21:$K31))) -> 0.3835 | P34: =IF(COUNTIF(P21:P31,"Sim")<3,"N/D (são necessários pelo menos 3 preços)",_xlfn.STDEV.S(IF(P21:P31="Sim",$K21:$K31))/AVERAGE(IF(P21:P31="Sim",$K21:$K31))) -> N/D (são necessários pelo menos 3 preços)
N35: Média | O35: =IF(SUM(COUNTIF($O$12:$O$18,"Sim")) + SUM(COUNTIF(O21:O31,"Sim")) < 3, "N/D (são necessários pelo menos 3 preços)", IFERROR(AVERAGE(_xlfn._xlws.FILTER($K$12:$K$18,$O$12:$O$18="Sim"), _xlfn._xlws.FILTER($K$21:$K$31,O21:O31="Sim")),O32)) -> 1102.96 | P35: =IF(SUM(COUNTIF($P$12:$P$18,"Sim")) + SUM(COUNTIF(P21:P31,"Sim")) < 3, "N/D (são necessários pelo menos 3 preços)", IFERROR(AVERAGE(_xlfn._xlws.FILTER($K$12:$K$18,$P$12:$P$18="Sim"), _xlfn._xlws.FILTER($K$21:$K$31,P21:P31="Sim")),P32)) -> N/D (são necessários pelo menos 3 preços)
N36: Mediana | O36: =IF(SUM(COUNTIF($O$12:$O$18,"Sim")) + SUM(COUNTIF(O21:O31,"Sim")) < 3, "N/D (são necessários pelo menos 3 preços)", IFERROR(MEDIAN(_xlfn._xlws.FILTER($K$12:$K$18,$O$12:$O$18="Sim"), _xlfn._xlws.FILTER($K$21:$K$31,O21:O31="Sim")),O33)) -> 1021.91 | P36: =IF(SUM(COUNTIF($P12:$P$18,"Sim")) + SUM(COUNTIF(P21:P31,"Sim")) < 3, "N/D (são necessários pelo menos 3 preços)", IFERROR(MEDIAN(_xlfn._xlws.FILTER($K$12:$K$18,$P$12:$P$18="Sim"), _xlfn._xlws.FILTER($K$21:$K$31,P21:P31="Sim")),P33)) -> N/D (são necessários pelo menos 3 preços)
B37: COSOLIDAÇÃO DOS PREÇOS | N37: Metodologia a adotar: | O37: =IF(INDEX(O20:P20,P37)=0,"",INDEX(O20:P20,P37)) -> Outliers | P37: 1
B39: PREÇO UNITÁRIO ESTIMADO ADOTADO: | L39: =IF($B$41="Mediana:",L33,L32) -> 1102.96
A41: =O20 -> Outliers | B41: Média:
A42: =P20 -> Por critério do(a) analista

Sheet Item 4 - 1;2;3 CV
B4: Processo | C4: 59500.003319/2025-65
B5: Responsável | C5: Renato Chaves
B6: Área de Origem | C6: AI/GEE/UEE
B7: Data da pesquisa | C7: 2025-09-26
B9: ITEM: | C9: Condutor de 4 mm², fios de cobre, têmpera mole, encordoamento classe 5 (extraflexível), isolação em composto termofixo livre de halogênio, retardante a chamas, cobertura em composto termofixo livre de halogênio, resistente a UV. Na cor vermelha. | I9: UNIDADE DE MEDIDA: | J9: METRO | K9: QUANTIDADE: | O9: Tabela auxiliar de metodologias para exclusão de preços
B10: LICITAÇÕES ANTERIORES | O10: Licitações Anteriores
B11: Órgão | C11: Edital/Ano - Nº do Lote / Item | D11: Quantidade | E11: Valor Unitário | F11: Data | G11: índice de atualização (nome) | H11: I0 | I11: If | J11: Variação acumulada do índice (%) | K11: Preço unitário atualizado | L11: Utilizar? (Sim/Não) | O11: Outliers | P11: Por critério do(a) analista
J12: =IF(ISBLANK(E12),"",IF(ISNUMBER(H12),(I12-H12)/H12,0)) ->  | K12: =IF(ISBLANK(E12),"",E12*(1+J12)) ->  | L12: =IF(ISNUMBER(K12),IF($L$34<>$P$11,O12,P12),"") ->  | O12: =IF(ISNUMBER(K12),IF(OR(K12<_xlfn.QUARTILE.INC($K$12:$K$31,1)-1.5*(_xlfn.QUARTILE.INC($K$12:K31,3)-_xlfn.QUARTILE.INC($K$12:$K$31,1)),K12>_xlfn.QUARTILE.INC($K$12:$K$31,3)+1.5*(_xlfn.QUARTILE.INC($K$12:$K$31,3)-_xlfn.QUARTILE.INC($K$12:$K$31,1))),"Não","Sim"),"") -> 
O13: =IF(ISNUMBER(K13),IF(OR(K13<_xlfn.QUARTILE.INC($K$12:$K$31,1)-1.5*(_xlfn.QUARTILE.INC($K$12:K31,3)-_xlfn.QUARTILE.INC($K$12:$K$31,1)),K13>_xlfn.QUARTILE.INC($K$12:$K$31,3)+1.5*(_xlfn.QUARTILE.INC($K$12:$K$31,3)-_xlfn.QUARTILE.INC($K$12:$K$31,1))),"Não","Sim"),"") -> 
O14: =IF(ISNUMBER(K14),IF(OR(K14<_xlfn.QUARTILE.INC($K$12:$K$31,1)-1.5*(_xlfn.QUARTILE.INC($K$12:K32,3)-_xlfn.QUARTILE.INC($K$12:$K$31,1)),K14>_xlfn.QUARTILE.INC($K$12:$K$31,3)+1.5*(_xlfn.QUARTILE.INC($K$12:$K$31,3)-_xlfn.QUARTILE.INC($K$12:$K$31,1))),"Não","Sim"),"") -> 
O15: =IF(ISNUMBER(K15),IF(OR(K15<_xlfn.QUARTILE.INC($K$12:$K$31,1)-1.5*(_xlfn.QUARTILE.INC($K$12:K33,3)-_xlfn.QUARTILE.INC($K$12:$K$31,1)),K15>_xlfn.QUARTILE.INC($K$12:$K$31,3)+1.5*(_xlfn.QUARTILE.INC($K$12:$K$31,3)-_xlfn.QUARTILE.INC($K$12:$K$31,1))),"Não","Sim"),"") -> 
O16: =IF(ISNUMBER(K16),IF(OR(K16<_xlfn.QUARTILE.INC($K$12:$K$31,1)-1.5*(_xlfn.QUARTILE.INC($K$12:K34,3)-_xlfn.QUARTILE.INC($K$12:$K$31,1)),K16>_xlfn.QUARTILE.INC($K$12:$K$31,3)+1.5*(_xlfn.QUARTILE.INC($K$12:$K$31,3)-_xlfn.QUARTILE.INC($K$12:$K$31,1))),"Não","Sim"),"") -> 
O17: =IF(ISNUMBER(K17),IF(OR(K17<_xlfn.QUARTILE.INC($K$12:$K$31,1)-1.5*(_xlfn.QUARTILE.INC($K$12:K37,3)-_xlfn.QUARTILE.INC($K$12:$K$31,1)),K17>_xlfn.QUARTILE.INC($K$12:$K$31,3)+1.5*(_xlfn.QUARTILE.INC($K$12:$K$31,3)-_xlfn.QUARTILE.INC($K$12:$K$31,1))),"Não","Sim"),"") -> 
O18: =IF(ISNUMBER(K18),IF(OR(K18<_xlfn.QUARTILE.INC($K$12:$K$31,1)-1.5*(_xlfn.QUARTILE.INC($I$12:I39,3)-_xlfn.QUARTILE.INC($K$12:$K$31,1)),K18>_xlfn.QUARTILE.INC($K$12:$K$31,3)+1.5*(_xlfn.QUARTILE.INC($K$12:$K$31,3)-_xlfn.QUARTILE.INC($K$12:$K$31,1))),"Não","Sim"),"") -> 
B19: COTAÇÕES DE MERCADO | O19: Cotações
B20: Empresa | J20: Data | K20: Preço Unitário | L20: Utilizar? (Sim/Não) | O20: Outliers | P20: Por critério do(a) analista
B21: https://www.lojaeletrica.com.br/cabo-solar-4mm-vermelho-prysmian.html | J21: 2025-09-26 | K21: 5.3 | L21: =IF(ISNUMBER(K21),IF($L$34=$O$20,O21,IF($L$34=$P$20,P21,"")),"") -> Sim | O21: =IF(ISNUMBER(K21),IF(OR(K21<_xlfn.QUARTILE.INC($K$12:$K$31,1)-1.5*(_xlfn.QUARTILE.INC($K$12:$K$31,3)-_xlfn.QUARTILE.INC($K$12:$K$31,1)),K21>_xlfn.QUARTILE.INC($K$12:$K$31,3)+1.5*(_xlfn.QUARTILE.INC($K$12:$K$31,3)-_xlfn.QUARTILE.INC($K$12:$K$31,1))),"Não","Sim"),"") -> Sim
B22: https://www.magazineluiza.com.br/cabo-solar-4mm2-metro-18kv-c-c-vermelho-cabomix/p/bd50kf1952/cj/catr/?&seller_id=solarprado&utm_source=google&utm_medium=cpc&utm_term=80674&utm_campaign=google_eco_per_ven_pla_ca_sor_3p_ci-cj-csp&utm_content=&partner_id=80674&gclsrc=aw.ds&gad_source=1&gad_campaignid=22825521530&gbraid=0AAAAAD4zZmRdXJT0KbEsBwcLTwPNQCNks&gclid=Cj0KCQjw58PGBhCkARIsADbDilzQBi-ksrGl24DaXAVlpJYsIdDyJubGviKDL3GgVhByrrKB8tk3AREaAremEALw_wcB | J22: 2025-09-26 | K22: 6.2 | L22: Sim | O22: Sim
B23: https://loja.ccabos.com.br/produtos/cabo-400mm-solar-atox-classe-5-nbr-16612-1-8-kv-c-c/?variant=1122309877&pf=mc&srsltid=AfmBOora56vPkoGTvlgsay4ZZ426sPXLxc48DdeAw6MrHtCracSiLQqEBqQ | J23: 2025-09-26 | K23: 4.75 | L23: Sim | O23: Sim
B24: https://www.soedral.com.br/produto/cabo-naxflex-1kv-hepr-40mm-vermelho-vendido-por-metro?utm_source=Site&utm_medium=GoogleShopping&utm_campaign=IntegracaoGoogle&srsltid=AfmBOoo0R1ZbU0BeGg0FUOD71QgYDoMWlUkwGb-lJa_gkE_hoEiIVYbOWsc | J24: 2025-09-26 | K24: 4.52 | L24: Sim | O24: Sim
B32: Observações: | K32: Média: | L32: =IF($L$34="","Selecione metodologia para exclusão de preços",AVERAGE(IF($L$12:$L$31="Sim",$K$12:$K$31))) -> 5.19 | N32: Média (Cotações) | O32: =IF(COUNTIF(O21:O31,"Sim")<3,"N/D (são necessários pelo menos 3 preços)",AVERAGE(IF(O21:O31="Sim",$K21:$K31))) -> 5.19 | P32: =IF(COUNTIF(P21:P31,"Sim")<3,"N/D (são necessários pelo menos 3 preços)",AVERAGE(IF(P21:P31="Sim",$K21:$K31))) -> N/D (são necessários pelo menos 3 preços)
K33: Mediana: | L33: =IF($L$34="","Selecione metodologia para exclusão de preços",MEDIAN(IF($L$12:$L$31="Sim",$K$12:$K$31))) -> 5.03 | N33: Mediana (Cotações) | O33: =IF(COUNTIF(O21:O31,"Sim")<3,"N/D (são necessários pelo menos 3 preços)",MEDIAN(IF(O21:O31="Sim",$K21:$K31))) -> 5.03 | P33: =IF(COUNTIF(P21:P31,"Sim")<3,"N/D (são necessários pelo menos 3 preços)",MEDIAN(IF(P21:P31="Sim",$K21:$K31))) -> N/D (são necessários pelo menos 3 preços)
B34: Metodologia de exclusão de preços adotada: | L34: =IF(O37="",INDEX(O20:P20,MATCH(MIN(#REF!),#REF!,0)),O37) -> Outliers | N34: CV (Cotações) | O34: =IF(COUNTIF(O21:O31,"Sim")<3,"N/D (são necessários pelo menos 3 preços)",_xlfn.STDEV.S(IF(O21:O31="Sim",$K21:$K31))/AVERAGE(IF(O21:O31="Sim",$K21:$K31))) -> 0.1439 | P34: =IF(COUNTIF(P21:P31,"Sim")<3,"N/D (são necessários pelo menos 3 preços)",_xlfn.STDEV.S(IF(P21:P31="Sim",$K21:$K31))/AVERAGE(IF(P21:P31="Sim",$K21:$K31))) -> N/D (são necessários pelo menos 3 preços)
N35: Média | O35: =IF(SUM(COUNTIF($O$12:$O$18,"Sim")) + SUM(COUNTIF(O21:O31,"Sim")) < 3, "N/D (são necessários pelo menos 3 preços)", IFERROR(AVERAGE(_xlfn._xlws.FILTER($K$12:$K$18,$O$12:$O$18="Sim"), _xlfn._xlws.FILTER($K$21:$K$31,O21:O31="Sim")),O32)) -> 5.19 | P35: =IF(SUM(COUNTIF($P$12:$P$18,"Sim")) + SUM(COUNTIF(P21:P31,"Sim")) < 3, "N/D (são necessários pelo menos 3 preços)", IFERROR(AVERAGE(_xlfn._xlws.FILTER($K$12:$K$18,$P$12:$P$18="Sim"), _xlfn._xlws.FILTER($K$21:$K$31,P21:P31="Sim")),P32)) -> N/D (são necessários pelo menos 3 preços)
N36: Mediana | O36: =IF(SUM(COUNTIF($O$12:$O$18,"Sim")) + SUM(COUNTIF(O21:O31,"Sim")) < 3, "N/D (são necessários pelo menos 3 preços)", IFERROR(MEDIAN(_xlfn._xlws.FILTER($K$12:$K$18,$O$12:$O$18="Sim"), _xlfn._xlws.FILTER($K$21:$K$31,O21:O31="Sim")),O33)) -> 5.03 | P36: =IF(SUM(COUNTIF($P12:$P$18,"Sim")) + SUM(COUNTIF(P21:P31,"Sim")) < 3, "N/D (são necessários pelo menos 3 preços)", IFERROR(MEDIAN(_xlfn._xlws.FILTER($K$12:$K$18,$P$12:$P$18="Sim"), _xlfn._xlws.FILTER($K$21:$K$31,P21:P31="Sim")),P33)) -> N/D (são necessários pelo menos 3 preços)
B37: COSOLIDAÇÃO DOS PREÇOS | N37: Metodologia a adotar: | O37: =IF(INDEX(O20:P20,P37)=0,"",INDEX(O20:P20,P37)) -> Outliers | P37: 1
B39: PREÇO UNITÁRIO ESTIMADO ADOTADO: | L39: =IF($B$41="Mediana:",L33,L32) -> 5.19
A41: =O20 -> Outliers | B41: Média:
A42: =P20 -> Por critério do(a) analista

Sheet Item 5 - 1;2;3 CV
B4: Processo | C4: 59500.003319/2025-65
B5: Responsável | C5: Renato Chaves
B6: Área de Origem | C6: AI/GEE/UEE
B7: Data da pesquisa | C7: 2025-09-26
B9: ITEM: | C9: Condutor de 4 mm², fios de cobre, têmpera mole, encordoamento classe 5 (extraflexível), isolação em composto termofixo livre de halogênio, retardante a chamas, cobertura em composto termofixo livre de halogênio, resistente a UV. Na cor preta | I9: UNIDADE DE MEDIDA: | J9: Metro | K9: QUANTIDADE: | O9: Tabela auxiliar de metodologias para exclusão de preços
B10: LICITAÇÕES ANTERIORES | O10: Licitações Anteriores
B11: Órgão | C11: Edital/Ano - Nº do Lote / Item | D11: Quantidade | E11: Valor Unitário | F11: Data | G11: índice de atualização (nome) | H11: I0 | I11: If | J11: Variação acumulada do índice (%) | K11: Preço unitário atualizado | L11: Utilizar? (Sim/Não) | O11: Outliers | P11: Por critério do(a) analista
J12: =IF(ISBLANK(E12),"",IF(ISNUMBER(H12),(I12-H12)/H12,0)) ->  | K12: =IF(ISBLANK(E12),"",E12*(1+J12)) ->  | L12: =IF(ISNUMBER(K12),IF($L$34<>$P$11,O12,P12),"") ->  | O12: =IF(ISNUMBER(K12),IF(OR(K12<_xlfn.QUARTILE.INC($K$12:$K$31,1)-1.5*(_xlfn.QUARTILE.INC($K$12:K31,3)-_xlfn.QUARTILE.INC($K$12:$K$31,1)),K12>_xlfn.QUARTILE.INC($K$12:$K$31,3)+1.5*(_xlfn.QUARTILE.INC($K$12:$K$31,3)-_xlfn.QUARTILE.INC($K$12:$K$31,1))),"Não","Sim"),"") -> 
O13: =IF(ISNUMBER(K13),IF(OR(K13<_xlfn.QUARTILE.INC($K$12:$K$31,1)-1.5*(_xlfn.QUARTILE.INC($K$12:K31,3)-_xlfn.QUARTILE.INC($K$12:$K$31,1)),K13>_xlfn.QUARTILE.INC($K$12:$K$31,3)+1.5*(_xlfn.QUARTILE.INC($K$12:$K$31,3)-_xlfn.QUARTILE.INC($K$12:$K$31,1))),"Não","Sim"),"") -> 
O14: =IF(ISNUMBER(K14),IF(OR(K14<_xlfn.QUARTILE.INC($K$12:$K$31,1)-1.5*(_xlfn.QUARTILE.INC($K$12:K32,3)-_xlfn.QUARTILE.INC($K$12:$K$31,1)),K14>_xlfn.QUARTILE.INC($K$12:$K$31,3)+1.5*(_xlfn.QUARTILE.INC($K$12:$K$31,3)-_xlfn.QUARTILE.INC($K$12:$K$31,1))),"Não","Sim"),"") -> 
O15: =IF(ISNUMBER(K15),IF(OR(K15<_xlfn.QUARTILE.INC($K$12:$K$31,1)-1.5*(_xlfn.QUARTILE.INC($K$12:K33,3)-_xlfn.QUARTILE.INC($K$12:$K$31,1)),K15>_xlfn.QUARTILE.INC($K$12:$K$31,3)+1.5*(_xlfn.QUARTILE.INC($K$12:$K$31,3)-_xlfn.QUARTILE.INC($K$12:$K$31,1))),"Não","Sim"),"") -> 
O16: =IF(ISNUMBER(K16),IF(OR(K16<_xlfn.QUARTILE.INC($K$12:$K$31,1)-1.5*(_xlfn.QUARTILE.INC($K$12:K34,3)-_xlfn.QUARTILE.INC($K$12:$K$31,1)),K16>_xlfn.QUARTILE.INC($K$12:$K$31,3)+1.5*(_xlfn.QUARTILE.INC($K$12:$K$31,3)-_xlfn.QUARTILE.INC($K$12:$K$31,1))),"Não","Sim"),"") -> 
O17: =IF(ISNUMBER(K17),IF(OR(K17<_xlfn.QUARTILE.INC($K$12:$K$31,1)-1.5*(_xlfn.QUARTILE.INC($K$12:K37,3)-_xlfn.QUARTILE.INC($K$12:$K$31,1)),K17>_xlfn.QUARTILE.INC($K$12:$K$31,3)+1.5*(_xlfn.QUARTILE.INC($K$12:$K$31,3)-_xlfn.QUARTILE.INC($K$12:$K$31,1))),"Não","Sim"),"") -> 
O18: =IF(ISNUMBER(K18),IF(OR(K18<_xlfn.QUARTILE.INC($K$12:$K$31,1)-1.5*(_xlfn.QUARTILE.INC($I$12:I39,3)-_xlfn.QUARTILE.INC($K$12:$K$31,1)),K18>_xlfn.QUARTILE.INC($K$12:$K$31,3)+1.5*(_xlfn.QUARTILE.INC($K$12:$K$31,3)-_xlfn.QUARTILE.INC($K$12:$K$31,1))),"Não","Sim"),"") -> 
B19: COTAÇÕES DE MERCADO | O19: Cotações
B20: Empresa | J20: Data | K20: Preço Unitário | L20: Utilizar? (Sim/Não) | O20: Outliers | P20: Por critério do(a) analista
B21: https://www.lojaeletrica.com.br/cabo-solar-4mm-preto-prysmian.html | J21: 2025-09-26 | K21: 5.3 | L21: =IF(ISNUMBER(K21),IF($L$34=$O$20,O21,IF($L$34=$P$20,P21,"")),"") -> Sim | O21: =IF(ISNUMBER(K21),IF(OR(K21<_xlfn.QUARTILE.INC($K$12:$K$31,1)-1.5*(_xlfn.QUARTILE.INC($K$12:$K$31,3)-_xlfn.QUARTILE.INC($K$12:$K$31,1)),K21>_xlfn.QUARTILE.INC($K$12:$K$31,3)+1.5*(_xlfn.QUARTILE.INC($K$12:$K$31,3)-_xlfn.QUARTILE.INC($K$12:$K$31,1))),"Não","Sim"),"") -> Sim
B22: https://loja.trxsolar.com/acessorios/cabo-fotovoltaico-4mm-preto?srsltid=AfmBOorCU_WO9uogzkLmyEAglqD9nP44OzTx5XbrNmElS_0gPjBuB_B9 | J22: 2025-09-26 | K22: 6.9 | L22: Não | O22: Não
B23: https://www.energiatotal.com.br/variedades/cabos-e-conectores/cabo-solar-preto-4mm-1-8kv-metro?parceiro=6982&srsltid=AfmBOopJ-rc3welv8G9T7BgVMf0CBMNt2_0Qv8KW586xMdJxd-QCfuBhB_E | J23: 2025-09-26 | K23: 4.93 | L23: Sim | O23: Sim
B24: https://www.lojaeletrica.com.br/cabo-solar-4mm-preto-kript.html?mp_feed=MTozOmorR0Fncldyb21hK0NOU1c3ZWZvUHgzdE5pVzVuRFcxUjRoOEU4bz0=&srsltid=AfmBOopw4mKvdnQOLJg1bK7nztBsmL5szNSmx5hNU20pegjIBkACYfl-Sfs | J24: 2025-09-26 | K24: 4.89 | L24: Sim | O24: Sim
B25: https://www.eletrotrafo.com.br/cabo-solar-maxx-18kvcc-flex-60mm2-pt-classe-5-nbr-16612--cabel-22880001/p?idsku=18573&gad_source=4&gad_campaignid=19733025744&gbraid=0AAAAAClsUAPOeyliTib-KJ-OI18pVaS3z&gclid=Cj0KCQjw58PGBhCkARIsADbDilzVt3G0e8nvc4OpGehenSSLQnu-qoYvnJ4fWxa4QMVPrtxFBvWvhOMaAlb2EALw_wcB | J25: 2025-09-26 | K25: 4.65 | L25: Sim | O25: Sim
B26: https://www.buscape.com.br/offer?oid=1245086915&sortorder=-1&pagesize=-1&pla=2025-09-22T11:04:54.091672421&og=19221&gad_source=4&gad_campaignid=18725867418&gbraid=0AAAAAD-OhXbdpVfQ0aaz3lXpeGQxqwtIB&gclid=Cj0KCQjw58PGBhCkARIsADbDilyOK9eoBKKqn18WpjcUYmF-cbv_ZR1g7akEcKAIJbrfsNIYtUXDRsYaAgCCEALw_wcB | J26: 2025-09-26 | K26: 5.04 | L26: Sim | O26: Sim
B32: Observações: | K32: Média: | L32: =IF($L$34="","Selecione metodologia para exclusão de preços",AVERAGE(IF($L$12:$L$31="Sim",$K$12:$K$31))) -> 4.96 | N32: Média (Cotações) | O32: =IF(COUNTIF(O21:O31,"Sim")<3,"N/D (são necessários pelo menos 3 preços)",AVERAGE(IF(O21:O31="Sim",$K21:$K31))) -> 4.96 | P32: =IF(COUNTIF(P21:P31,"Sim")<3,"N/D (são necessários pelo menos 3 preços)",AVERAGE(IF(P21:P31="Sim",$K21:$K31))) -> N/D (são necessários pelo menos 3 preços)
K33: Mediana: | L33: =IF($L$34="","Selecione metodologia para exclusão de preços",MEDIAN(IF($L$12:$L$31="Sim",$K$12:$K$31))) -> 4.93 | N33: Mediana (Cotações) | O33: =IF(COUNTIF(O21:O31,"Sim")<3,"N/D (são necessários pelo menos 3 preços)",MEDIAN(IF(O21:O31="Sim",$K21:$K31))) -> 4.93 | P33: =IF(COUNTIF(P21:P31,"Sim")<3,"N/D (são necessários pelo menos 3 preços)",MEDIAN(IF(P21:P31="Sim",$K21:$K31))) -> N/D (são necessários pelo menos 3 preços)
B34: Metodologia de exclusão de preços adotada: | L34: =IF(O37="",INDEX(O20:P20,MATCH(MIN(#REF!),#REF!,0)),O37) -> Outliers | N34: CV (Cotações) | O34: =IF(COUNTIF(O21:O31,"Sim")<3,"N/D (são necessários pelo menos 3 preços)",_xlfn.STDEV.S(IF(O21:O31="Sim",$K21:$K31))/AVERAGE(IF(O21:O31="Sim",$K21:$K31))) -> 0.0477 | P34: =IF(COUNTIF(P21:P31,"Sim")<3,"N/D (são necessários pelo menos 3 preços)",_xlfn.STDEV.S(IF(P21:P31="Sim",$K21:$K31))/AVERAGE(IF(P21:P31="Sim",$K21:$K31))) -> N/D (são necessários pelo menos 3 preços)
N35: Média | O35: =IF(SUM(COUNTIF($O$12:$O$18,"Sim")) + SUM(COUNTIF(O21:O31,"Sim")) < 3, "N/D (são necessários pelo menos 3 preços)", IFERROR(AVERAGE(_xlfn._xlws.FILTER($K$12:$K$18,$O$12:$O$18="Sim"), _xlfn._xlws.FILTER($K$21:$K$31,O21:O31="Sim")),O32)) -> 4.96 | P35: =IF(SUM(COUNTIF($P$12:$P$18,"Sim")) + SUM(COUNTIF(P21:P31,"Sim")) < 3, "N/D (são necessários pelo menos 3 preços)", IFERROR(AVERAGE(_xlfn._xlws.FILTER($K$12:$K$18,$P$12:$P$18="Sim"), _xlfn._xlws.FILTER($K$21:$K$31,P21:P31="Sim")),P32)) -> N/D (são necessários pelo menos 3 preços)
N36: Mediana | O36: =IF(SUM(COUNTIF($O$12:$O$18,"Sim")) + SUM(COUNTIF(O21:O31,"Sim")) < 3, "N/D (são necessários pelo menos 3 preços)", IFERROR(MEDIAN(_xlfn._xlws.FILTER($K$12:$K$18,$O$12:$O$18="Sim"), _xlfn._xlws.FILTER($K$21:$K$31,O21:O31="Sim")),O33)) -> 4.93 | P36: =IF(SUM(COUNTIF($P12:$P$18,"Sim")) + SUM(COUNTIF(P21:P31,"Sim")) < 3, "N/D (são necessários pelo menos 3 preços)", IFERROR(MEDIAN(_xlfn._xlws.FILTER($K$12:$K$18,$P$12:$P$18="Sim"), _xlfn._xlws.FILTER($K$21:$K$31,P21:P31="Sim")),P33)) -> N/D (são necessários pelo menos 3 preços)
B37: COSOLIDAÇÃO DOS PREÇOS | N37: Metodologia a adotar: | O37: =IF(INDEX(O20:P20,P37)=0,"",INDEX(O20:P20,P37)) -> Outliers | P37: 1
B39: PREÇO UNITÁRIO ESTIMADO ADOTADO: | L39: =IF($B$41="Mediana:",L33,L32) -> 4.96
A41: =O20 -> Outliers | B41: Média:
A42: =P20 -> Por critério do(a) analista

Sheet Item 6 - 1 CV
B4: Processo | C4: 59500.003319/2025-65
B5: Responsável | C5: Renato Chaves
B6: Área de Origem | C6: AI/GEE/UEE
B7: Data da pesquisa | C7: 2025-09-26
B9: ITEM: | C9: Driver solar fotovoltaico, apropriado para motores de 1 CV, operação off-grid: Eficiência mínima 95%, grau de proteção IP20, resfriamento natural ou com cooler integrado, garantia mínima de 5 anos, tensão de saída compatível com a motobomba, frequência 60 Hz, com sistema de partida suave da bomba e controle de velocidade, atender em plenitude os requisitos do sistema a ser instalado. Entrada de corrente contínua (CC) compatível com a quantidade de painéis fotovoltaicos propostos, com no mínimo 1 MPPT (maximum power point tracking) com faixa de tensão de operação compatível com os módulos fotovoltaicos, baixa tensão mínima para funcionamento. Saída de corrente alternada (CA) compatível com o sistema projetado, até 1 CV, temperatura de operação até 60 ºc, trifásico ou monofásico. Possuir, no mínimo as seguintes proteções: Sub e sobre tensão CC, sobreaquecimento, surtos de tensão (CC), proteção de bomba travada, proteção de curto-circuito, proteção contra funcionamento a seco e sobrecarga. | I9: UNIDADE DE MEDIDA: | J9: Unidade | K9: QUANTIDADE: | O9: Tabela auxiliar de metodologias para exclusão de preços
B10: LICITAÇÕES ANTERIORES | O10: Licitações Anteriores
B11: Órgão | C11: Edital/Ano - Nº do Lote / Item | D11: Quantidade | E11: Valor Unitário | F11: Data | G11: índice de atualização (nome) | H11: I0 | I11: If | J11: Variação acumulada do índice (%) | K11: Preço unitário atualizado | L11: Utilizar? (Sim/Não) | O11: Outliers | P11: Por critério do(a) analista
J12: =IF(ISBLANK(E12),"",IF(ISNUMBER(H12),(I12-H12)/H12,0)) ->  | K12: =IF(ISBLANK(E12),"",E12*(1+J12)) ->  | L12: =IF(ISNUMBER(K12),IF($L$34<>$P$11,O12,P12),"") ->  | O12: =IF(ISNUMBER(K12),IF(OR(K12<_xlfn.QUARTILE.INC($K$12:$K$31,1)-1.5*(_xlfn.QUARTILE.INC($K$12:K31,3)-_xlfn.QUARTILE.INC($K$12:$K$31,1)),K12>_xlfn.QUARTILE.INC($K$12:$K$31,3)+1.5*(_xlfn.QUARTILE.INC($K$12:$K$31,3)-_xlfn.QUARTILE.INC($K$12:$K$31,1))),"Não","Sim"),"") -> 
O13: =IF(ISNUMBER(K13),IF(OR(K13<_xlfn.QUARTILE.INC($K$12:$K$31,1)-1.5*(_xlfn.QUARTILE.INC($K$12:K31,3)-_xlfn.QUARTILE.INC($K$12:$K$31,1)),K13>_xlfn.QUARTILE.INC($K$12:$K$31,3)+1.5*(_xlfn.QUARTILE.INC($K$12:$K$31,3)-_xlfn.QUARTILE.INC($K$12:$K$31,1))),"Não","Sim"),"") -> 
O14: =IF(ISNUMBER(K14),IF(OR(K14<_xlfn.QUARTILE.INC($K$12:$K$31,1)-1.5*(_xlfn.QUARTILE.INC($K$12:K32,3)-_xlfn.QUARTILE.INC($K$12:$K$31,1)),K14>_xlfn.QUARTILE.INC($K$12:$K$31,3)+1.5*(_xlfn.QUARTILE.INC($K$12:$K$31,3)-_xlfn.QUARTILE.INC($K$12:$K$31,1))),"Não","Sim"),"") -> 
O15: =IF(ISNUMBER(K15),IF(OR(K15<_xlfn.QUARTILE.INC($K$12:$K$31,1)-1.5*(_xlfn.QUARTILE.INC($K$12:K33,3)-_xlfn.QUARTILE.INC($K$12:$K$31,1)),K15>_xlfn.QUARTILE.INC($K$12:$K$31,3)+1.5*(_xlfn.QUARTILE.INC($K$12:$K$31,3)-_xlfn.QUARTILE.INC($K$12:$K$31,1))),"Não","Sim"),"") -> 
O16: =IF(ISNUMBER(K16),IF(OR(K16<_xlfn.QUARTILE.INC($K$12:$K$31,1)-1.5*(_xlfn.QUARTILE.INC($K$12:K34,3)-_xlfn.QUARTILE.INC($K$12:$K$31,1)),K16>_xlfn.QUARTILE.INC($K$12:$K$31,3)+1.5*(_xlfn.QUARTILE.INC($K$12:$K$31,3)-_xlfn.QUARTILE.INC($K$12:$K$31,1))),"Não","Sim"),"") -> 
O17: =IF(ISNUMBER(K17),IF(OR(K17<_xlfn.QUARTILE.INC($K$12:$K$31,1)-1.5*(_xlfn.QUARTILE.INC($K$12:K37,3)-_xlfn.QUARTILE.INC($K$12:$K$31,1)),K17>_xlfn.QUARTILE.INC($K$12:$K$31,3)+1.5*(_xlfn.QUARTILE.INC($K$12:$K$31,3)-_xlfn.QUARTILE.INC($K$12:$K$31,1))),"Não","Sim"),"") -> 
O18: =IF(ISNUMBER(K18),IF(OR(K18<_xlfn.QUARTILE.INC($K$12:$K$31,1)-1.5*(_xlfn.QUARTILE.INC($I$12:I39,3)-_xlfn.QUARTILE.INC($K$12:$K$31,1)),K18>_xlfn.QUARTILE.INC($K$12:$K$31,3)+1.5*(_xlfn.QUARTILE.INC($K$12:$K$31,3)-_xlfn.QUARTILE.INC($K$12:$K$31,1))),"Não","Sim"),"") -> 
B19: COTAÇÕES DE MERCADO | O19: Cotações
B20: Empresa | J20: Data | K20: Preço Unitário | L20: Utilizar? (Sim/Não) | O20: Outliers | P20: Por critério do(a) analista
B21: SGV SOLAR - CPNJ 42.326.882/0001-20 | J21: 2025-09-26 | K21: 1040 | L21: =IF(ISNUMBER(K21),IF($L$34=$O$20,O21,IF($L$34=$P$20,P21,"")),"") -> Sim | O21: =IF(ISNUMBER(K21),IF(OR(K21<_xlfn.QUARTILE.INC($K$12:$K$31,1)-1.5*(_xlfn.QUARTILE.INC($K$12:$K$31,3)-_xlfn.QUARTILE.INC($K$12:$K$31,1)),K21>_xlfn.QUARTILE.INC($K$12:$K$31,3)+1.5*(_xlfn.QUARTILE.INC($K$12:$K$31,3)-_xlfn.QUARTILE.INC($K$12:$K$31,1))),"Não","Sim"),"") -> Sim
B22: https://www.ecommerce.automatize.eng.br/drive-bomba-solar-weg-cfw500-1cv-220v-43a-075kw-monofasico/up/MLBU2519795789?pdp_filters=category%3AMLB30187%7Cseller_id%3A160168883%7Citem_id%3AMLB3888486897 | J22: 2025-09-26 | K22: 2229 | L22: Sim | O22: Sim
B23: https://loja.waldesa.com.br/chave-de-partida/inversor-de-frequencia-weg-220-cfw500a04p3b2nb20g2?parceiro=3 | J23: 2025-09-26 | K23: 1500 | L23: Sim | O23: Sim
B32: Observações: | K32: Média: | L32: =IF($L$34="","Selecione metodologia para exclusão de preços",AVERAGE(IF($L$12:$L$31="Sim",$K$12:$K$31))) -> 1589.67 | N32: Média (Cotações) | O32: =IF(COUNTIF(O21:O31,"Sim")<3,"N/D (são necessários pelo menos 3 preços)",AVERAGE(IF(O21:O31="Sim",$K21:$K31))) -> 1589.67 | P32: =IF(COUNTIF(P21:P31,"Sim")<3,"N/D (são necessários pelo menos 3 preços)",AVERAGE(IF(P21:P31="Sim",$K21:$K31))) -> N/D (são necessários pelo menos 3 preços)
K33: Mediana: | L33: =IF($L$34="","Selecione metodologia para exclusão de preços",MEDIAN(IF($L$12:$L$31="Sim",$K$12:$K$31))) -> 1500 | N33: Mediana (Cotações) | O33: =IF(COUNTIF(O21:O31,"Sim")<3,"N/D (são necessários pelo menos 3 preços)",MEDIAN(IF(O21:O31="Sim",$K21:$K31))) -> 1500 | P33: =IF(COUNTIF(P21:P31,"Sim")<3,"N/D (são necessários pelo menos 3 preços)",MEDIAN(IF(P21:P31="Sim",$K21:$K31))) -> N/D (são necessários pelo menos 3 preços)
B34: Metodologia de exclusão de preços adotada: | L34: =IF(O37="",INDEX(O20:P20,MATCH(MIN(#REF!),#REF!,0)),O37) -> Outliers | N34: CV (Cotações) | O34: =IF(COUNTIF(O21:O31,"Sim")<3,"N/D (são necessários pelo menos 3 preços)",_xlfn.STDEV.S(IF(O21:O31="Sim",$K21:$K31))/AVERAGE(IF(O21:O31="Sim",$K21:$K31))) -> 0.3772 | P34: =IF(COUNTIF(P21:P31,"Sim")<3,"N/D (são necessários pelo menos 3 preços)",_xlfn.STDEV.S(IF(P21:P31="Sim",$K21:$K31))/AVERAGE(IF(P21:P31="Sim",$K21:$K31))) -> N/D (são necessários pelo menos 3 preços)
N35: Média | O35: =IF(SUM(COUNTIF($O$12:$O$18,"Sim")) + SUM(COUNTIF(O21:O31,"Sim")) < 3, "N/D (são necessários pelo menos 3 preços)", IFERROR(AVERAGE(_xlfn._xlws.FILTER($K$12:$K$18,$O$12:$O$18="Sim"), _xlfn._xlws.FILTER($K$21:$K$31,O21:O31="Sim")),O32)) -> 1589.67 | P35: =IF(SUM(COUNTIF($P$12:$P$18,"Sim")) + SUM(COUNTIF(P21:P31,"Sim")) < 3, "N/D (são necessários pelo menos 3 preços)", IFERROR(AVERAGE(_xlfn._xlws.FILTER($K$12:$K$18,$P$12:$P$18="Sim"), _xlfn._xlws.FILTER($K$21:$K$31,P21:P31="Sim")),P32)) -> N/D (são necessários pelo menos 3 preços)
N36: Mediana | O36: =IF(SUM(COUNTIF($O$12:$O$18,"Sim")) + SUM(COUNTIF(O21:O31,"Sim")) < 3, "N/D (são necessários pelo menos 3 preços)", IFERROR(MEDIAN(_xlfn._xlws.FILTER($K$12:$K$18,$O$12:$O$18="Sim"), _xlfn._xlws.FILTER($K$21:$K$31,O21:O31="Sim")),O33)) -> 1500 | P36: =IF(SUM(COUNTIF($P12:$P$18,"Sim")) + SUM(COUNTIF(P21:P31,"Sim")) < 3, "N/D (são necessários pelo menos 3 preços)", IFERROR(MEDIAN(_xlfn._xlws.FILTER($K$12:$K$18,$P$12:$P$18="Sim"), _xlfn._xlws.FILTER($K$21:$K$31,P21:P31="Sim")),P33)) -> N/D (são necessários pelo menos 3 preços)
B37: COSOLIDAÇÃO DOS PREÇOS | N37: Metodologia a adotar: | O37: =IF(INDEX(O20:P20,P37)=0,"",INDEX(O20:P20,P37)) -> Outliers | P37: 1
B39: PREÇO UNITÁRIO ESTIMADO ADOTADO: | L39: =IF($B$41="Mediana:",L33,L32) -> 1589.67
A41: =O20 -> Outliers | B41: Média:
A42: =P20 -> Por critério do(a) analista

Sheet Item 9 - 1;2;3 CV
B4: Processo | C4: 59500.003319/2025-65
B5: Responsável | C5: Renato Chaves
B6: Área de Origem | C6: AI/GEE/UEE
B7: Data da pesquisa | C7: 2025-09-26
B9: ITEM: | C9: Haste para aterramento, cobreada alta camada, Ø 3/4″ x 2,40 m (Ø 17,3 mm – Efetivo) | I9: UNIDADE DE MEDIDA: | K9: QUANTIDADE: | O9: Tabela auxiliar de metodologias para exclusão de preços
B10: LICITAÇÕES ANTERIORES | O10: Licitações Anteriores
B11: Órgão | C11: Edital/Ano - Nº do Lote / Item | D11: Quantidade | E11: Valor Unitário | F11: Data | G11: índice de atualização (nome) | H11: I0 | I11: If | J11: Variação acumulada do índice (%) | K11: Preço unitário atualizado | L11: Utilizar? (Sim/Não) | O11: Outliers | P11: Por critério do(a) analista
J12: =IF(ISBLANK(E12),"",IF(ISNUMBER(H12),(I12-H12)/H12,0)) ->  | K12: =IF(ISBLANK(E12),"",E12*(1+J12)) ->  | L12: =IF(ISNUMBER(K12),IF($L$34<>$P$11,O12,P12),"") ->  | O12: =IF(ISNUMBER(K12),IF(OR(K12<_xlfn.QUARTILE.INC($K$12:$K$31,1)-1.5*(_xlfn.QUARTILE.INC($K$12:K31,3)-_xlfn.QUARTILE.INC($K$12:$K$31,1)),K12>_xlfn.QUARTILE.INC($K$12:$K$31,3)+1.5*(_xlfn.QUARTILE.INC($K$12:$K$31,3)-_xlfn.QUARTILE.INC($K$12:$K$31,1))),"Não","Sim"),"") -> 
O13: =IF(ISNUMBER(K13),IF(OR(K13<_xlfn.QUARTILE.INC($K$12:$K$31,1)-1.5*(_xlfn.QUARTILE.INC($K$12:K31,3)-_xlfn.QUARTILE.INC($K$12:$K$31,1)),K13>_xlfn.QUARTILE.INC($K$12:$K$31,3)+1.5*(_xlfn.QUARTILE.INC($K$12:$K$31,3)-_xlfn.QUARTILE.INC($K$12:$K$31,1))),"Não","Sim"),"") -> 
O14: =IF(ISNUMBER(K14),IF(OR(K14<_xlfn.QUARTILE.INC($K$12:$K$31,1)-1.5*(_xlfn.QUARTILE.INC($K$12:K32,3)-_xlfn.QUARTILE.INC($K$12:$K$31,1)),K14>_xlfn.QUARTILE.INC($K$12:$K$31,3)+1.5*(_xlfn.QUARTILE.INC($K$12:$K$31,3)-_xlfn.QUARTILE.INC($K$12:$K$31,1))),"Não","Sim"),"") -> 
O15: =IF(ISNUMBER(K15),IF(OR(K15<_xlfn.QUARTILE.INC($K$12:$K$31,1)-1.5*(_xlfn.QUARTILE.INC($K$12:K33,3)-_xlfn.QUARTILE.INC($K$12:$K$31,1)),K15>_xlfn.QUARTILE.INC($K$12:$K$31,3)+1.5*(_xlfn.QUARTILE.INC($K$12:$K$31,3)-_xlfn.QUARTILE.INC($K$12:$K$31,1))),"Não","Sim"),"") -> 
O16: =IF(ISNUMBER(K16),IF(OR(K16<_xlfn.QUARTILE.INC($K$12:$K$31,1)-1.5*(_xlfn.QUARTILE.INC($K$12:K34,3)-_xlfn.QUARTILE.INC($K$12:$K$31,1)),K16>_xlfn.QUARTILE.INC($K$12:$K$31,3)+1.5*(_xlfn.QUARTILE.INC($K$12:$K$31,3)-_xlfn.QUARTILE.INC($K$12:$K$31,1))),"Não","Sim"),"") -> 
O17: =IF(ISNUMBER(K17),IF(OR(K17<_xlfn.QUARTILE.INC($K$12:$K$31,1)-1.5*(_xlfn.QUARTILE.INC($K$12:K37,3)-_xlfn.QUARTILE.INC($K$12:$K$31,1)),K17>_xlfn.QUARTILE.INC($K$12:$K$31,3)+1.5*(_xlfn.QUARTILE.INC($K$12:$K$31,3)-_xlfn.QUARTILE.INC($K$12:$K$31,1))),"Não","Sim"),"") -> 
O18: =IF(ISNUMBER(K18),IF(OR(K18<_xlfn.QUARTILE.INC($K$12:$K$31,1)-1.5*(_xlfn.QUARTILE.INC($I$12:I39,3)-_xlfn.QUARTILE.INC($K$12:$K$31,1)),K18>_xlfn.QUARTILE.INC($K$12:$K$31,3)+1.5*(_xlfn.QUARTILE.INC($K$12:$K$31,3)-_xlfn.QUARTILE.INC($K$12:$K$31,1))),"Não","Sim"),"") -> 
B19: COTAÇÕES DE MERCADO | O19: Cotações
B20: Empresa | J20: Data | K20: Preço Unitário | L20: Utilizar? (Sim/Não) | O20: Outliers | P20: Por critério do(a) analista
B21: https://www.mercadolivre.com.br/barra-de-aterramento-34-x-240-metros-1750mm/up/MLBU1749172842?pdp_filters=item_id:MLB4340457526 | J21: 2025-09-26 | K21: 120.84 | L21: =IF(ISNUMBER(K21),IF($L$34=$O$20,O21,IF($L$34=$P$20,P21,"")),"") -> Sim | O21: =IF(ISNUMBER(K21),IF(OR(K21<_xlfn.QUARTILE.INC($K$12:$K$31,1)-1.5*(_xlfn.QUARTILE.INC($K$12:$K$31,3)-_xlfn.QUARTILE.INC($K$12:$K$31,1)),K21>_xlfn.QUARTILE.INC($K$12:$K$31,3)+1.5*(_xlfn.QUARTILE.INC($K$12:$K$31,3)-_xlfn.QUARTILE.INC($K$12:$K$31,1))),"Não","Sim"),"") -> Sim
B22: https://www.dimensional.com.br/haste-aterramento-ponta-lisa-3-4-2400-mm-baixa-camada-ih834-intelli-/p?idsku=190370&gad_source=4&gad_campaignid=22665017757&gbraid=0AAAAADgOTvs7ZXk6Svmpo4Cz_AjiwSnI9&gclid=Cj0KCQjw58PGBhCkARIsADbDily1vn_z60SfhKKDy1LS5KFcBRxfNmRgIVIFC9tYbNFbzqMX42WGcGAaAgwREALw_wcB | J22: 2025-09-26 | K22: 156.59 | L22: Sim | O22: Sim
B23: https://www.plenobras.com.br/646a59cad496504d21de32da/haste-cobreada-para-aterramento-34%22x24m-alta-camada-olivo?srsltid=AfmBOopOFCV-V5dtZyz_M14gQrnTVL8sJeZVd6UsrRmzf1uZzWGRrl_OM70 | J23: 2025-09-26 | K23: 179.97 | L23: Sim | O23: Sim
B24: https://www.sveletrica.com/haste-de-aterramento-baixa-camada-3-4-x-2-40m-ih-0834-2864-00a00002gk/p?idsku=1399&srsltid=AfmBOopPpPsTZzYmca_xcfqH-1tPyvVrQ3dyUJZH6iTb2XtjRLFOPNXMybg | J24: 2025-09-26 | K24: 109.95 | L24: Sim | O24: Sim
B32: Observações: | K32: Média: | L32: =IF($L$34="","Selecione metodologia para exclusão de preços",AVERAGE(IF($L$12:$L$31="Sim",$K$12:$K$31))) -> 141.84 | N32: Média (Cotações) | O32: =IF(COUNTIF(O21:O31,"Sim")<3,"N/D (são necessários pelo menos 3 preços)",AVERAGE(IF(O21:O31="Sim",$K21:$K31))) -> 141.84 | P32: =IF(COUNTIF(P21:P31,"Sim")<3,"N/D (são necessários pelo menos 3 preços)",AVERAGE(IF(P21:P31="Sim",$K21:$K31))) -> N/D (são necessários pelo menos 3 preços)
K33: Mediana: | L33: =IF($L$34="","Selecione metodologia para exclusão de preços",MEDIAN(IF($L$12:$L$31="Sim",$K$12:$K$31))) -> 138.72 | N33: Mediana (Cotações) | O33: =IF(COUNTIF(O21:O31,"Sim")<3,"N/D (são necessários pelo menos 3 preços)",MEDIAN(IF(O21:O31="Sim",$K21:$K31))) -> 138.72 | P33: =IF(COUNTIF(P21:P31,"Sim")<3,"N/D (são necessários pelo menos 3 preços)",MEDIAN(IF(P21:P31="Sim",$K21:$K31))) -> N/D (são necessários pelo menos 3 preços)
B34: Metodologia de exclusão de preços adotada: | L34: =IF(O37="",INDEX(O20:P20,MATCH(MIN(#REF!),#REF!,0)),O37) -> Outliers | N34: CV (Cotações) | O34: =IF(COUNTIF(O21:O31,"Sim")<3,"N/D (são necessários pelo menos 3 preços)",_xlfn.STDEV.S(IF(O21:O31="Sim",$K21:$K31))/AVERAGE(IF(O21:O31="Sim",$K21:$K31))) -> 0.2277 | P34: =IF(COUNTIF(P21:P31,"Sim")<3,"N/D (são necessários pelo menos 3 preços)",_xlfn.STDEV.S(IF(P21:P31="Sim",$K21:$K31))/AVERAGE(IF(P21:P31="Sim",$K21:$K31))) -> N/D (são necessários pelo menos 3 preços)
N35: Média | O35: =IF(SUM(COUNTIF($O$12:$O$18,"Sim")) + SUM(COUNTIF(O21:O31,"Sim")) < 3, "N/D (são necessários pelo menos 3 preços)", IFERROR(AVERAGE(_xlfn._xlws.FILTER($K$12:$K$18,$O$12:$O$18="Sim"), _xlfn._xlws.FILTER($K$21:$K$31,O21:O31="Sim")),O32)) -> 141.84 | P35: =IF(SUM(COUNTIF($P$12:$P$18,"Sim")) + SUM(COUNTIF(P21:P31,"Sim")) < 3, "N/D (são necessários pelo menos 3 preços)", IFERROR(AVERAGE(_xlfn._xlws.FILTER($K$12:$K$18,$P$12:$P$18="Sim"), _xlfn._xlws.FILTER($K$21:$K$31,P21:P31="Sim")),P32)) -> N/D (são necessários pelo menos 3 preços)
N36: Mediana | O36: =IF(SUM(COUNTIF($O$12:$O$18,"Sim")) + SUM(COUNTIF(O21:O31,"Sim")) < 3, "N/D (são necessários pelo menos 3 preços)", IFERROR(MEDIAN(_xlfn._xlws.FILTER($K$12:$K$18,$O$12:$O$18="Sim"), _xlfn._xlws.FILTER($K$21:$K$31,O21:O31="Sim")),O33)) -> 138.72 | P36: =IF(SUM(COUNTIF($P12:$P$18,"Sim")) + SUM(COUNTIF(P21:P31,"Sim")) < 3, "N/D (são necessários pelo menos 3 preços)", IFERROR(MEDIAN(_xlfn._xlws.FILTER($K$12:$K$18,$P$12:$P$18="Sim"), _xlfn._xlws.FILTER($K$21:$K$31,P21:P31="Sim")),P33)) -> N/D (são necessários pelo menos 3 preços)
B37: COSOLIDAÇÃO DOS PREÇOS | N37: Metodologia a adotar: | O37: =IF(INDEX(O20:P20,P37)=0,"",INDEX(O20:P20,P37)) -> Outliers | P37: 1
B39: PREÇO UNITÁRIO ESTIMADO ADOTADO: | L39: =IF($B$41="Mediana:",L33,L32) -> 141.84
A41: =O20 -> Outliers | B41: Média:
A42: =P20 -> Por critério do(a) analista

Sheet Item 12 - 1;2;3 CV
B4: Processo | C4: 59500.003319/2025-65
B5: Responsável | C5: Renato Chaves
B6: Área de Origem | C6: AI/GEE/UEE
B7: Data da pesquisa | C7: 2025-09-26
B9: ITEM: | C9: String-box CC, composta de: 1 conjunto de DPS por string, com proteção classe II, apropriado para uso em sistemas fotovoltaicos, 1040 Vdc, corrente de descarga máxima 40 kA, corrente de descarga nominal de 18 kA, nível de proteção inferior a 3,5 kV, 3 polos (positivo, negativo e terra), com indicador de operação verde (em serviço) e vermelho (defeito). 1 chave seccionadora de até 32A, para corrente contínua, 1.000 Vdc, 2 polos, adequado para uso em sistemas fotovoltaicos com conexão de condutores de 2,5 até 10 mm², para instalação em trilho DIN e com jumpers tipo barramento. 1 caixa de proteção para stringbox em policarbonato, de sobrepor, trilho DIN, IP 65, proteção UV, e adequada para uso em sistemas fotovoltaicos. Deverão ser fixados através de trilho DIN | I9: UNIDADE DE MEDIDA: | K9: QUANTIDADE: | O9: Tabela auxiliar de metodologias para exclusão de preços
B10: LICITAÇÕES ANTERIORES | O10: Licitações Anteriores
B11: Órgão | C11: Edital/Ano - Nº do Lote / Item | D11: Quantidade | E11: Valor Unitário | F11: Data | G11: índice de atualização (nome) | H11: I0 | I11: If | J11: Variação acumulada do índice (%) | K11: Preço unitário atualizado | L11: Utilizar? (Sim/Não) | O11: Outliers | P11: Por critério do(a) analista
J12: =IF(ISBLANK(E12),"",IF(ISNUMBER(H12),(I12-H12)/H12,0)) ->  | K12: =IF(ISBLANK(E12),"",E12*(1+J12)) ->  | L12: =IF(ISNUMBER(K12),IF($L$34<>$P$11,O12,P12),"") ->  | O12: =IF(ISNUMBER(K12),IF(OR(K12<_xlfn.QUARTILE.INC($K$12:$K$31,1)-1.5*(_xlfn.QUARTILE.INC($K$12:K31,3)-_xlfn.QUARTILE.INC($K$12:$K$31,1)),K12>_xlfn.QUARTILE.INC($K$12:$K$31,3)+1.5*(_xlfn.QUARTILE.INC($K$12:$K$31,3)-_xlfn.QUARTILE.INC($K$12:$K$31,1))),"Não","Sim"),"") -> 
O13: =IF(ISNUMBER(K13),IF(OR(K13<_xlfn.QUARTILE.INC($K$12:$K$31,1)-1.5*(_xlfn.QUARTILE.INC($K$12:K31,3)-_xlfn.QUARTILE.INC($K$12:$K$31,1)),K13>_xlfn.QUARTILE.INC($K$12:$K$31,3)+1.5*(_xlfn.QUARTILE.INC($K$12:$K$31,3)-_xlfn.QUARTILE.INC($K$12:$K$31,1))),"Não","Sim"),"") -> 
O14: =IF(ISNUMBER(K14),IF(OR(K14<_xlfn.QUARTILE.INC($K$12:$K$31,1)-1.5*(_xlfn.QUARTILE.INC($K$12:K32,3)-_xlfn.QUARTILE.INC($K$12:$K$31,1)),K14>_xlfn.QUARTILE.INC($K$12:$K$31,3)+1.5*(_xlfn.QUARTILE.INC($K$12:$K$31,3)-_xlfn.QUARTILE.INC($K$12:$K$31,1))),"Não","Sim"),"") -> 
O15: =IF(ISNUMBER(K15),IF(OR(K15<_xlfn.QUARTILE.INC($K$12:$K$31,1)-1.5*(_xlfn.QUARTILE.INC($K$12:K33,3)-_xlfn.QUARTILE.INC($K$12:$K$31,1)),K15>_xlfn.QUARTILE.INC($K$12:$K$31,3)+1.5*(_xlfn.QUARTILE.INC($K$12:$K$31,3)-_xlfn.QUARTILE.INC($K$12:$K$31,1))),"Não","Sim"),"") -> 
O16: =IF(ISNUMBER(K16),IF(OR(K16<_xlfn.QUARTILE.INC($K$12:$K$31,1)-1.5*(_xlfn.QUARTILE.INC($K$12:K34,3)-_xlfn.QUARTILE.INC($K$12:$K$31,1)),K16>_xlfn.QUARTILE.INC($K$12:$K$31,3)+1.5*(_xlfn.QUARTILE.INC($K$12:$K$31,3)-_xlfn.QUARTILE.INC($K$12:$K$31,1))),"Não","Sim"),"") -> 
O17: =IF(ISNUMBER(K17),IF(OR(K17<_xlfn.QUARTILE.INC($K$12:$K$31,1)-1.5*(_xlfn.QUARTILE.INC($K$12:K37,3)-_xlfn.QUARTILE.INC($K$12:$K$31,1)),K17>_xlfn.QUARTILE.INC($K$12:$K$31,3)+1.5*(_xlfn.QUARTILE.INC($K$12:$K$31,3)-_xlfn.QUARTILE.INC($K$12:$K$31,1))),"Não","Sim"),"") -> 
O18: =IF(ISNUMBER(K18),IF(OR(K18<_xlfn.QUARTILE.INC($K$12:$K$31,1)-1.5*(_xlfn.QUARTILE.INC($I$12:I39,3)-_xlfn.QUARTILE.INC($K$12:$K$31,1)),K18>_xlfn.QUARTILE.INC($K$12:$K$31,3)+1.5*(_xlfn.QUARTILE.INC($K$12:$K$31,3)-_xlfn.QUARTILE.INC($K$12:$K$31,1))),"Não","Sim"),"") -> 
B19: COTAÇÕES DE MERCADO | O19: Cotações
B20: Empresa | J20: Data | K20: Preço Unitário | L20: Utilizar? (Sim/Não) | O20: Outliers | P20: Por critério do(a) analista
B21: https://www.minhacasasolar.com.br/string-box-clamper-solar-sb-1e-1s-1040v-32a-pc-01-01-81380 | J21: 2025-09-26 | K21: 429.03 | L21: =IF(ISNUMBER(K21),IF($L$34=$O$20,O21,IF($L$34=$P$20,P21,"")),"") -> Sim | O21: =IF(ISNUMBER(K21),IF(OR(K21<_xlfn.QUARTILE.INC($K$12:$K$31,1)-1.5*(_xlfn.QUARTILE.INC($K$12:$K$31,3)-_xlfn.QUARTILE.INC($K$12:$K$31,1)),K21>_xlfn.QUARTILE.INC($K$12:$K$31,3)+1.5*(_xlfn.QUARTILE.INC($K$12:$K$31,3)-_xlfn.QUARTILE.INC($K$12:$K$31,1))),"Não","Sim"),"") -> Sim
B22: NEOSOLAR ENERGIA LTDA - CNPJ 12.420.339/0003-98 | J22: 2025-09-26 | K22: 462.35 | L22: Sim | O22: Sim
B23: https://www.magazineluiza.com.br/stringbox-01-entradas-01-saidas-32a-1040v-clamper-sbc-01-01/p/dkj55kkg5g/cj/rrle/?seller_id=minhacasasolar&region_id=123462&utm_source=google&utm_medium=cpc&utm_term=80674&utm_campaign=google_eco_per_ven_pla_ca_sor_3p_ci-cj-csp&utm_content=&partner_id=80674&gclsrc=aw.ds&gad_source=4&gad_campaignid=22825521530&gbraid=0AAAAAD4zZmToFafzlDmRMQ9Eu65MlTvBZ&gclid=CjwKCAjw89jGBhB0EiwA2o1On_rmXQaQIzD3BFm1hT2W2NmnjZxBMFuWxZB_xcE0rBY0HXOzZhVCXhoCaeYQAvD_BwE | J23: 2025-09-26 | K23: 489.1 | L23: Sim | O23: Sim
B24: https://www.andra.com.br/caixa-padrao-solar-string-box-1040v-32a-1-entrada-1-saida-020007-clamper/p?idsku=14371&gad_source=4&gad_campaignid=21096278380&gbraid=0AAAAApkqR1sjLbfYuUZa_-9TvEkvR8br6&gclid=CjwKCAjw89jGBhB0EiwA2o1On_zn05_yMgXMvvUEFmO2vMTty45IrDLddxu1a73xth_ia_BDUAhUBRoC8EAQAvD_BwE | J24: 2025-09-26 | K24: 565.66 | L24: Sim | O24: Sim
B25: https://www.eletrotrafo.com.br/quadro-string-box-2e-2s-sb-1040v-32a-ref--020008-clamper-07660017/p?idsku=9384&gad_source=4&gad_campaignid=19733025744&gbraid=0AAAAAClsUAPbx4Rt0Za1dIXQtQy1ORdvC&gclid=CjwKCAjw89jGBhB0EiwA2o1On2vcJNX0k_dEX_S9m_v1-zZuxpHmpGk0uuawPa2tpfujM43vI1MS_xoC1CsQAvD_BwE | J25: 2025-09-26 | K25: 628.99 | L25: Sim | O25: Sim
B32: Observações: | K32: Média: | L32: =IF($L$34="","Selecione metodologia para exclusão de preços",AVERAGE(IF($L$12:$L$31="Sim",$K$12:$K$31))) -> 515.03 | N32: Média (Cotações) | O32: =IF(COUNTIF(O21:O31,"Sim")<3,"N/D (são necessários pelo menos 3 preços)",AVERAGE(IF(O21:O31="Sim",$K21:$K31))) -> 515.03 | P32: =IF(COUNTIF(P21:P31,"Sim")<3,"N/D (são necessários pelo menos 3 preços)",AVERAGE(IF(P21:P31="Sim",$K21:$K31))) -> N/D (são necessários pelo menos 3 preços)
K33: Mediana: | L33: =IF($L$34="","Selecione metodologia para exclusão de preços",MEDIAN(IF($L$12:$L$31="Sim",$K$12:$K$31))) -> 489.1 | N33: Mediana (Cotações) | O33: =IF(COUNTIF(O21:O31,"Sim")<3,"N/D (são necessários pelo menos 3 preços)",MEDIAN(IF(O21:O31="Sim",$K21:$K31))) -> 489.1 | P33: =IF(COUNTIF(P21:P31,"Sim")<3,"N/D (são necessários pelo menos 3 preços)",MEDIAN(IF(P21:P31="Sim",$K21:$K31))) -> N/D (são necessários pelo menos 3 preços)
B34: Metodologia de exclusão de preços adotada: | L34: =IF(O37="",INDEX(O20:P20,MATCH(MIN(#REF!),#REF!,0)),O37) -> Outliers | N34: CV (Cotações) | O34: =IF(COUNTIF(O21:O31,"Sim")<3,"N/D (são necessários pelo menos 3 preços)",_xlfn.STDEV.S(IF(O21:O31="Sim",$K21:$K31))/AVERAGE(IF(O21:O31="Sim",$K21:$K31))) -> 0.1577 | P34: =IF(COUNTIF(P21:P31,"Sim")<3,"N/D (são necessários pelo menos 3 preços)",_xlfn.STDEV.S(IF(P21:P31="Sim",$K21:$K31))/AVERAGE(IF(P21:P31="Sim",$K21:$K31))) -> N/D (são necessários pelo menos 3 preços)
N35: Média | O35: =IF(SUM(COUNTIF($O$12:$O$18,"Sim")) + SUM(COUNTIF(O21:O31,"Sim")) < 3, "N/D (são necessários pelo menos 3 preços)", IFERROR(AVERAGE(_xlfn._xlws.FILTER($K$12:$K$18,$O$12:$O$18="Sim"), _xlfn._xlws.FILTER($K$21:$K$31,O21:O31="Sim")),O32)) -> 515.03 | P35: =IF(SUM(COUNTIF($P$12:$P$18,"Sim")) + SUM(COUNTIF(P21:P31,"Sim")) < 3, "N/D (são necessários pelo menos 3 preços)", IFERROR(AVERAGE(_xlfn._xlws.FILTER($K$12:$K$18,$P$12:$P$18="Sim"), _xlfn._xlws.FILTER($K$21:$K$31,P21:P31="Sim")),P32)) -> N/D (são necessários pelo menos 3 preços)
N36: Mediana | O36: =IF(SUM(COUNTIF($O$12:$O$18,"Sim")) + SUM(COUNTIF(O21:O31,"Sim")) < 3, "N/D (são necessários pelo menos 3 preços)", IFERROR(MEDIAN(_xlfn._xlws.FILTER($K$12:$K$18,$O$12:$O$18="Sim"), _xlfn._xlws.FILTER($K$21:$K$31,O21:O31="Sim")),O33)) -> 489.1 | P36: =IF(SUM(COUNTIF($P12:$P$18,"Sim")) + SUM(COUNTIF(P21:P31,"Sim")) < 3, "N/D (são necessários pelo menos 3 preços)", IFERROR(MEDIAN(_xlfn._xlws.FILTER($K$12:$K$18,$P$12:$P$18="Sim"), _xlfn._xlws.FILTER($K$21:$K$31,P21:P31="Sim")),P33)) -> N/D (são necessários pelo menos 3 preços)
B37: COSOLIDAÇÃO DOS PREÇOS | N37: Metodologia a adotar: | O37: =IF(INDEX(O20:P20,P37)=0,"",INDEX(O20:P20,P37)) -> Outliers | P37: 1
B39: PREÇO UNITÁRIO ESTIMADO ADOTADO: | L39: =IF($B$41="Mediana:",L33,L32) -> 515.03
A41: =O20 -> Outliers | B41: Média:
A42: =P20 -> Por critério do(a) analista

Sheet Item 1 - 3 CV
B4: Processo | C4: 59500.003319/2025-65
B5: Responsável | C5: Renato Chaves
B6: Área de Origem | C6: AI/GEE/UEE
B7: Data da pesquisa | C7: 2025-09-26
B9: ITEM: | C9: Módulo Fotovoltaico, com potência de 700 Wp STC, (ou de potência suficiente para o correto funcionamento do sistema), estrutura em liga de alumínio anodizado, caixa de junção IP 68, três diodos, eficiência superior a 19%, degradação no primeiro ano inferior a 3%, degradação do ano 2 ao 30 inferior a 0,5% ao ano, 10 anos de garantia, 20 anos de garantia de potência linear. | I9: UNIDADE DE MEDIDA: | J9: UND | K9: QUANTIDADE: | O9: Tabela auxiliar de metodologias para exclusão de preços
B10: LICITAÇÕES ANTERIORES | O10: Licitações Anteriores
B11: Órgão | C11: Edital/Ano - Nº do Lote / Item | D11: Quantidade | E11: Valor Unitário | F11: Data | G11: índice de atualização (nome) | H11: I0 | I11: If | J11: Variação acumulada do índice (%) | K11: Preço unitário atualizado | L11: Utilizar? (Sim/Não) | O11: Outliers | P11: Por critério do(a) analista
J12: =IF(ISBLANK(E12),"",IF(ISNUMBER(H12),(I12-H12)/H12,0)) ->  | K12: =IF(ISBLANK(E12),"",E12*(1+J12)) ->  | L12: =IF(ISNUMBER(K12),IF($L$34<>$P$11,O12,P12),"") ->  | O12: =IF(ISNUMBER(K12),IF(OR(K12<_xlfn.QUARTILE.INC($K$12:$K$31,1)-1.5*(_xlfn.QUARTILE.INC($K$12:$K$31,3)-_xlfn.QUARTILE.INC($K$12:$K$31,1)),K12>_xlfn.QUARTILE.INC($K$12:$K$31,3)+1.5*(_xlfn.QUARTILE.INC($K$12:$K$31,3)-_xlfn.QUARTILE.INC($K$12:$K$31,1))),"Não","Sim"),"") -> 
B19: COTAÇÕES DE MERCADO | O19: Cotações
B20: Empresa | J20: Data | K20: Preço Unitário | L20: Utilizar? (Sim/Não) | O20: Outliers | P20: Por critério do(a) analista
B21: https://recargasolar.shop/produtos/painel-solar-700w-trina-n-type-bifacial/?gad_source=4&gad_campaignid=22444455006&gbraid=0AAAAAqbM9HYgOm-N_j3-yT_iqLaYmXDXq&gclid=Cj0KCQjw3aLHBhDTARIsAIRij5_NzJlFmoCMAPmogN0aqV3G3Ac6RTxuNt54navynTDfcS4MSW2XU2YaAqH1EALw_wcB | K21: 699 | L21: =IF(ISNUMBER(K21),IF($L$34=$O$20,O21,IF($L$34=$P$20,P21,"")),"") -> Sim | O21: =IF(ISNUMBER(K21),IF(OR(K21<_xlfn.QUARTILE.INC($K$12:$K$31,1)-1.5*(_xlfn.QUARTILE.INC($K$12:$K$31,3)-_xlfn.QUARTILE.INC($K$12:$K$31,1)),K21>_xlfn.QUARTILE.INC($K$12:$K$31,3)+1.5*(_xlfn.QUARTILE.INC($K$12:$K$31,3)-_xlfn.QUARTILE.INC($K$12:$K$31,1))),"Não","Sim"),"") -> Sim
B22: https://www.apexenergiasolar.com.br/painel-solar/painel-solar-700w-dah-solar-bifacial?srsltid=AfmBOorgEryWImOfDCyomV622Q9x79ETQH-8aF9-JDq5s8czPEsDKzq2vdE | K22: 900.06 | L22: Sim | O22: Sim
B23: https://www.lojaeletrica.com.br/painel-solar-700w-132-celulas-monocristalino-n-type-bifacial-trina.html?mp_feed=MTozOmRCU0kvODdRSjZuOVZNdDVTVlFzOVZ6bDRXdlVkc3dpV3NtcHo2ND0=&srsltid=AfmBOoo9I7mf0yKCbXt07r8F1QouYzNyQZJLmOSv3XxRhzzWhkJ1Obsqv_A | K23: 1030.6 | L23: Sim | O23: Sim
B24: https://www.buyersenergy.com.br/produtos/painel-solar-700w-bifacial-renepv/?variant=1327859114&pf=mc&srsltid=AfmBOop6DxN6BMX1kUkZb8YxOTh672gKOEPyGYkH3has8XLuclFhmGtIhHs | K24: 734 | L24: Sim | O24: Sim
B32: Observações: | K32: Média: | L32: =IF($L$34="","Selecione metodologia para exclusão de preços",AVERAGE(IF($L$12:$L$31="Sim",$K$12:$K$31))) -> 840.92 | N32: Média (Cotações) | O32: =IF(COUNTIF(O21:O31,"Sim")<3,"N/D (são necessários pelo menos 3 preços)",AVERAGE(IF(O21:O31="Sim",$K21:$K31))) -> 840.92 | P32: =IF(COUNTIF(P21:P31,"Sim")<3,"N/D (são necessários pelo menos 3 preços)",AVERAGE(IF(P21:P31="Sim",$K21:$K31))) -> N/D (são necessários pelo menos 3 preços)
K33: Mediana: | L33: =IF($L$34="","Selecione metodologia para exclusão de preços",MEDIAN(IF($L$12:$L$31="Sim",$K$12:$K$31))) -> 817.03 | N33: Mediana (Cotações) | O33: =IF(COUNTIF(O21:O31,"Sim")<3,"N/D (são necessários pelo menos 3 preços)",MEDIAN(IF(O21:O31="Sim",$K21:$K31))) -> 817.03 | P33: =IF(COUNTIF(P21:P31,"Sim")<3,"N/D (são necessários pelo menos 3 preços)",MEDIAN(IF(P21:P31="Sim",$K21:$K31))) -> N/D (são necessários pelo menos 3 preços)
B34: Metodologia de exclusão de preços adotada: | L34: =IF(O37="",INDEX(O20:P20,MATCH(MIN(#REF!),#REF!,0)),O37) -> Outliers | N34: CV (Cotações) | O34: =IF(COUNTIF(O21:O31,"Sim")<3,"N/D (são necessários pelo menos 3 preços)",_xlfn.STDEV.S(IF(O21:O31="Sim",$K21:$K31))/AVERAGE(IF(O21:O31="Sim",$K21:$K31))) -> 0.183 | P34: =IF(COUNTIF(P21:P31,"Sim")<3,"N/D (são necessários pelo menos 3 preços)",_xlfn.STDEV.S(IF(P21:P31="Sim",$K21:$K31))/AVERAGE(IF(P21:P31="Sim",$K21:$K31))) -> N/D (são necessários pelo menos 3 preços)
N35: Média | O35: =IF(SUM(COUNTIF($O$12:$O$18,"Sim")) + SUM(COUNTIF(O21:O31,"Sim")) < 3, "N/D (são necessários pelo menos 3 preços)", IFERROR(AVERAGE(_xlfn._xlws.FILTER($K$12:$K$18,$O$12:$O$18="Sim"), _xlfn._xlws.FILTER($K$21:$K$31,O21:O31="Sim")),O32)) -> 840.92 | P35: =IF(SUM(COUNTIF($P$12:$P$18,"Sim")) + SUM(COUNTIF(P21:P31,"Sim")) < 3, "N/D (são necessários pelo menos 3 preços)", IFERROR(AVERAGE(_xlfn._xlws.FILTER($K$12:$K$18,$P$12:$P$18="Sim"), _xlfn._xlws.FILTER($K$21:$K$31,P21:P31="Sim")),P32)) -> N/D (são necessários pelo menos 3 preços)
N36: Mediana | O36: =IF(SUM(COUNTIF($O$12:$O$18,"Sim")) + SUM(COUNTIF(O21:O31,"Sim")) < 3, "N/D (são necessários pelo menos 3 preços)", IFERROR(MEDIAN(_xlfn._xlws.FILTER($K$12:$K$18,$O$12:$O$18="Sim"), _xlfn._xlws.FILTER($K$21:$K$31,O21:O31="Sim")),O33)) -> 817.03 | P36: =IF(SUM(COUNTIF($P12:$P$18,"Sim")) + SUM(COUNTIF(P21:P31,"Sim")) < 3, "N/D (são necessários pelo menos 3 preços)", IFERROR(MEDIAN(_xlfn._xlws.FILTER($K$12:$K$18,$P$12:$P$18="Sim"), _xlfn._xlws.FILTER($K$21:$K$31,P21:P31="Sim")),P33)) -> N/D (são necessários pelo menos 3 preços)
B37: COSOLIDAÇÃO DOS PREÇOS | N37: Metodologia a adotar: | O37: =IF(INDEX(O20:P20,P37)=0,"",INDEX(O20:P20,P37)) -> Outliers | P37: 1
B39: PREÇO UNITÁRIO ESTIMADO ADOTADO: | L39: =IF($B$41="Mediana:",L33,L32) -> 840.92
A41: =O20 -> Outliers | B41: Média:
A42: =P20 -> Por critério do(a) analista

Sheet Item 3 - 2 CV
B4: Processo | C4: 59500.003319/2025-65
B5: Responsável | C5: Renato Chaves
B6: Área de Origem | C6: AI/GEE/UEE
B7: Data da pesquisa | C7: 2025-09-26
B9: ITEM: | C9: Estrutura de solo para módulos fotovoltaicos, 6 módulos instalados, pilastra travessa e mão francesa em aço galvanizado a fogo, longarina e acessórios em alumínio. Inclui todos os acessórios para correta fixação dos painéis. | I9: UNIDADE DE MEDIDA: | J9: Unidade | K9: QUANTIDADE: | O9: Tabela auxiliar de metodologias para exclusão de preços
B10: LICITAÇÕES ANTERIORES | O10: Licitações Anteriores
B11: Órgão | C11: Edital/Ano - Nº do Lote / Item | D11: Quantidade | E11: Valor Unitário | F11: Data | G11: índice de atualização (nome) | H11: I0 | I11: If | J11: Variação acumulada do índice (%) | K11: Preço unitário atualizado | L11: Utilizar? (Sim/Não) | O11: Outliers | P11: Por critério do(a) analista
J12: =IF(ISBLANK(E12),"",IF(ISNUMBER(H12),(I12-H12)/H12,0)) ->  | K12: =IF(ISBLANK(E12),"",E12*(1+J12)) ->  | L12: =IF(ISNUMBER(K12),IF($L$33<>$P$11,O12,P12),"") ->  | O12: =IF(ISNUMBER(K12),IF(OR(K12<_xlfn.QUARTILE.INC($K$12:$K$30,1)-1.5*(_xlfn.QUARTILE.INC($K$12:K30,3)-_xlfn.QUARTILE.INC($K$12:$K$30,1)),K12>_xlfn.QUARTILE.INC($K$12:$K$30,3)+1.5*(_xlfn.QUARTILE.INC($K$12:$K$30,3)-_xlfn.QUARTILE.INC($K$12:$K$30,1))),"Não","Sim"),"") -> 
O13: =IF(ISNUMBER(K13),IF(OR(K13<_xlfn.QUARTILE.INC($K$12:$K$30,1)-1.5*(_xlfn.QUARTILE.INC($K$12:K30,3)-_xlfn.QUARTILE.INC($K$12:$K$30,1)),K13>_xlfn.QUARTILE.INC($K$12:$K$30,3)+1.5*(_xlfn.QUARTILE.INC($K$12:$K$30,3)-_xlfn.QUARTILE.INC($K$12:$K$30,1))),"Não","Sim"),"") -> 
O14: =IF(ISNUMBER(K14),IF(OR(K14<_xlfn.QUARTILE.INC($K$12:$K$30,1)-1.5*(_xlfn.QUARTILE.INC($K$12:K31,3)-_xlfn.QUARTILE.INC($K$12:$K$30,1)),K14>_xlfn.QUARTILE.INC($K$12:$K$30,3)+1.5*(_xlfn.QUARTILE.INC($K$12:$K$30,3)-_xlfn.QUARTILE.INC($K$12:$K$30,1))),"Não","Sim"),"") -> 
O15: =IF(ISNUMBER(K15),IF(OR(K15<_xlfn.QUARTILE.INC($K$12:$K$30,1)-1.5*(_xlfn.QUARTILE.INC($K$12:K32,3)-_xlfn.QUARTILE.INC($K$12:$K$30,1)),K15>_xlfn.QUARTILE.INC($K$12:$K$30,3)+1.5*(_xlfn.QUARTILE.INC($K$12:$K$30,3)-_xlfn.QUARTILE.INC($K$12:$K$30,1))),"Não","Sim"),"") -> 
O16: =IF(ISNUMBER(K16),IF(OR(K16<_xlfn.QUARTILE.INC($K$12:$K$30,1)-1.5*(_xlfn.QUARTILE.INC($K$12:K33,3)-_xlfn.QUARTILE.INC($K$12:$K$30,1)),K16>_xlfn.QUARTILE.INC($K$12:$K$30,3)+1.5*(_xlfn.QUARTILE.INC($K$12:$K$30,3)-_xlfn.QUARTILE.INC($K$12:$K$30,1))),"Não","Sim"),"") -> 
O17: =IF(ISNUMBER(K17),IF(OR(K17<_xlfn.QUARTILE.INC($K$12:$K$30,1)-1.5*(_xlfn.QUARTILE.INC($K$12:K36,3)-_xlfn.QUARTILE.INC($K$12:$K$30,1)),K17>_xlfn.QUARTILE.INC($K$12:$K$30,3)+1.5*(_xlfn.QUARTILE.INC($K$12:$K$30,3)-_xlfn.QUARTILE.INC($K$12:$K$30,1))),"Não","Sim"),"") -> 
O18: =IF(ISNUMBER(K18),IF(OR(K18<_xlfn.QUARTILE.INC($K$12:$K$30,1)-1.5*(_xlfn.QUARTILE.INC($I$12:I38,3)-_xlfn.QUARTILE.INC($K$12:$K$30,1)),K18>_xlfn.QUARTILE.INC($K$12:$K$30,3)+1.5*(_xlfn.QUARTILE.INC($K$12:$K$30,3)-_xlfn.QUARTILE.INC($K$12:$K$30,1))),"Não","Sim"),"") -> 
B19: COTAÇÕES DE MERCADO | O19: Cotações
B20: Empresa | J20: Data | K20: Preço Unitário | L20: Utilizar? (Sim/Não) | O20: Outliers | P20: Por critério do(a) analista
B21: https://www.martinsenergy.com.br/j6sicoi0d-estrutura-solar-solar-group-kit-fixacao-triangulo-laje?srsltid=AfmBOooecxuIxIS5omHMzCa9WdMtyxCMVcxzrXJTr7gRLWKMs1sT2eA60eg | J21: 2025-09-26 | K21: 1633.9 | L21: =IF(ISNUMBER(K21),IF($L$33=$O$20,O21,IF($L$33=$P$20,P21,"")),"") -> Sim | O21: =IF(ISNUMBER(K21),IF(OR(K21<_xlfn.QUARTILE.INC($K$12:$K$30,1)-1.5*(_xlfn.QUARTILE.INC($K$12:$K$30,3)-_xlfn.QUARTILE.INC($K$12:$K$30,1)),K21>_xlfn.QUARTILE.INC($K$12:$K$30,3)+1.5*(_xlfn.QUARTILE.INC($K$12:$K$30,3)-_xlfn.QUARTILE.INC($K$12:$K$30,1))),"Não","Sim"),"") -> Sim
B22: https://www.montrial.com/carports-solar-estrutura-de-garagem-solar-sequencial-para-modulos-solares-com-/prod-10676165/ | J22: 2025-09-26 | K22: 1982.38 | L22: Sim | O22: Sim
B23: PERFIX SOLAR SUPORTES EM ALUMÍNIO - CNPJ 21.117.016/0001-59 | J23: 2025-09-26 | K23: 1073.12 | L23: Sim | O23: Sim
B24: MODULAR ESTRUTURAS EM AÇO LTDA - CNPJ 34.743.124/0001-89 | J24: 2025-09-26 | K24: 1016.7 | L24: Sim | O24: Sim
B31: Observações: | K31: Média: | L31: =IF($L$33="","Selecione metodologia para exclusão de preços",AVERAGE(IF($L$12:$L$30="Sim",$K$12:$K$30))) -> 1426.53 | N31: Média (Cotações) | O31: =IF(COUNTIF(O21:O30,"Sim")<3,"N/D (são necessários pelo menos 3 preços)",AVERAGE(IF(O21:O30="Sim",$K21:$K30))) -> 1426.53 | P31: =IF(COUNTIF(P21:P30,"Sim")<3,"N/D (são necessários pelo menos 3 preços)",AVERAGE(IF(P21:P30="Sim",$K21:$K30))) -> N/D (são necessários pelo menos 3 preços)
K32: Mediana: | L32: =IF($L$33="","Selecione metodologia para exclusão de preços",MEDIAN(IF($L$12:$L$30="Sim",$K$12:$K$30))) -> 1353.51 | N32: Mediana (Cotações) | O32: =IF(COUNTIF(O21:O30,"Sim")<3,"N/D (são necessários pelo menos 3 preços)",MEDIAN(IF(O21:O30="Sim",$K21:$K30))) -> 1353.51 | P32: =IF(COUNTIF(P21:P30,"Sim")<3,"N/D (são necessários pelo menos 3 preços)",MEDIAN(IF(P21:P30="Sim",$K21:$K30))) -> N/D (são necessários pelo menos 3 preços)
B33: Metodologia de exclusão de preços adotada: | L33: =IF(O36="",INDEX(O20:P20,MATCH(MIN(#REF!),#REF!,0)),O36) -> Outliers | N33: CV (Cotações) | O33: =IF(COUNTIF(O21:O30,"Sim")<3,"N/D (são necessários pelo menos 3 preços)",_xlfn.STDEV.S(IF(O21:O30="Sim",$K21:$K30))/AVERAGE(IF(O21:O30="Sim",$K21:$K30))) -> 0.325 | P33: =IF(COUNTIF(P21:P30,"Sim")<3,"N/D (são necessários pelo menos 3 preços)",_xlfn.STDEV.S(IF(P21:P30="Sim",$K21:$K30))/AVERAGE(IF(P21:P30="Sim",$K21:$K30))) -> N/D (são necessários pelo menos 3 preços)
N34: Média | O34: =IF(SUM(COUNTIF($O$12:$O$18,"Sim")) + SUM(COUNTIF(O21:O30,"Sim")) < 3, "N/D (são necessários pelo menos 3 preços)", IFERROR(AVERAGE(_xlfn._xlws.FILTER($K$12:$K$18,$O$12:$O$18="Sim"), _xlfn._xlws.FILTER($K$21:$K$30,O21:O30="Sim")),O31)) -> 1426.53 | P34: =IF(SUM(COUNTIF($P$12:$P$18,"Sim")) + SUM(COUNTIF(P21:P30,"Sim")) < 3, "N/D (são necessários pelo menos 3 preços)", IFERROR(AVERAGE(_xlfn._xlws.FILTER($K$12:$K$18,$P$12:$P$18="Sim"), _xlfn._xlws.FILTER($K$21:$K$30,P21:P30="Sim")),P31)) -> N/D (são necessários pelo menos 3 preços)
N35: Mediana | O35: =IF(SUM(COUNTIF($O$12:$O$18,"Sim")) + SUM(COUNTIF(O21:O30,"Sim")) < 3, "N/D (são necessários pelo menos 3 preços)", IFERROR(MEDIAN(_xlfn._xlws.FILTER($K$12:$K$18,$O$12:$O$18="Sim"), _xlfn._xlws.FILTER($K$21:$K$30,O21:O30="Sim")),O32)) -> 1353.51 | P35: =IF(SUM(COUNTIF($P12:$P$18,"Sim")) + SUM(COUNTIF(P21:P30,"Sim")) < 3, "N/D (são necessários pelo menos 3 preços)", IFERROR(MEDIAN(_xlfn._xlws.FILTER($K$12:$K$18,$P$12:$P$18="Sim"), _xlfn._xlws.FILTER($K$21:$K$30,P21:P30="Sim")),P32)) -> N/D (são necessários pelo menos 3 preços)
B36: COSOLIDAÇÃO DOS PREÇOS | N36: Metodologia a adotar: | O36: =IF(INDEX(O20:P20,P36)=0,"",INDEX(O20:P20,P36)) -> Outliers | P36: 1
B38: PREÇO UNITÁRIO ESTIMADO ADOTADO: | L38: =IF($B$40="Mediana:",L32,L31) -> 1426.53
A40: =O20 -> Outliers | B40: Média:
A41: =P20 -> Por critério do(a) analista

Sheet Item 6 - 2 CV
B4: Processo | C4: 59500.003319/2025-65
B5: Responsável | C5: Renato Chaves
B6: Área de Origem | C6: AI/GEE/UEE
B7: Data da pesquisa | C7: 2025-09-26
B9: ITEM: | C9: Driver solar fotovoltaico, apropriado para motores de 2 CV, operação off-grid: Eficiência mínima 95%, grau de proteção IP20, resfriamento natural ou com cooler integrado, garantia mínima de 5 anos, tensão de saída compatível com a motobomba, frequência 60 Hz, com sistema de partida suave da bomba e controle de velocidade, atender em plenitude os requisitos do sistema a ser instalado. Entrada de corrente contínua (CC) compatível com a quantidade de painéis fotovoltaicos propostos, com no mínimo 1 MPPT (maximum power point tracking) com faixa de tensão de operação compatível com os módulos fotovoltaicos, baixa tensão mínima para funcionamento. Saída de corrente alternada (CA) compatível com o sistema projetado, até 2 CV, temperatura de operação até 60 ºC, trifásico ou monofásico. Possuir, no mínimo as seguintes proteções: Sub e sobre tensão CC, sobreaquecimento, surtos de tensão (CC), proteção de bomba travada, proteção de curto-circuito, proteção contra funcionamento a seco e sobrecarga. | I9: UNIDADE DE MEDIDA: | J9: Unidade | K9: QUANTIDADE: | O9: Tabela auxiliar de metodologias para exclusão de preços
B10: LICITAÇÕES ANTERIORES | O10: Licitações Anteriores
B11: Órgão | C11: Edital/Ano - Nº do Lote / Item | D11: Quantidade | E11: Valor Unitário | F11: Data | G11: índice de atualização (nome) | H11: I0 | I11: If | J11: Variação acumulada do índice (%) | K11: Preço unitário atualizado | L11: Utilizar? (Sim/Não) | O11: Outliers | P11: Por critério do(a) analista
J12: =IF(ISBLANK(E12),"",IF(ISNUMBER(H12),(I12-H12)/H12,0)) ->  | K12: =IF(ISBLANK(E12),"",E12*(1+J12)) ->  | L12: =IF(ISNUMBER(K12),IF($L$32<>$P$11,O12,P12),"") ->  | O12: =IF(ISNUMBER(K12),IF(OR(K12<_xlfn.QUARTILE.INC($K$12:$K$29,1)-1.5*(_xlfn.QUARTILE.INC($K$12:K29,3)-_xlfn.QUARTILE.INC($K$12:$K$29,1)),K12>_xlfn.QUARTILE.INC($K$12:$K$29,3)+1.5*(_xlfn.QUARTILE.INC($K$12:$K$29,3)-_xlfn.QUARTILE.INC($K$12:$K$29,1))),"Não","Sim"),"") -> 
O13: =IF(ISNUMBER(K13),IF(OR(K13<_xlfn.QUARTILE.INC($K$12:$K$29,1)-1.5*(_xlfn.QUARTILE.INC($K$12:K29,3)-_xlfn.QUARTILE.INC($K$12:$K$29,1)),K13>_xlfn.QUARTILE.INC($K$12:$K$29,3)+1.5*(_xlfn.QUARTILE.INC($K$12:$K$29,3)-_xlfn.QUARTILE.INC($K$12:$K$29,1))),"Não","Sim"),"") -> 
O14: =IF(ISNUMBER(K14),IF(OR(K14<_xlfn.QUARTILE.INC($K$12:$K$29,1)-1.5*(_xlfn.QUARTILE.INC($K$12:K30,3)-_xlfn.QUARTILE.INC($K$12:$K$29,1)),K14>_xlfn.QUARTILE.INC($K$12:$K$29,3)+1.5*(_xlfn.QUARTILE.INC($K$12:$K$29,3)-_xlfn.QUARTILE.INC($K$12:$K$29,1))),"Não","Sim"),"") -> 
O15: =IF(ISNUMBER(K15),IF(OR(K15<_xlfn.QUARTILE.INC($K$12:$K$29,1)-1.5*(_xlfn.QUARTILE.INC($K$12:K31,3)-_xlfn.QUARTILE.INC($K$12:$K$29,1)),K15>_xlfn.QUARTILE.INC($K$12:$K$29,3)+1.5*(_xlfn.QUARTILE.INC($K$12:$K$29,3)-_xlfn.QUARTILE.INC($K$12:$K$29,1))),"Não","Sim"),"") -> 
O16: =IF(ISNUMBER(K16),IF(OR(K16<_xlfn.QUARTILE.INC($K$12:$K$29,1)-1.5*(_xlfn.QUARTILE.INC($K$12:K32,3)-_xlfn.QUARTILE.INC($K$12:$K$29,1)),K16>_xlfn.QUARTILE.INC($K$12:$K$29,3)+1.5*(_xlfn.QUARTILE.INC($K$12:$K$29,3)-_xlfn.QUARTILE.INC($K$12:$K$29,1))),"Não","Sim"),"") -> 
O17: =IF(ISNUMBER(K17),IF(OR(K17<_xlfn.QUARTILE.INC($K$12:$K$29,1)-1.5*(_xlfn.QUARTILE.INC($K$12:K35,3)-_xlfn.QUARTILE.INC($K$12:$K$29,1)),K17>_xlfn.QUARTILE.INC($K$12:$K$29,3)+1.5*(_xlfn.QUARTILE.INC($K$12:$K$29,3)-_xlfn.QUARTILE.INC($K$12:$K$29,1))),"Não","Sim"),"") -> 
O18: =IF(ISNUMBER(K18),IF(OR(K18<_xlfn.QUARTILE.INC($K$12:$K$29,1)-1.5*(_xlfn.QUARTILE.INC($I$12:I37,3)-_xlfn.QUARTILE.INC($K$12:$K$29,1)),K18>_xlfn.QUARTILE.INC($K$12:$K$29,3)+1.5*(_xlfn.QUARTILE.INC($K$12:$K$29,3)-_xlfn.QUARTILE.INC($K$12:$K$29,1))),"Não","Sim"),"") -> 
B19: COTAÇÕES DE MERCADO | O19: Cotações
B20: Empresa | J20: Data | K20: Preço Unitário | L20: Utilizar? (Sim/Não) | O20: Outliers | P20: Por critério do(a) analista
B21: SGV SOLAR - CPNJ 42.326.882/0001-20 | K21: 1475.6 | L21: =IF(ISNUMBER(K21),IF($L$32=$O$20,O21,IF($L$32=$P$20,P21,"")),"") -> Sim | O21: =IF(ISNUMBER(K21),IF(OR(K21<_xlfn.QUARTILE.INC($K$12:$K$29,1)-1.5*(_xlfn.QUARTILE.INC($K$12:$K$29,3)-_xlfn.QUARTILE.INC($K$12:$K$29,1)),K21>_xlfn.QUARTILE.INC($K$12:$K$29,3)+1.5*(_xlfn.QUARTILE.INC($K$12:$K$29,3)-_xlfn.QUARTILE.INC($K$12:$K$29,1))),"Não","Sim"),"") -> Sim
B22: https://oceantech-automation.com.br/produtos/inversor-de-frequencia-2cv-1-5kw-delta-220v-7a-monofasico/?variant=368436737&pf=mc&utm_id=Shopping&utm_campaign=20389401256&utm_source=google&utm_medium=pago_google&utm_content=&utm_term=&gad_source=4&gad_campaignid=20385062627&gbraid=0AAAAAp9slaKiBLz628x8BMQPq4m6lobNy&gclid=CjwKCAjw89jGBhB0EiwA2o1OnwsVIAbYqQNxIV2428EpECS39pA5h1cAixNUGCGLLFYL0-2vQvMQahoC2SoQAvD_BwE | J22: 2025-09-26 | K22: 849 | L22: Sim | O22: Sim
B23: https://www.gmcautomacao.com.br/inversor-de-frequencia-2cv-7a-15kw-220v-monotrifasico/up/MLBU1111671208 | J23: 2025-09-26 | K23: 890 | L23: Sim | O23: Sim
B24: https://www.lojapolicompcomponentes.com.br/produtos/inversor-de-frequencia-1-5kw-2cv-220v-7a/?pf=gs&variant=681191505&srsltid=AfmBOopFfHGtIHl30jeOR-eA39SpBv8KOpZceN2cw14L-7NnCUj8myQTtX8 | J24: 2025-09-26 | K24: 858.9 | L24: Sim | O24: Sim
B25: https://www.ecommerce.automatize.eng.br/drive-bomba-solar-weg-cfw500-2cv-7a-trifasico/p/MLB42508199?pdp_filters=category%3AMLB30187%7Cseller_id%3A160168883%7Citem_id%3AMLB5177110924 | J25: 2025-09-26 | K25: 2819 | L25: Sim | O25: Sim
B26: https://www.apexenergiasolar.com.br/bomba-solar/inversor-solar-drive-weg-cfw500-2cv-380v?srsltid=AfmBOopX_8iRC222U5hvI0yiAvkbusODhjtpU24rd6lgs6-YDN0qptVaclk | J26: 2025-09-26 | K26: 2149 | L26: Sim | O26: Sim
B30: Observações: | K30: Média: | L30: =IF($L$32="","Selecione metodologia para exclusão de preços",AVERAGE(IF($L$12:$L$29="Sim",$K$12:$K$29))) -> 1506.92 | N30: Média (Cotações) | O30: =IF(COUNTIF(O21:O29,"Sim")<3,"N/D (são necessários pelo menos 3 preços)",AVERAGE(IF(O21:O29="Sim",$K21:$K29))) -> 1506.92 | P30: =IF(COUNTIF(P21:P29,"Sim")<3,"N/D (são necessários pelo menos 3 preços)",AVERAGE(IF(P21:P29="Sim",$K21:$K29))) -> N/D (são necessários pelo menos 3 preços)
K31: Mediana: | L31: =IF($L$32="","Selecione metodologia para exclusão de preços",MEDIAN(IF($L$12:$L$29="Sim",$K$12:$K$29))) -> 1182.8 | N31: Mediana (Cotações) | O31: =IF(COUNTIF(O21:O29,"Sim")<3,"N/D (são necessários pelo menos 3 preços)",MEDIAN(IF(O21:O29="Sim",$K21:$K29))) -> 1182.8 | P31: =IF(COUNTIF(P21:P29,"Sim")<3,"N/D (são necessários pelo menos 3 preços)",MEDIAN(IF(P21:P29="Sim",$K21:$K29))) -> N/D (são necessários pelo menos 3 preços)
B32: Metodologia de exclusão de preços adotada: | L32: =IF(O35="",INDEX(O20:P20,MATCH(MIN(#REF!),#REF!,0)),O35) -> Outliers | N32: CV (Cotações) | O32: =IF(COUNTIF(O21:O29,"Sim")<3,"N/D (são necessários pelo menos 3 preços)",_xlfn.STDEV.S(IF(O21:O29="Sim",$K21:$K29))/AVERAGE(IF(O21:O29="Sim",$K21:$K29))) -> 0.5447 | P32: =IF(COUNTIF(P21:P29,"Sim")<3,"N/D (são necessários pelo menos 3 preços)",_xlfn.STDEV.S(IF(P21:P29="Sim",$K21:$K29))/AVERAGE(IF(P21:P29="Sim",$K21:$K29))) -> N/D (são necessários pelo menos 3 preços)
N33: Média | O33: =IF(SUM(COUNTIF($O$12:$O$18,"Sim")) + SUM(COUNTIF(O21:O29,"Sim")) < 3, "N/D (são necessários pelo menos 3 preços)", IFERROR(AVERAGE(_xlfn._xlws.FILTER($K$12:$K$18,$O$12:$O$18="Sim"), _xlfn._xlws.FILTER($K$21:$K$29,O21:O29="Sim")),O30)) -> 1506.92 | P33: =IF(SUM(COUNTIF($P$12:$P$18,"Sim")) + SUM(COUNTIF(P21:P29,"Sim")) < 3, "N/D (são necessários pelo menos 3 preços)", IFERROR(AVERAGE(_xlfn._xlws.FILTER($K$12:$K$18,$P$12:$P$18="Sim"), _xlfn._xlws.FILTER($K$21:$K$29,P21:P29="Sim")),P30)) -> N/D (são necessários pelo menos 3 preços)
N34: Mediana | O34: =IF(SUM(COUNTIF($O$12:$O$18,"Sim")) + SUM(COUNTIF(O21:O29,"Sim")) < 3, "N/D (são necessários pelo menos 3 preços)", IFERROR(MEDIAN(_xlfn._xlws.FILTER($K$12:$K$18,$O$12:$O$18="Sim"), _xlfn._xlws.FILTER($K$21:$K$29,O21:O29="Sim")),O31)) -> 1182.8 | P34: =IF(SUM(COUNTIF($P12:$P$18,"Sim")) + SUM(COUNTIF(P21:P29,"Sim")) < 3, "N/D (são necessários pelo menos 3 preços)", IFERROR(MEDIAN(_xlfn._xlws.FILTER($K$12:$K$18,$P$12:$P$18="Sim"), _xlfn._xlws.FILTER($K$21:$K$29,P21:P29="Sim")),P31)) -> N/D (são necessários pelo menos 3 preços)
B35: COSOLIDAÇÃO DOS PREÇOS | N35: Metodologia a adotar: | O35: =IF(INDEX(O20:P20,P35)=0,"",INDEX(O20:P20,P35)) -> Outliers | P35: 1
B37: PREÇO UNITÁRIO ESTIMADO ADOTADO: | L37: =IF($B$39="Mediana:",L31,L30) -> 1506.92
A39: =O20 -> Outliers | B39: Média:
A40: =P20 -> Por critério do(a) analista

Sheet Item 3 - 3 CV
B4: Processo | C4: 59500.003319/2025-65
B5: Responsável | C5: Renato Chaves
B6: Área de Origem | C6: AI/GEE/UEE
B7: Data da pesquisa | C7: 2025-09-26
B9: ITEM: | C9: Estrutura de solo para módulos fotovoltaicos, 8 módulos instalados, pilastra travessa e mão francesa em aço galvanizado a fogo, longarina e acessórios em alumínio. Inclui todos os acessórios para correta fixação dos painéis | I9: UNIDADE DE MEDIDA: | J9: Unidade | K9: QUANTIDADE: | O9: Tabela auxiliar de metodologias para exclusão de preços
B10: LICITAÇÕES ANTERIORES | O10: Licitações Anteriores
B11: Órgão | C11: Edital/Ano - Nº do Lote / Item | D11: Quantidade | E11: Valor Unitário | F11: Data | G11: índice de atualização (nome) | H11: I0 | I11: If | J11: Variação acumulada do índice (%) | K11: Preço unitário atualizado | L11: Utilizar? (Sim/Não) | O11: Outliers | P11: Por critério do(a) analista
J12: =IF(ISBLANK(E12),"",IF(ISNUMBER(H12),(I12-H12)/H12,0)) ->  | K12: =IF(ISBLANK(E12),"",E12*(1+J12)) ->  | L12: =IF(ISNUMBER(K12),IF($L$33<>$P$11,O12,P12),"") ->  | O12: =IF(ISNUMBER(K12),IF(OR(K12<_xlfn.QUARTILE.INC($K$12:$K$30,1)-1.5*(_xlfn.QUARTILE.INC($K$12:K30,3)-_xlfn.QUARTILE.INC($K$12:$K$30,1)),K12>_xlfn.QUARTILE.INC($K$12:$K$30,3)+1.5*(_xlfn.QUARTILE.INC($K$12:$K$30,3)-_xlfn.QUARTILE.INC($K$12:$K$30,1))),"Não","Sim"),"") -> 
O13: =IF(ISNUMBER(K13),IF(OR(K13<_xlfn.QUARTILE.INC($K$12:$K$30,1)-1.5*(_xlfn.QUARTILE.INC($K$12:K30,3)-_xlfn.QUARTILE.INC($K$12:$K$30,1)),K13>_xlfn.QUARTILE.INC($K$12:$K$30,3)+1.5*(_xlfn.QUARTILE.INC($K$12:$K$30,3)-_xlfn.QUARTILE.INC($K$12:$K$30,1))),"Não","Sim"),"") -> 
O14: =IF(ISNUMBER(K14),IF(OR(K14<_xlfn.QUARTILE.INC($K$12:$K$30,1)-1.5*(_xlfn.QUARTILE.INC($K$12:K31,3)-_xlfn.QUARTILE.INC($K$12:$K$30,1)),K14>_xlfn.QUARTILE.INC($K$12:$K$30,3)+1.5*(_xlfn.QUARTILE.INC($K$12:$K$30,3)-_xlfn.QUARTILE.INC($K$12:$K$30,1))),"Não","Sim"),"") -> 
O15: =IF(ISNUMBER(K15),IF(OR(K15<_xlfn.QUARTILE.INC($K$12:$K$30,1)-1.5*(_xlfn.QUARTILE.INC($K$12:K32,3)-_xlfn.QUARTILE.INC($K$12:$K$30,1)),K15>_xlfn.QUARTILE.INC($K$12:$K$30,3)+1.5*(_xlfn.QUARTILE.INC($K$12:$K$30,3)-_xlfn.QUARTILE.INC($K$12:$K$30,1))),"Não","Sim"),"") -> 
O16: =IF(ISNUMBER(K16),IF(OR(K16<_xlfn.QUARTILE.INC($K$12:$K$30,1)-1.5*(_xlfn.QUARTILE.INC($K$12:K33,3)-_xlfn.QUARTILE.INC($K$12:$K$30,1)),K16>_xlfn.QUARTILE.INC($K$12:$K$30,3)+1.5*(_xlfn.QUARTILE.INC($K$12:$K$30,3)-_xlfn.QUARTILE.INC($K$12:$K$30,1))),"Não","Sim"),"") -> 
O17: =IF(ISNUMBER(K17),IF(OR(K17<_xlfn.QUARTILE.INC($K$12:$K$30,1)-1.5*(_xlfn.QUARTILE.INC($K$12:K36,3)-_xlfn.QUARTILE.INC($K$12:$K$30,1)),K17>_xlfn.QUARTILE.INC($K$12:$K$30,3)+1.5*(_xlfn.QUARTILE.INC($K$12:$K$30,3)-_xlfn.QUARTILE.INC($K$12:$K$30,1))),"Não","Sim"),"") -> 
O18: =IF(ISNUMBER(K18),IF(OR(K18<_xlfn.QUARTILE.INC($K$12:$K$30,1)-1.5*(_xlfn.QUARTILE.INC($I$12:I38,3)-_xlfn.QUARTILE.INC($K$12:$K$30,1)),K18>_xlfn.QUARTILE.INC($K$12:$K$30,3)+1.5*(_xlfn.QUARTILE.INC($K$12:$K$30,3)-_xlfn.QUARTILE.INC($K$12:$K$30,1))),"Não","Sim"),"") -> 
B19: COTAÇÕES DE MERCADO | O19: Cotações
B20: Empresa | J20: Data | K20: Preço Unitário | L20: Utilizar? (Sim/Não) | O20: Outliers | P20: Por critério do(a) analista
B21: https://www.martinsenergy.com.br/j6sicoi0d-estrutura-solar-solar-group-kit-fixacao-triangulo-laje?srsltid=AfmBOoqgT1XLabSm1ni0ObcrfuyEornR3b5gbFI095hBLVcQytfTqnYMjKg | J21: 2025-09-26 | K21: 1633.9 | L21: =IF(ISNUMBER(K21),IF($L$33=$O$20,O21,IF($L$33=$P$20,P21,"")),"") -> Sim | O21: =IF(ISNUMBER(K21),IF(OR(K21<_xlfn.QUARTILE.INC($K$12:$K$30,1)-1.5*(_xlfn.QUARTILE.INC($K$12:$K$30,3)-_xlfn.QUARTILE.INC($K$12:$K$30,1)),K21>_xlfn.QUARTILE.INC($K$12:$K$30,3)+1.5*(_xlfn.QUARTILE.INC($K$12:$K$30,3)-_xlfn.QUARTILE.INC($K$12:$K$30,1))),"Não","Sim"),"") -> Sim
B22: https://www.portalenergy.com.br/estrutura-fotovoltaico-romagnole?utm_source=Site&utm_medium=GoogleMerchant&utm_campaign=GoogleMerchant&srsltid=AfmBOoqztlKygQfkyzgCtepYDN4E1hW6cXM_SSUAbrxQjMQeAyQWc0u9obU | J22: 2025-09-26 | K22: 1664.85 | L22: Sim | O22: Sim
B23: PERFIX SOLAR SUPORTES EM ALUMÍNIO - CNPJ 21.117.016/0001-59 | J23: 2025-09-26 | K23: 1380.76 | L23: Sim | O23: Sim
B24: MODULAR ESTRUTURAS EM AÇO LTDA - CNPJ 34.743.124/0001-89 | J24: 2025-09-26 | K24: 1355.6 | L24: Sim | O24: Sim
B31: Observações: | K31: Média: | L31: =IF($L$33="","Selecione metodologia para exclusão de preços",AVERAGE(IF($L$12:$L$30="Sim",$K$12:$K$30))) -> 1508.78 | N31: Média (Cotações) | O31: =IF(COUNTIF(O21:O30,"Sim")<3,"N/D (são necessários pelo menos 3 preços)",AVERAGE(IF(O21:O30="Sim",$K21:$K30))) -> 1508.78 | P31: =IF(COUNTIF(P21:P30,"Sim")<3,"N/D (são necessários pelo menos 3 preços)",AVERAGE(IF(P21:P30="Sim",$K21:$K30))) -> N/D (são necessários pelo menos 3 preços)
K32: Mediana: | L32: =IF($L$33="","Selecione metodologia para exclusão de preços",MEDIAN(IF($L$12:$L$30="Sim",$K$12:$K$30))) -> 1507.33 | N32: Mediana (Cotações) | O32: =IF(COUNTIF(O21:O30,"Sim")<3,"N/D (são necessários pelo menos 3 preços)",MEDIAN(IF(O21:O30="Sim",$K21:$K30))) -> 1507.33 | P32: =IF(COUNTIF(P21:P30,"Sim")<3,"N/D (são necessários pelo menos 3 preços)",MEDIAN(IF(P21:P30="Sim",$K21:$K30))) -> N/D (são necessários pelo menos 3 preços)
B33: Metodologia de exclusão de preços adotada: | L33: =IF(O36="",INDEX(O20:P20,MATCH(MIN(#REF!),#REF!,0)),O36) -> Outliers | N33: CV (Cotações) | O33: =IF(COUNTIF(O21:O30,"Sim")<3,"N/D (são necessários pelo menos 3 preços)",_xlfn.STDEV.S(IF(O21:O30="Sim",$K21:$K30))/AVERAGE(IF(O21:O30="Sim",$K21:$K30))) -> 0.1081 | P33: =IF(COUNTIF(P21:P30,"Sim")<3,"N/D (são necessários pelo menos 3 preços)",_xlfn.STDEV.S(IF(P21:P30="Sim",$K21:$K30))/AVERAGE(IF(P21:P30="Sim",$K21:$K30))) -> N/D (são necessários pelo menos 3 preços)
N34: Média | O34: =IF(SUM(COUNTIF($O$12:$O$18,"Sim")) + SUM(COUNTIF(O21:O30,"Sim")) < 3, "N/D (são necessários pelo menos 3 preços)", IFERROR(AVERAGE(_xlfn._xlws.FILTER($K$12:$K$18,$O$12:$O$18="Sim"), _xlfn._xlws.FILTER($K$21:$K$30,O21:O30="Sim")),O31)) -> 1508.78 | P34: =IF(SUM(COUNTIF($P$12:$P$18,"Sim")) + SUM(COUNTIF(P21:P30,"Sim")) < 3, "N/D (são necessários pelo menos 3 preços)", IFERROR(AVERAGE(_xlfn._xlws.FILTER($K$12:$K$18,$P$12:$P$18="Sim"), _xlfn._xlws.FILTER($K$21:$K$30,P21:P30="Sim")),P31)) -> N/D (são necessários pelo menos 3 preços)
N35: Mediana | O35: =IF(SUM(COUNTIF($O$12:$O$18,"Sim")) + SUM(COUNTIF(O21:O30,"Sim")) < 3, "N/D (são necessários pelo menos 3 preços)", IFERROR(MEDIAN(_xlfn._xlws.FILTER($K$12:$K$18,$O$12:$O$18="Sim"), _xlfn._xlws.FILTER($K$21:$K$30,O21:O30="Sim")),O32)) -> 1507.33 | P35: =IF(SUM(COUNTIF($P12:$P$18,"Sim")) + SUM(COUNTIF(P21:P30,"Sim")) < 3, "N/D (são necessários pelo menos 3 preços)", IFERROR(MEDIAN(_xlfn._xlws.FILTER($K$12:$K$18,$P$12:$P$18="Sim"), _xlfn._xlws.FILTER($K$21:$K$30,P21:P30="Sim")),P32)) -> N/D (são necessários pelo menos 3 preços)
B36: COSOLIDAÇÃO DOS PREÇOS | N36: Metodologia a adotar: | O36: =IF(INDEX(O20:P20,P36)=0,"",INDEX(O20:P20,P36)) -> Outliers | P36: 1
B38: PREÇO UNITÁRIO ESTIMADO ADOTADO: | L38: =IF($B$40="Mediana:",L32,L31) -> 1508.78
A40: =O20 -> Outliers | B40: Média:
A41: =P20 -> Por critério do(a) analista

Sheet Item 6 - 3 CV
B4: Processo | C4: 59500.003319/2025-65
B5: Responsável | C5: Renato Chaves
B6: Área de Origem | C6: AI/GEE/UEE
B7: Data da pesquisa | C7: 2025-09-26
B9: ITEM: | C9: Driver solar fotovoltaico, apropriado para motores de 3 CV, operação off-grid: Eficiência mínima 95%, grau de proteção IP20, resfriamento natural ou com cooler integrado, garantia mínima de 5 anos, tensão de saída compatível com a motobomba, frequência 60 Hz, com sistema de partida suave da bomba e controle de velocidade, atender em plenitude os requisitos do sistema a ser instalado. Entrada de corrente contínua (CC) compatível com a quantidade de painéis fotovoltaicos propostos, com no mínimo 1 MPPT (maximum power point tracking) com faixa de tensão de operação compatível com os módulos fotovoltaicos, baixa tensão mínima para funcionamento. Saída de corrente alternada (CA) compatível com o sistema projetado, até 3 CV, temperatura de operação até 60 ºC, trifásico ou monofásico. Possuir, no mínimo as seguintes proteções: Sub e sobre tensão CC, sobreaquecimento, surtos de tensão (CC), proteção de bomba travada, proteção de curto-circuito, proteção contra funcionamento a seco e sobrecarga. | I9: UNIDADE DE MEDIDA: | J9: Unidade | K9: QUANTIDADE: | O9: Tabela auxiliar de metodologias para exclusão de preços
B10: LICITAÇÕES ANTERIORES | O10: Licitações Anteriores
B11: Órgão | C11: Edital/Ano - Nº do Lote / Item | D11: Quantidade | E11: Valor Unitário | F11: Data | G11: índice de atualização (nome) | H11: I0 | I11: If | J11: Variação acumulada do índice (%) | K11: Preço unitário atualizado | L11: Utilizar? (Sim/Não) | O11: Outliers | P11: Por critério do(a) analista
J12: =IF(ISBLANK(E12),"",IF(ISNUMBER(H12),(I12-H12)/H12,0)) ->  | K12: =IF(ISBLANK(E12),"",E12*(1+J12)) ->  | L12: =IF(ISNUMBER(K12),IF($L$31<>$P$11,O12,P12),"") ->  | O12: =IF(ISNUMBER(K12),IF(OR(K12<_xlfn.QUARTILE.INC($K$12:$K$28,1)-1.5*(_xlfn.QUARTILE.INC($K$12:K28,3)-_xlfn.QUARTILE.INC($K$12:$K$28,1)),K12>_xlfn.QUARTILE.INC($K$12:$K$28,3)+1.5*(_xlfn.QUARTILE.INC($K$12:$K$28,3)-_xlfn.QUARTILE.INC($K$12:$K$28,1))),"Não","Sim"),"") -> 
O13: =IF(ISNUMBER(K13),IF(OR(K13<_xlfn.QUARTILE.INC($K$12:$K$28,1)-1.5*(_xlfn.QUARTILE.INC($K$12:K28,3)-_xlfn.QUARTILE.INC($K$12:$K$28,1)),K13>_xlfn.QUARTILE.INC($K$12:$K$28,3)+1.5*(_xlfn.QUARTILE.INC($K$12:$K$28,3)-_xlfn.QUARTILE.INC($K$12:$K$28,1))),"Não","Sim"),"") -> 
O14: =IF(ISNUMBER(K14),IF(OR(K14<_xlfn.QUARTILE.INC($K$12:$K$28,1)-1.5*(_xlfn.QUARTILE.INC($K$12:K29,3)-_xlfn.QUARTILE.INC($K$12:$K$28,1)),K14>_xlfn.QUARTILE.INC($K$12:$K$28,3)+1.5*(_xlfn.QUARTILE.INC($K$12:$K$28,3)-_xlfn.QUARTILE.INC($K$12:$K$28,1))),"Não","Sim"),"") -> 
O15: =IF(ISNUMBER(K15),IF(OR(K15<_xlfn.QUARTILE.INC($K$12:$K$28,1)-1.5*(_xlfn.QUARTILE.INC($K$12:K30,3)-_xlfn.QUARTILE.INC($K$12:$K$28,1)),K15>_xlfn.QUARTILE.INC($K$12:$K$28,3)+1.5*(_xlfn.QUARTILE.INC($K$12:$K$28,3)-_xlfn.QUARTILE.INC($K$12:$K$28,1))),"Não","Sim"),"") -> 
O16: =IF(ISNUMBER(K16),IF(OR(K16<_xlfn.QUARTILE.INC($K$12:$K$28,1)-1.5*(_xlfn.QUARTILE.INC($K$12:K31,3)-_xlfn.QUARTILE.INC($K$12:$K$28,1)),K16>_xlfn.QUARTILE.INC($K$12:$K$28,3)+1.5*(_xlfn.QUARTILE.INC($K$12:$K$28,3)-_xlfn.QUARTILE.INC($K$12:$K$28,1))),"Não","Sim"),"") -> 
O17: =IF(ISNUMBER(K17),IF(OR(K17<_xlfn.QUARTILE.INC($K$12:$K$28,1)-1.5*(_xlfn.QUARTILE.INC($K$12:K34,3)-_xlfn.QUARTILE.INC($K$12:$K$28,1)),K17>_xlfn.QUARTILE.INC($K$12:$K$28,3)+1.5*(_xlfn.QUARTILE.INC($K$12:$K$28,3)-_xlfn.QUARTILE.INC($K$12:$K$28,1))),"Não","Sim"),"") -> 
O18: =IF(ISNUMBER(K18),IF(OR(K18<_xlfn.QUARTILE.INC($K$12:$K$28,1)-1.5*(_xlfn.QUARTILE.INC($I$12:I36,3)-_xlfn.QUARTILE.INC($K$12:$K$28,1)),K18>_xlfn.QUARTILE.INC($K$12:$K$28,3)+1.5*(_xlfn.QUARTILE.INC($K$12:$K$28,3)-_xlfn.QUARTILE.INC($K$12:$K$28,1))),"Não","Sim"),"") -> 
B19: COTAÇÕES DE MERCADO | O19: Cotações
B20: Empresa | J20: Data | K20: Preço Unitário | L20: Utilizar? (Sim/Não) | O20: Outliers | P20: Por critério do(a) analista
B21: https://oceantech-automation.com.br/produtos/inversor-de-frequencia-3cv-2-2kw-dovol-220v-10-0a/?variant=349657234&pf=mc&srsltid=AfmBOoq3a6aLsZvJ0RFSCC6l575CZPrOGP9nvMqW9qPdnyFFiBRoAvkb61Q | J21: 2025-09-26 | K21: 1190 | L21: =IF(ISNUMBER(K21),IF($L$31=$O$20,O21,IF($L$31=$P$20,P21,"")),"") -> Sim | O21: =IF(ISNUMBER(K21),IF(OR(K21<_xlfn.QUARTILE.INC($K$12:$K$28,1)-1.5*(_xlfn.QUARTILE.INC($K$12:$K$28,3)-_xlfn.QUARTILE.INC($K$12:$K$28,1)),K21>_xlfn.QUARTILE.INC($K$12:$K$28,3)+1.5*(_xlfn.QUARTILE.INC($K$12:$K$28,3)-_xlfn.QUARTILE.INC($K$12:$K$28,1))),"Não","Sim"),"") -> Sim
B22: https://www.kmabrasil.com.br/produto/inversores-de-frequencia/trifasico-220v-p-trifasico/926-inversor-de-frequencia-cfw500-3cv-ent-trifasico-220v-saida-trifasico-220v-9-6a-weg-11575776?srsltid=AfmBOorFHRSWELwYG8Y_Aih3UQZafvvvPjKbypfRwtibTkde5z29G6xKvyE | J22: 2025-09-26 | K22: 2339 | L22: Sim | O22: Sim
B23: https://www.ecommerce.automatize.eng.br/drive-bomba-solar-weg-cfw500-3cv-10a-monotrif/p/MLB47278483?pdp_filters=category%3AMLB30187%7Cseller_id%3A160168883%7Citem_id%3AMLB4009250759 | J23: 2025-09-26 | K23: 2699 | L23: Sim | O23: Sim
B29: Observações: | K29: Média: | L29: =IF($L$31="","Selecione metodologia para exclusão de preços",AVERAGE(IF($L$12:$L$28="Sim",$K$12:$K$28))) -> 2076 | N29: Média (Cotações) | O29: =IF(COUNTIF(O21:O28,"Sim")<3,"N/D (são necessários pelo menos 3 preços)",AVERAGE(IF(O21:O28="Sim",$K21:$K28))) -> 2076 | P29: =IF(COUNTIF(P21:P28,"Sim")<3,"N/D (são necessários pelo menos 3 preços)",AVERAGE(IF(P21:P28="Sim",$K21:$K28))) -> N/D (são necessários pelo menos 3 preços)
K30: Mediana: | L30: =IF($L$31="","Selecione metodologia para exclusão de preços",MEDIAN(IF($L$12:$L$28="Sim",$K$12:$K$28))) -> 2339 | N30: Mediana (Cotações) | O30: =IF(COUNTIF(O21:O28,"Sim")<3,"N/D (são necessários pelo menos 3 preços)",MEDIAN(IF(O21:O28="Sim",$K21:$K28))) -> 2339 | P30: =IF(COUNTIF(P21:P28,"Sim")<3,"N/D (são necessários pelo menos 3 preços)",MEDIAN(IF(P21:P28="Sim",$K21:$K28))) -> N/D (são necessários pelo menos 3 preços)
B31: Metodologia de exclusão de preços adotada: | L31: =IF(O34="",INDEX(O20:P20,MATCH(MIN(#REF!),#REF!,0)),O34) -> Outliers | N31: CV (Cotações) | O31: =IF(COUNTIF(O21:O28,"Sim")<3,"N/D (são necessários pelo menos 3 preços)",_xlfn.STDEV.S(IF(O21:O28="Sim",$K21:$K28))/AVERAGE(IF(O21:O28="Sim",$K21:$K28))) -> 0.3796 | P31: =IF(COUNTIF(P21:P28,"Sim")<3,"N/D (são necessários pelo menos 3 preços)",_xlfn.STDEV.S(IF(P21:P28="Sim",$K21:$K28))/AVERAGE(IF(P21:P28="Sim",$K21:$K28))) -> N/D (são necessários pelo menos 3 preços)
N32: Média | O32: =IF(SUM(COUNTIF($O$12:$O$18,"Sim")) + SUM(COUNTIF(O21:O28,"Sim")) < 3, "N/D (são necessários pelo menos 3 preços)", IFERROR(AVERAGE(_xlfn._xlws.FILTER($K$12:$K$18,$O$12:$O$18="Sim"), _xlfn._xlws.FILTER($K$21:$K$28,O21:O28="Sim")),O29)) -> 2076 | P32: =IF(SUM(COUNTIF($P$12:$P$18,"Sim")) + SUM(COUNTIF(P21:P28,"Sim")) < 3, "N/D (são necessários pelo menos 3 preços)", IFERROR(AVERAGE(_xlfn._xlws.FILTER($K$12:$K$18,$P$12:$P$18="Sim"), _xlfn._xlws.FILTER($K$21:$K$28,P21:P28="Sim")),P29)) -> N/D (são necessários pelo menos 3 preços)
N33: Mediana | O33: =IF(SUM(COUNTIF($O$12:$O$18,"Sim")) + SUM(COUNTIF(O21:O28,"Sim")) < 3, "N/D (são necessários pelo menos 3 preços)", IFERROR(MEDIAN(_xlfn._xlws.FILTER($K$12:$K$18,$O$12:$O$18="Sim"), _xlfn._xlws.FILTER($K$21:$K$28,O21:O28="Sim")),O30)) -> 2339 | P33: =IF(SUM(COUNTIF($P12:$P$18,"Sim")) + SUM(COUNTIF(P21:P28,"Sim")) < 3, "N/D (são necessários pelo menos 3 preços)", IFERROR(MEDIAN(_xlfn._xlws.FILTER($K$12:$K$18,$P$12:$P$18="Sim"), _xlfn._xlws.FILTER($K$21:$K$28,P21:P28="Sim")),P30)) -> N/D (são necessários pelo menos 3 preços)
B34: COSOLIDAÇÃO DOS PREÇOS | N34: Metodologia a adotar: | O34: =IF(INDEX(O20:P20,P34)=0,"",INDEX(O20:P20,P34)) -> Outliers | P34: 1
B36: PREÇO UNITÁRIO ESTIMADO ADOTADO: | L36: =IF($B$38="Mediana:",L30,L29) -> 2076
A38: =O20 -> Outliers | B38: Média:
A39: =P20 -> Por critério do(a) analista
